Workbook

Sheet Instructions (hidden)
A1: Operating and Financial Statistics Report - General Instructions

Sheet Overview (hidden)
B1: ="1. OVERVIEW: "&Overview!D4 -> 1. OVERVIEW: | J1: 1 | K1: Alamance County Transportation Authority | L1: =CONCATENATE(K1," (",J1,")") -> Alamance County Transportation Authority (1)
B2: FY2024 | D2: A | E2: B | F2: C | J2: 53 | K2: Albemarle Regional Health Services | L2: =CONCATENATE(K2," (",J2,")") -> Albemarle Regional Health Services (53)
B3: System Information | J3: 5 | K3: Alleghany County | L3: Alleghany County (5)
A4: 1 | B4: CTP Grantee's Legal Name | G4: 1 | J4: 7 | K4: Anson County | L4: Anson County (7)
D5: First Name | E5: Middle Initial | F5: Last Name | J5: 189 | K5: AppalCART | L5: AppalCART (189)
A6: =A4+1 -> 2 | B6: Transit's Contact Person | G6: =G4+1 -> 2 | J6: 9 | K6: Ashe County Transportation Authority, Inc. | L6: Ashe County Transportation Authority, Inc. (9)
A7: =A6+1 -> 3 | B7: Contact Email | G7: =G6+1 -> 3 | J7: 11 | K7: Avery County Transportation Authority | L7: Avery County Transportation Authority (11)
A8: =A7+1 -> 4 | B8: Transit's Website Address http:// | G8: =G7+1 -> 4 | J8: 13 | K8: Beaufort County Developmental Center Inc. | L8: Beaufort County Developmental Center Inc. (13)
J9: 17 | K9: Bladen County | L9: Bladen County (17)
A10: =A8+1 -> 5 | B10: Transit's Telephone Number | G10: =G8+1 -> 5 | J10: 19 | K10: Brunswick Transit System, Inc. | L10: Brunswick Transit System, Inc. (19)
J11: 21 | K11: Buncombe County | L11: Buncombe County (21)
B12: Service Area | J12: 25 | K12: Cabarrus County | L12: Cabarrus County (25)
A13: =A10+1 -> 6 | B13: Select service area | G13: =G10+1 -> 6 | J13: 31 | K13: Carteret County | L13: Carteret County (31)
D14: List counties in Multi-County System (if applicable) | J14: 33 | K14: Caswell County | L14: Caswell County (33)
A15: =A13+1 -> 7 | G15: =G13+1 -> 7 | J15: 37 | K15: Chatham Transit Network | L15: Chatham Transit Network (37)
J16: 39 | K16: Cherokee County | L16: Cherokee County (39)
B17: Operating Modes | J17: 91 | K17: Choanoke Public Transportation Authority | L17: Choanoke Public Transportation Authority (91)
E18: Operating Modes | F18: Route types | J18: 127 | K18: City of Rocky Mount | L18: City of Rocky Mount (127)
A19: =A15+1 -> 8 | B19: Demand Response Directly Operated (DR DO) | E19: 0 | G19: =G15+1 -> 8 | J19: 43 | K19: Clay County | L19: Clay County (43)
A20: =A19+1 -> 9 | B20: Demand Response Purchased (DR PT) | E20: 0 | G20: =G19+1 -> 9 | J20: 47 | K20: Columbus County | L20: Columbus County (47)
A21: =A20+1 -> 10 | B21: Fixed Route Directly Operated (MB DO) | E21: 0 | G21: =G20+1 -> 10 | J21: 49 | K21: Craven County | L21: Craven County (49)
A22: =A21+1 -> 11 | B22: Fixed Route Purchased (MB PT) | E22: 0 | G22: =G21+1 -> 11 | J22: 51 | K22: Cumberland County | L22: Cumberland County (51)
A23: =A22+1 -> 12 | D23: Microtransit Directly Operated (MT DO) | E23: 0 | G23: =G22+1 -> 12 | J23: 55 | K23: Dare County | L23: Dare County (55)
A24: 13 | D24: Microtransit Purchased (MT PT) | E24: 0 | G24: 13 | J24: 57 | K24: Davidson County | L24: Davidson County (57)
J25: 61 | K25: Duplin County | L25: Duplin County (61)
B26: Operating Hours | J26: 2 | K26: Eastern Band of Cherokee Indians | L26: Eastern Band of Cherokee Indians (2)
D27: Begin Time | E27: End Time | J27: 71 | K27: Gaston County | L27: Gaston County (71)
A28: =A24+1 -> 14 | B28: Weekday | G28: =G24+1 -> 14 | J28: 73 | K28: Gates County | L28: Gates County (73)
A29: =A28+1 -> 15 | B29: Saturday (if applicable) | G29: =G28+1 -> 15 | J29: 191 | K29: Goldsboro-Wayne Transportation Authority | L29: Goldsboro-Wayne Transportation Authority (191)
A30: =A29+1 -> 16 | B30: Sunday (if applicable) | G30: =G29+1 -> 16 | J30: 75 | K30: Graham County | L30: Graham County (75)
J31: 79 | K31: Greene County | L31: Greene County (79)
B32: Management/Operations Contractor (For PT Mode Only) | J32: 81 | K32: Guilford County | L32: Guilford County (81)
A33: =A30+1 -> 17 | C33: Contractor Name (For PT Mode Only) | G33: =G30+1 -> 17 | J33: 85 | K33: Harnett County | L33: Harnett County (85)
A34: =A33+1 -> 18 | C34: Contract Start Date (For PT Mode Only) | E34: Contract End Date | G34: =G33+1 -> 18 | J34: 93 | K34: Hoke County | L34: Hoke County (93)
J35: 95 | K35: Hyde County Non-Profit Private Transportation Corp Inc. | L35: Hyde County Non-Profit Private Transportation Corp Inc. (95)
B36: Out of Service Area Operations | J36: 97 | K36: Iredell County | L36: Iredell County (97)
A37: =A34+1 -> 19 | B37: Do you provide trips to out of service area destinations? | E37: No | G37: =G34+1 -> 19 | J37: 99 | K37: Jackson County | L37: Jackson County (99)
D38: List out of service area destinations list counties and state only (if applicable) | J38: 101 | K38: Johnston County Council on Aging, Inc. | L38: Johnston County Council on Aging, Inc. (101)
A39: =A37+1 -> 20 | G39: =G37+1 -> 20 | J39: 185 | K39: Kerr Area Transportation Authority | L39: Kerr Area Transportation Authority (185)
J40: 105 | K40: Lee County | L40: Lee County (105)
B41: Coordination | J41: 107 | K41: Lenoir County | L41: Lenoir County (107)
A42: =A39+1 -> 21 | B42: Do you coordinate with other Community Transportation systems? | E42: No | G42: =G39+1 -> 21 | J42: 109 | K42: Lincoln County | L42: Lincoln County (109)
D43: List Community Transportations systems (if applicable) | J43: 113 | K43: Macon County | L43: Macon County (113)
A44: =A42+1 -> 22 | G44: =G42+1 -> 22 | J44: 115 | K44: Madison County Transportation Authority | L44: Madison County Transportation Authority (115)
B45: Fares | J45: 117 | K45: Martin County | L45: Martin County (117)
A46: 23 | C46: Demand Response | G46: 23 | J46: 111 | K46: McDowell Transit | L46: McDowell Transit (111)
A47: 24 | C47: Fixed Route | G47: 24 | J47: 119 | K47: Mecklenburg County | L47: Mecklenburg County (119)
A48: 25 | C48: Microtransit | G48: 25 | J48: 121 | K48: Mitchell County Transportation Authority | L48: Mitchell County Transportation Authority (121)
B49: Minimum Advanced Reservation Time (Hours) | J49: 125 | K49: Moore County | L49: Moore County (125)
A50: 26 | B50: Time | G50: 26 | J50: 87 | K50: Mountain Projects Inc. | L50: Mountain Projects Inc. (87)
A51: 27 | B51: Explanation | G51: 27 | J51: 6 | K51: NCDOT Ferry | L51: NCDOT Ferry (6)
J52: 8 | K52: Ocracoke Tram | L52: Ocracoke Tram (8)
D53: A | E53: B | F53: C | J53: 133 | K53: Onslow United Transit System, Inc. | L53: Onslow United Transit System, Inc. (133)
J54: 135 | K54: Orange County | L54: Orange County (135)
J55: 141 | K55: Pender Adult Services Inc. | L55: Pender Adult Services Inc. (141)
J56: 145 | K56: Person County | L56: Person County (145)
J57: 147 | K57: Pitt County/Pitt Area Transit System | L57: Pitt County/Pitt Area Transit System (147)
J58: 149 | K58: Polk County Transportation Authority | L58: Polk County Transportation Authority (149)
J59: 151 | K59: Randolph County Senior Adults Assoc. Inc. | L59: Randolph County Senior Adults Assoc. Inc. (151)
J60: 153 | K60: Richmond Interagency Transportation, Inc. | L60: Richmond Interagency Transportation, Inc. (153)
J61: 155 | K61: Robeson County | L61: Robeson County (155)
J62: 157 | K62: Rockingham County Council on Aging Inc. | L62: =CONCATENATE(K62," (",J62,")") -> Rockingham County Council on Aging Inc. (157)
J63: 159 | K63: Rowan County | L63: Rowan County (159)
J64: 161 | K64: Rutherford County | L64: Rutherford County (161)
J65: 163 | K65: Sampson County | L65: Sampson County (163)
J66: 165 | K66: Scotland County | L66: Scotland County (165)
J67: 167 | K67: Stanly County | L67: Stanly County (167)
J68: 173 | K68: Swain County Focal Point on Aging Inc. | L68: Swain County Focal Point on Aging Inc. (173)
J69: 45 | K69: Transportation Administration of Cleveland County Inc. | L69: Transportation Administration of Cleveland County Inc. (45)
J70: 175 | K70: Transylvania County | L70: Transylvania County (175)
J71: 177 | K71: Tyrrell County | L71: Tyrrell County (177)
J72: 179 | K72: Union County | L72: Union County (179)
J73: 183 | K73: Wake County | L73: Wake County (183)
J74: 187 | K74: Washington County | L74: Washington County (187)
J75: 89 | K75: WNC Source | L75: WNC Source (89)
J76: 3 | K76: Western Piedmont Regional Transportation Authority | L76: Western Piedmont Regional Transportation Authority (3)
J77: 193 | K77: Wilkes Transportation Authority | L77: Wilkes Transportation Authority (193)
J78: 196 | K78: Wilson City | L78: Wilson City (196)
J79: 195 | K79: Wilson County | L79: Wilson County (195)
J80: 171 | K80: Yadkin Valley Economic Development District Inc. | L80: Yadkin Valley Economic Development District Inc. (171)
J81: 199 | K81: Yancey County Transportation Authority | L81: Yancey County Transportation Authority (199)

Sheet Weekday (hidden)
B1: ="2. WEEKDAY: "&Overview!D4 -> 2. WEEKDAY:
D2: A | E2: B | F2: C | G2: D | H2: E | I2: F | J2: G | K2: H | L2: I | M2: J | N2: K | O2: L | P2: M | Q2: N | R2: O | S2: P
B3: =Overview!B2 -> FY2024 | D3: July | E3: August | F3: September | G3: October | H3: November | I3: December | J3: January | K3: February | L3: March | M3: April | N3: May | O3: June | P3: Quarter 1 | Q3: Quarter 2 | R3: Quarter 3 | S3: Quarter 4 | T3: YTD Totals
A4: =Overview!A51+1 -> 28 | C4: Operating Days | P4: =D4+E4+F4 -> 0 | Q4: =G4+H4+I4 -> 0 | R4: =J4+K4+L4 -> 0 | S4: =M4+N4+O4 -> 0 | T4: =SUM(D4:O4) -> 0 | U4: =Overview!G51+1 -> 28
B5: Demand Response Directly Operated (DR DO)
A6: =A4+1 -> 29 | C6: Hours | P6: =D6+E6+F6 -> 0 | Q6: =G6+H6+I6 -> 0 | R6: =J6+K6+L6 -> 0 | S6: =M6+N6+O6 -> 0 | T6: =SUM(D6:O6) -> 0 | U6: =U4+1 -> 29
A7: =A6+1 -> 30 | C7: Miles | P7: 0 | Q7: 0 | R7: 0 | S7: 0 | T7: 0 | U7: =U6+1 -> 30
A8: =A7+1 -> 31 | C8: Passenger Trips: Non-Contract | P8: 0 | Q8: 0 | R8: 0 | S8: 0 | T8: 0 | U8: =U7+1 -> 31
A9: =A8+1 -> 32 | C9: Medicaid Contract | P9: 0 | Q9: 0 | R9: 0 | S9: 0 | T9: 0 | U9: =U8+1 -> 32
A10: =A9+1 -> 33 | C10: Non-Medicaid Contract | P10: 0 | Q10: 0 | R10: 0 | S10: 0 | T10: 0 | U10: =U9+1 -> 33
A11: =A10+1 -> 34 | C11: Brokered Medicaid Contract | P11: =D11+E11+F11 -> 0 | Q11: =G11+H11+I11 -> 0 | R11: =J11+K11+L11 -> 0 | S11: =M11+N11+O11 -> 0 | T11: =SUM(D11:O11) -> 0 | U11: =U10+1 -> 34
C12: Total Passenger Trips for This Mode | D12: =SUM(D8:D11) -> 0 | E12: =SUM(E8:E11) -> 0 | F12: 0 | G12: 0 | H12: 0 | I12: 0 | J12: 0 | K12: 0 | L12: 0 | M12: 0 | N12: 0 | O12: 0 | P12: 0 | Q12: 0 | R12: 0 | S12: 0 | T12: 0
B13: Demand Response Purchased (DR PT)
A14: =A11+1 -> 35 | C14: Hours | P14: =D14+E14+F14 -> 0 | Q14: =G14+H14+I14 -> 0 | R14: =J14+K14+L14 -> 0 | S14: =M14+N14+O14 -> 0 | T14: =SUM(D14:O14) -> 0 | U14: =U11+1 -> 35
A15: =A14+1 -> 36 | C15: Miles | P15: 0 | Q15: 0 | R15: 0 | S15: 0 | T15: 0 | U15: =U14+1 -> 36
A16: =A15+1 -> 37 | C16: Passenger Trips: Non-Contract | P16: 0 | Q16: 0 | R16: 0 | S16: 0 | T16: 0 | U16: =U15+1 -> 37
A17: =A16+1 -> 38 | C17: Medicaid Contract | P17: 0 | Q17: 0 | R17: 0 | S17: 0 | T17: 0 | U17: =U16+1 -> 38
A18: =A17+1 -> 39 | C18: Non-Medicaid Contract | P18: 0 | Q18: 0 | R18: 0 | S18: 0 | T18: 0 | U18: =U17+1 -> 39
A19: =A18+1 -> 40 | C19: Brokered Medicaid Contract | P19: =D19+E19+F19 -> 0 | Q19: =G19+H19+I19 -> 0 | R19: =J19+K19+L19 -> 0 | S19: =M19+N19+O19 -> 0 | T19: =SUM(D19:O19) -> 0 | U19: =U18+1 -> 40
C20: Total Passenger Trips for This Mode | D20: =SUM(D16:D19) -> 0 | E20: =SUM(E16:E19) -> 0 | F20: =SUM(F16:F19) -> 0 | G20: =SUM(G16:G19) -> 0 | H20: =SUM(H16:H19) -> 0 | I20: =SUM(I16:I19) -> 0 | J20: =SUM(J16:J19) -> 0 | K20: =SUM(K16:K19) -> 0 | L20: =SUM(L16:L19) -> 0 | M20: =SUM(M16:M19) -> 0 | N20: =SUM(N16:N19) -> 0 | O20: =SUM(O16:O19) -> 0 | P20: 0 | Q20: 0 | R20: 0 | S20: 0 | T20: 0
B21: Fixed Route Directly Operated (MB DO)
A22: =A19+1 -> 41 | C22: Hours | P22: =D22+E22+F22 -> 0 | Q22: =G22+H22+I22 -> 0 | R22: =J22+K22+L22 -> 0 | S22: =M22+N22+O22 -> 0 | T22: =SUM(D22:O22) -> 0 | U22: =U19+1 -> 41
A23: =A22+1 -> 42 | C23: Miles | P23: =D23+E23+F23 -> 0 | Q23: =G23+H23+I23 -> 0 | R23: =J23+K23+L23 -> 0 | S23: =M23+N23+O23 -> 0 | T23: =SUM(D23:O23) -> 0 | U23: =U22+1 -> 42
A24: =A23+1 -> 43 | C24: Passenger Trips: Non-Contract | P24: =D24+E24+F24 -> 0 | Q24: =G24+H24+I24 -> 0 | R24: =J24+K24+L24 -> 0 | S24: =M24+N24+O24 -> 0 | T24: =SUM(D24:O24) -> 0 | U24: =U23+1 -> 43
A25: =A24+1 -> 44 | C25: Medicaid Contract | P25: 0 | Q25: 0 | R25: 0 | S25: 0 | T25: 0 | U25: =U24+1 -> 44
A26: =A25+1 -> 45 | C26: Non-Medicaid Contract | P26: 0 | Q26: 0 | R26: 0 | S26: 0 | T26: 0 | U26: =U25+1 -> 45
A27: =A26+1 -> 46 | C27: Brokered Medicaid Contract | P27: =D27+E27+F27 -> 0 | Q27: =G27+H27+I27 -> 0 | R27: =J27+K27+L27 -> 0 | S27: =M27+N27+O27 -> 0 | T27: =SUM(D27:O27) -> 0 | U27: =U26+1 -> 46
C28: Total Passenger Trips for This Mode | D28: =SUM(D24:D27) -> 0 | E28: =SUM(E24:E27) -> 0 | F28: =SUM(F24:F27) -> 0 | G28: =SUM(G24:G27) -> 0 | H28: =SUM(H24:H27) -> 0 | I28: =SUM(I24:I27) -> 0 | J28: =SUM(J24:J27) -> 0 | K28: =SUM(K24:K27) -> 0 | L28: =SUM(L24:L27) -> 0 | M28: =SUM(M24:M27) -> 0 | N28: =SUM(N24:N27) -> 0 | O28: =SUM(O24:O27) -> 0 | P28: 0 | Q28: 0 | R28: 0 | S28: 0 | T28: 0
B29: Fixed Route Purchased (MB PT)
A30: =A27+1 -> 47 | C30: Hours | P30: =D30+E30+F30 -> 0 | Q30: =G30+H30+I30 -> 0 | R30: =J30+K30+L30 -> 0 | S30: =M30+N30+O30 -> 0 | T30: =SUM(D30:O30) -> 0 | U30: =U27+1 -> 47
A31: =A30+1 -> 48 | C31: Miles | P31: 0 | Q31: 0 | R31: 0 | S31: 0 | T31: 0 | U31: =U30+1 -> 48
A32: =A31+1 -> 49 | C32: Passenger Trips: Non-Contract | P32: 0 | Q32: 0 | R32: 0 | S32: 0 | T32: 0 | U32: =U31+1 -> 49
A33: =A32+1 -> 50 | C33: Medicaid Contract | P33: 0 | Q33: 0 | R33: 0 | S33: 0 | T33: 0 | U33: =U32+1 -> 50
A34: =A33+1 -> 51 | C34: Non-Medicaid Contract | P34: 0 | Q34: 0 | R34: 0 | S34: 0 | T34: 0 | U34: =U33+1 -> 51
A35: =A34+1 -> 52 | C35: Brokered Medicaid Contract | P35: =D35+E35+F35 -> 0 | Q35: =G35+H35+I35 -> 0 | R35: =J35+K35+L35 -> 0 | S35: =M35+N35+O35 -> 0 | T35: =SUM(D35:O35) -> 0 | U35: =U34+1 -> 52
C36: Total Passenger Trips- Other Providers | D36: =SUM(D32:D35) -> 0 | E36: =SUM(E32:E35) -> 0 | F36: =SUM(F32:F35) -> 0 | G36: =SUM(G32:G35) -> 0 | H36: =SUM(H32:H35) -> 0 | I36: =SUM(I32:I35) -> 0 | J36: =SUM(J32:J35) -> 0 | K36: =SUM(K32:K35) -> 0 | L36: =SUM(L32:L35) -> 0 | M36: =SUM(M32:M35) -> 0 | N36: =SUM(N32:N35) -> 0 | O36: =SUM(O32:O35) -> 0 | P36: 0 | Q36: 0 | R36: 0 | S36: 0 | T36: 0
B37: Microtransit (MT DO)
A38: =A35+1 -> 53 | C38: Hours | P38: =D38+E38+F38 -> 0 | Q38: =G38+H38+I38 -> 0 | R38: =J38+K38+L38 -> 0 | S38: =M38+N38+O38 -> 0 | T38: =SUM(D38:O38) -> 0 | U38: =U35+1 -> 53
A39: =A38+1 -> 54 | C39: Miles | P39: 0 | Q39: 0 | R39: 0 | S39: 0 | T39: 0 | U39: =U38+1 -> 54
A40: =A39+1 -> 55 | C40: Passenger Trips: Non-Contract | P40: 0 | Q40: 0 | R40: 0 | S40: 0 | T40: 0 | U40: =U39+1 -> 55
A41: =A40+1 -> 56 | C41: Medicaid Contract | P41: 0 | Q41: 0 | R41: 0 | S41: 0 | T41: 0 | U41: =U40+1 -> 56
A42: =A41+1 -> 57 | C42: Non-Medicaid Contract | P42: =D42+E42+F42 -> 0 | Q42: =G42+H42+I42 -> 0 | R42: =J42+K42+L42 -> 0 | S42: =M42+N42+O42 -> 0 | T42: =SUM(D42:O42) -> 0 | U42: =U41+1 -> 57
A43: =A42+1 -> 58 | C43: Brokered Medicaid Contract | P43: =D43+E43+F43 -> 0 | Q43: =G43+H43+I43 -> 0 | R43: =J43+K43+L43 -> 0 | S43: =M43+N43+O43 -> 0 | T43: =SUM(D43:O43) -> 0 | U43: =U42+1 -> 58
C44: Total Passenger Trips- Other Providers | D44: =SUM(D40:D43) -> 0 | E44: =SUM(E40:E43) -> 0 | F44: =SUM(F40:F43) -> 0 | G44: =SUM(G40:G43) -> 0 | H44: =SUM(H40:H43) -> 0 | I44: =SUM(I40:I43) -> 0 | J44: =SUM(J40:J43) -> 0 | K44: =SUM(K40:K43) -> 0 | L44: =SUM(L40:L43) -> 0 | M44: =SUM(M40:M43) -> 0 | N44: =SUM(N40:N43) -> 0 | O44: =SUM(O40:O43) -> 0 | P44: 0 | Q44: 0 | R44: 0 | S44: 0 | T44: 0
B45: Microtransit (MT PT)
A46: =A43+1 -> 59 | C46: Hours | P46: =D46+E46+F46 -> 0 | Q46: =G46+H46+I46 -> 0 | R46: =J46+K46+L46 -> 0 | S46: =M46+N46+O46 -> 0 | T46: =SUM(D46:O46) -> 0 | U46: =U43+1 -> 59
A47: =A46+1 -> 60 | C47: Miles | P47: 0 | Q47: 0 | R47: 0 | S47: 0 | T47: 0 | U47: =U46+1 -> 60
A48: =A47+1 -> 61 | C48: Passenger Trips: Non-Contract | P48: 0 | Q48: 0 | R48: 0 | S48: 0 | T48: 0 | U48: =U47+1 -> 61
A49: =A48+1 -> 62 | C49: Medicaid Contract | P49: 0 | Q49: 0 | R49: 0 | S49: 0 | T49: 0 | U49: =U48+1 -> 62
A50: =A49+1 -> 63 | C50: Non-Medicaid Contract | P50: 0 | Q50: 0 | R50: 0 | S50: 0 | T50: 0 | U50: =U49+1 -> 63
A51: =A50+1 -> 64 | C51: Brokered Medicaid Contract | P51: =D51+E51+F51 -> 0 | Q51: =G51+H51+I51 -> 0 | R51: =J51+K51+L51 -> 0 | S51: =M51+N51+O51 -> 0 | T51: =SUM(D51:O51) -> 0 | U51: =U50+1 -> 64
C52: Total Passenger Trips- Other Providers | D52: =SUM(D48:D51) -> 0 | E52: =SUM(E48:E51) -> 0 | F52: =SUM(F48:F51) -> 0 | G52: =SUM(G48:G51) -> 0 | H52: =SUM(H48:H51) -> 0 | I52: =SUM(I48:I51) -> 0 | J52: =SUM(J48:J51) -> 0 | K52: =SUM(K48:K51) -> 0 | L52: =SUM(L48:L51) -> 0 | M52: =SUM(M48:M51) -> 0 | N52: =SUM(N48:N51) -> 0 | O52: =SUM(O48:O51) -> 0 | P52: 0 | Q52: 0 | R52: 0 | S52: 0 | T52: 0
B53: Transit Totals
C54: Hours | D54: =SUM(D6+D14+D22+D30+D38+D46) -> 0 | E54: 0 | F54: 0 | G54: 0 | H54: 0 | I54: 0 | J54: 0 | K54: 0 | L54: 0 | M54: 0 | N54: 0 | O54: 0 | P54: =SUM(D54:F54) -> 0 | Q54: =SUM(G54:I54) -> 0 | R54: =SUM(J54:L54) -> 0 | S54: =SUM(M54:O54) -> 0 | T54: =SUM(P54:S54) -> 0
C55: Miles | D55: =SUM(D7+D15+D23+D31+D39+D47) -> 0 | E55: 0 | F55: 0 | G55: 0 | H55: 0 | I55: 0 | J55: 0 | K55: 0 | L55: 0 | M55: 0 | N55: 0 | O55: 0 | P55: =SUM(D55:F55) -> 0 | Q55: =SUM(G55:I55) -> 0 | R55: =SUM(J55:L55) -> 0 | S55: =SUM(M55:O55) -> 0 | T55: =SUM(P55:S55) -> 0
C56: Passenger Trips: Non-Contract | D56: =SUM(D8+D16+D24+D32+D40+D48) -> 0 | E56: 0 | F56: 0 | G56: 0 | H56: 0 | I56: 0 | J56: 0 | K56: 0 | L56: 0 | M56: 0 | N56: 0 | O56: 0 | P56: 0 | Q56: 0 | R56: 0 | S56: 0 | T56: 0
C57: Medicaid Contract | D57: =SUM(D9+D17+D25+D33+D41+D49) -> 0 | E57: 0 | F57: 0 | G57: 0 | H57: 0 | I57: 0 | J57: 0 | K57: 0 | L57: 0 | M57: 0 | N57: 0 | O57: 0 | P57: 0 | Q57: 0 | R57: 0 | S57: 0 | T57: 0
C58: Non-Medicaid Contract | D58: =SUM(D10+D18+D26+D34+D42+D50) -> 0 | E58: 0 | F58: 0 | G58: 0 | H58: 0 | I58: 0 | J58: 0 | K58: 0 | L58: 0 | M58: 0 | N58: 0 | O58: 0 | P58: 0 | Q58: 0 | R58: 0 | S58: 0 | T58: 0
C59: Brokered Medicaid Contract | D59: =SUM(D11+D19+D27+D35+D43+D51) -> 0 | E59: 0 | F59: 0 | G59: 0 | H59: 0 | I59: 0 | J59: 0 | K59: 0 | L59: 0 | M59: 0 | N59: 0 | O59: 0 | P59: =SUM(D59:F59) -> 0 | Q59: =SUM(G59:I59) -> 0 | R59: =SUM(J59:L59) -> 0 | S59: =SUM(M59:O59) -> 0 | T59: =SUM(P59:S59) -> 0
C60: Total Passenger Trips for All Modes | D60: =SUM(D56:D59) -> 0 | E60: =SUM(E56:E59) -> 0 | F60: =SUM(F56:F59) -> 0 | G60: =SUM(G56:G59) -> 0 | H60: =SUM(H56:H59) -> 0 | I60: =SUM(I56:I59) -> 0 | J60: =SUM(J56:J59) -> 0 | K60: =SUM(K56:K59) -> 0 | L60: =SUM(L56:L59) -> 0 | M60: =SUM(M56:M59) -> 0 | N60: =SUM(N56:N59) -> 0 | O60: =SUM(O56:O59) -> 0 | P60: 0 | Q60: 0 | R60: 0 | S60: 0 | T60: 0
D62: A | E62: B | F62: C | G62: D | H62: E | I62: F | J62: G | K62: H | L62: I | M62: J | N62: K | O62: L | P62: M | Q62: N | R62: O | S62: P

Sheet Saturday (hidden)
B1: ="3. SATURDAY: "&Overview!D4 -> 3. SATURDAY:
D2: A | E2: B | F2: C | G2: D | H2: E | I2: F | J2: G | K2: H | L2: I | M2: J | N2: K | O2: L
B3: =Overview!B2 -> FY2024 | D3: July | E3: August | F3: September | G3: October | H3: November | I3: December | J3: January | K3: February | L3: March | M3: April | N3: May | O3: June | P3: Quarter 1 | Q3: Quarter 2 | R3: Quarter 3 | S3: Quarter 4 | T3: YTD Totals
A4: =Weekday!A51+1 -> 65 | C4: Operating Days | P4: =D4+E4+F4 -> 0 | Q4: =G4+H4+I4 -> 0 | R4: =J4+K4+L4 -> 0 | S4: =M4+N4+O4 -> 0 | T4: =SUM(D4:O4) -> 0 | U4: =Weekday!A51+1 -> 65
B5: Demand Response Directly Operated (DR DO)
A6: =A4+1 -> 66 | C6: Hours | P6: =D6+E6+F6 -> 0 | Q6: =G6+H6+I6 -> 0 | R6: =J6+K6+L6 -> 0 | S6: =M6+N6+O6 -> 0 | T6: =SUM(D6:O6) -> 0 | U6: =U4+1 -> 66
A7: =A6+1 -> 67 | C7: Miles | P7: 0 | Q7: 0 | R7: 0 | S7: 0 | T7: =SUM(D7:O7) -> 0 | U7: =U6+1 -> 67
A8: =A7+1 -> 68 | C8: Passenger Trips: Non-Contract | P8: 0 | Q8: 0 | R8: 0 | S8: 0 | T8: =SUM(D8:O8) -> 0 | U8: =U7+1 -> 68
A9: =A8+1 -> 69 | C9: Medicaid Contract | P9: 0 | Q9: 0 | R9: 0 | S9: 0 | T9: =SUM(D9:O9) -> 0 | U9: =U8+1 -> 69
A10: =A9+1 -> 70 | C10: Non-Medicaid Contract | P10: 0 | Q10: 0 | R10: 0 | S10: 0 | T10: =SUM(D10:O10) -> 0 | U10: =U9+1 -> 70
A11: =A10+1 -> 71 | C11: Brokered Medicaid Contract | P11: =D11+E11+F11 -> 0 | Q11: =G11+H11+I11 -> 0 | R11: =J11+K11+L11 -> 0 | S11: =M11+N11+O11 -> 0 | T11: =SUM(D11:O11) -> 0 | U11: =U10+1 -> 71
C12: Total Passenger Trips for This Mode | D12: =SUM(D8:D11) -> 0 | E12: =SUM(E8:E11) -> 0 | F12: 0 | G12: 0 | H12: 0 | I12: 0 | J12: 0 | K12: 0 | L12: 0 | M12: 0 | N12: 0 | O12: 0 | P12: 0 | Q12: 0 | R12: 0 | S12: 0 | T12: =SUM(T8:T10) -> 0
B13: Demand Response Purchased (DR PT)
A14: =A11+1 -> 72 | C14: Hours | P14: =D14+E14+F14 -> 0 | Q14: =G14+H14+I14 -> 0 | R14: =J14+K14+L14 -> 0 | S14: =M14+N14+O14 -> 0 | T14: =SUM(D14:O14) -> 0 | U14: =U11+1 -> 72
A15: =A14+1 -> 73 | C15: Miles | P15: 0 | Q15: 0 | R15: 0 | S15: 0 | T15: 0 | U15: =U14+1 -> 73
A16: =A15+1 -> 74 | C16: Passenger Trips: Non-Contract | P16: 0 | Q16: 0 | R16: 0 | S16: 0 | T16: 0 | U16: =U15+1 -> 74
A17: =A16+1 -> 75 | C17: Medicaid Contract | P17: 0 | Q17: 0 | R17: 0 | S17: 0 | T17: 0 | U17: =U16+1 -> 75
A18: =A17+1 -> 76 | C18: Non-Medicaid Contract | P18: 0 | Q18: 0 | R18: 0 | S18: 0 | T18: 0 | U18: =U17+1 -> 76
A19: =A18+1 -> 77 | C19: Brokered Medicaid Contract | P19: =D19+E19+F19 -> 0 | Q19: =G19+H19+I19 -> 0 | R19: =J19+K19+L19 -> 0 | S19: =M19+N19+O19 -> 0 | T19: =SUM(D19:O19) -> 0 | U19: =U18+1 -> 77
C20: Total Passenger Trips for This Mode | D20: =SUM(D16:D19) -> 0 | E20: =SUM(E16:E19) -> 0 | F20: =SUM(F16:F19) -> 0 | G20: =SUM(G16:G19) -> 0 | H20: =SUM(H16:H19) -> 0 | I20: =SUM(I16:I19) -> 0 | J20: =SUM(J16:J19) -> 0 | K20: =SUM(K16:K19) -> 0 | L20: =SUM(L16:L19) -> 0 | M20: =SUM(M16:M19) -> 0 | N20: =SUM(N16:N19) -> 0 | O20: =SUM(O16:O19) -> 0 | P20: 0 | Q20: 0 | R20: 0 | S20: 0 | T20: 0
B21: Fixed Route Directly Operated (MB DO)
A22: =A19+1 -> 78 | C22: Hours | P22: =D22+E22+F22 -> 0 | Q22: =G22+H22+I22 -> 0 | R22: =J22+K22+L22 -> 0 | S22: =M22+N22+O22 -> 0 | T22: =SUM(D22:O22) -> 0 | U22: =U19+1 -> 78
A23: =A22+1 -> 79 | C23: Miles | P23: 0 | Q23: 0 | R23: 0 | S23: 0 | T23: 0 | U23: =U22+1 -> 79
A24: =A23+1 -> 80 | C24: Passenger Trips: Non-Contract | P24: 0 | Q24: 0 | R24: 0 | S24: 0 | T24: 0 | U24: =U23+1 -> 80
A25: =A24+1 -> 81 | C25: Medicaid Contract | P25: 0 | Q25: 0 | R25: 0 | S25: 0 | T25: 0 | U25: =U24+1 -> 81
A26: =A25+1 -> 82 | C26: Non-Medicaid Contract | P26: 0 | Q26: 0 | R26: 0 | S26: 0 | T26: 0 | U26: =U25+1 -> 82
A27: =A26+1 -> 83 | C27: Brokered Medicaid Contract | P27: =D27+E27+F27 -> 0 | Q27: =G27+H27+I27 -> 0 | R27: =J27+K27+L27 -> 0 | S27: =M27+N27+O27 -> 0 | T27: =SUM(D27:O27) -> 0 | U27: =U26+1 -> 83
C28: Total Passenger Trips for This Mode | D28: =SUM(D24:D27) -> 0 | E28: =SUM(E24:E27) -> 0 | F28: =SUM(F24:F27) -> 0 | G28: =SUM(G24:G27) -> 0 | H28: =SUM(H24:H27) -> 0 | I28: =SUM(I24:I27) -> 0 | J28: =SUM(J24:J27) -> 0 | K28: =SUM(K24:K27) -> 0 | L28: =SUM(L24:L27) -> 0 | M28: =SUM(M24:M27) -> 0 | N28: =SUM(N24:N27) -> 0 | O28: =SUM(O24:O27) -> 0 | P28: 0 | Q28: 0 | R28: 0 | S28: 0 | T28: 0
B29: Fixed Route Purchased (MB PT)
A30: =A27+1 -> 84 | C30: Hours | P30: =D30+E30+F30 -> 0 | Q30: =G30+H30+I30 -> 0 | R30: =J30+K30+L30 -> 0 | S30: =M30+N30+O30 -> 0 | T30: =SUM(D30:O30) -> 0 | U30: =U27+1 -> 84
A31: =A30+1 -> 85 | C31: Miles | P31: 0 | Q31: 0 | R31: 0 | S31: 0 | T31: 0 | U31: =U30+1 -> 85
A32: =A31+1 -> 86 | C32: Passenger Trips: Non-Contract | P32: 0 | Q32: 0 | R32: 0 | S32: 0 | T32: 0 | U32: =U31+1 -> 86
A33: =A32+1 -> 87 | C33: Medicaid Contract | P33: 0 | Q33: 0 | R33: 0 | S33: 0 | T33: 0 | U33: =U32+1 -> 87
A34: =A33+1 -> 88 | C34: Non-Medicaid Contract | P34: 0 | Q34: 0 | R34: 0 | S34: 0 | T34: 0 | U34: =U33+1 -> 88
A35: =A34+1 -> 89 | C35: Brokered Medicaid Contract | P35: =D35+E35+F35 -> 0 | Q35: =G35+H35+I35 -> 0 | R35: =J35+K35+L35 -> 0 | S35: =M35+N35+O35 -> 0 | T35: =SUM(D35:O35) -> 0 | U35: =U34+1 -> 89
C36: Total Passenger Trips- Other Providers | D36: =SUM(D32:D35) -> 0 | E36: =SUM(E32:E35) -> 0 | F36: =SUM(F32:F35) -> 0 | G36: =SUM(G32:G35) -> 0 | H36: =SUM(H32:H35) -> 0 | I36: =SUM(I32:I35) -> 0 | J36: =SUM(J32:J35) -> 0 | K36: =SUM(K32:K35) -> 0 | L36: =SUM(L32:L35) -> 0 | M36: =SUM(M32:M35) -> 0 | N36: =SUM(N32:N35) -> 0 | O36: =SUM(O32:O35) -> 0 | P36: 0 | Q36: 0 | R36: 0 | S36: 0 | T36: 0
B37: Microtransit (MT DO)
A38: =A35+1 -> 90 | C38: Hours | P38: =D38+E38+F38 -> 0 | Q38: =G38+H38+I38 -> 0 | R38: =J38+K38+L38 -> 0 | S38: =M38+N38+O38 -> 0 | T38: =SUM(D38:O38) -> 0 | U38: =U35+1 -> 90
A39: =A38+1 -> 91 | C39: Miles | P39: 0 | Q39: 0 | R39: 0 | S39: 0 | T39: 0 | U39: =U38+1 -> 91
A40: =A39+1 -> 92 | C40: Passenger Trips: Non-Contract | P40: 0 | Q40: 0 | R40: 0 | S40: 0 | T40: 0 | U40: =U39+1 -> 92
A41: =A40+1 -> 93 | C41: Medicaid Contract | P41: 0 | Q41: 0 | R41: 0 | S41: 0 | T41: 0 | U41: =U40+1 -> 93
A42: =A41+1 -> 94 | C42: Non-Medicaid Contract | P42: 0 | Q42: 0 | R42: 0 | S42: 0 | T42: 0 | U42: =U41+1 -> 94
A43: =A42+1 -> 95 | C43: Brokered Medicaid Contract | P43: =D43+E43+F43 -> 0 | Q43: =G43+H43+I43 -> 0 | R43: =J43+K43+L43 -> 0 | S43: =M43+N43+O43 -> 0 | T43: =SUM(D43:O43) -> 0 | U43: =U42+1 -> 95
C44: Total Passenger Trips- Other Providers | D44: =SUM(D40:D43) -> 0 | E44: =SUM(E40:E43) -> 0 | F44: =SUM(F40:F43) -> 0 | G44: =SUM(G40:G43) -> 0 | H44: =SUM(H40:H43) -> 0 | I44: =SUM(I40:I43) -> 0 | J44: =SUM(J40:J43) -> 0 | K44: =SUM(K40:K43) -> 0 | L44: =SUM(L40:L43) -> 0 | M44: =SUM(M40:M43) -> 0 | N44: =SUM(N40:N43) -> 0 | O44: =SUM(O40:O43) -> 0 | P44: 0 | Q44: 0 | R44: 0 | S44: 0 | T44: 0
B45: Microtransit (MT PT)
A46: =A43+1 -> 96 | C46: Hours | P46: =D46+E46+F46 -> 0 | Q46: =G46+H46+I46 -> 0 | R46: =J46+K46+L46 -> 0 | S46: =M46+N46+O46 -> 0 | T46: =SUM(D46:O46) -> 0 | U46: =U43+1 -> 96
A47: =A46+1 -> 97 | C47: Miles | P47: 0 | Q47: 0 | R47: 0 | S47: 0 | T47: 0 | U47: =U46+1 -> 97
A48: =A47+1 -> 98 | C48: Passenger Trips: Non-Contract | P48: 0 | Q48: 0 | R48: 0 | S48: 0 | T48: 0 | U48: =U47+1 -> 98
A49: =A48+1 -> 99 | C49: Medicaid Contract | P49: 0 | Q49: 0 | R49: 0 | S49: 0 | T49: 0 | U49: =U48+1 -> 99
A50: =A49+1 -> 100 | C50: Non-Medicaid Contract | P50: 0 | Q50: 0 | R50: 0 | S50: 0 | T50: 0 | U50: =U49+1 -> 100
A51: =A50+1 -> 101 | C51: Brokered Medicaid Contract | P51: =D51+E51+F51 -> 0 | Q51: =G51+H51+I51 -> 0 | R51: =J51+K51+L51 -> 0 | S51: =M51+N51+O51 -> 0 | T51: =SUM(D51:O51) -> 0 | U51: =U50+1 -> 101
C52: Total Passenger Trips- Other Providers | D52: =SUM(D48:D51) -> 0 | E52: =SUM(E48:E51) -> 0 | F52: =SUM(F48:F51) -> 0 | G52: =SUM(G48:G51) -> 0 | H52: =SUM(H48:H51) -> 0 | I52: =SUM(I48:I51) -> 0 | J52: =SUM(J48:J51) -> 0 | K52: =SUM(K48:K51) -> 0 | L52: =SUM(L48:L51) -> 0 | M52: =SUM(M48:M51) -> 0 | N52: =SUM(N48:N51) -> 0 | O52: =SUM(O48:O51) -> 0 | P52: 0 | Q52: 0 | R52: 0 | S52: 0 | T52: 0
B53: Transit Totals
C54: Hours | D54: =SUM(D6+D14+D22+D30+D38+D46) -> 0 | E54: 0 | F54: 0 | G54: 0 | H54: 0 | I54: 0 | J54: 0 | K54: 0 | L54: 0 | M54: 0 | N54: 0 | O54: 0 | P54: =SUM(D54:F54) -> 0 | Q54: =SUM(G54:I54) -> 0 | R54: =SUM(J54:L54) -> 0 | S54: =SUM(M54:O54) -> 0 | T54: =SUM(P54:S54) -> 0
C55: Miles | D55: =SUM(D7+D15+D23+D31+D39+D47) -> 0 | E55: 0 | F55: 0 | G55: 0 | H55: 0 | I55: 0 | J55: 0 | K55: 0 | L55: 0 | M55: 0 | N55: 0 | O55: 0 | P55: =SUM(D55:F55) -> 0 | Q55: =SUM(G55:I55) -> 0 | R55: =SUM(J55:L55) -> 0 | S55: =SUM(M55:O55) -> 0 | T55: =SUM(P55:S55) -> 0
C56: Passenger Trips: Non-Contract | D56: =SUM(D8+D16+D24+D32+D40+D48) -> 0 | E56: 0 | F56: 0 | G56: 0 | H56: 0 | I56: 0 | J56: 0 | K56: 0 | L56: 0 | M56: 0 | N56: 0 | O56: 0 | P56: 0 | Q56: 0 | R56: 0 | S56: 0 | T56: 0
C57: Medicaid Contract | D57: =SUM(D9+D17+D25+D33+D41+D49) -> 0 | E57: 0 | F57: 0 | G57: 0 | H57: 0 | I57: 0 | J57: 0 | K57: 0 | L57: 0 | M57: 0 | N57: 0 | O57: 0 | P57: 0 | Q57: 0 | R57: 0 | S57: 0 | T57: 0
C58: Non-Medicaid Contract | D58: =SUM(D10+D18+D26+D34+D42+D50) -> 0 | E58: 0 | F58: 0 | G58: 0 | H58: 0 | I58: 0 | J58: 0 | K58: 0 | L58: 0 | M58: 0 | N58: 0 | O58: 0 | P58: 0 | Q58: 0 | R58: 0 | S58: 0 | T58: 0
C59: Brokered Medicaid Contract | D59: =SUM(D19+D11+D27+D35+D43+D51) -> 0 | E59: 0 | F59: 0 | G59: 0 | H59: 0 | I59: 0 | J59: 0 | K59: 0 | L59: 0 | M59: 0 | N59: 0 | O59: 0 | P59: =SUM(D59:F59) -> 0 | Q59: =SUM(G59:I59) -> 0 | R59: =SUM(J59:L59) -> 0 | S59: =SUM(M59:O59) -> 0 | T59: =SUM(P59:S59) -> 0
C60: Total Passenger Trips for All Modes | D60: =SUM(D56:D59) -> 0 | E60: =SUM(E56:E59) -> 0 | F60: =SUM(F56:F59) -> 0 | G60: =SUM(G56:G59) -> 0 | H60: =SUM(H56:H59) -> 0 | I60: =SUM(I56:I59) -> 0 | J60: =SUM(J56:J59) -> 0 | K60: =SUM(K56:K59) -> 0 | L60: =SUM(L56:L59) -> 0 | M60: =SUM(M56:M59) -> 0 | N60: =SUM(N56:N59) -> 0 | O60: =SUM(O56:O59) -> 0 | P60: 0 | Q60: 0 | R60: 0 | S60: 0 | T60: 0
D62: A | E62: B | F62: C | G62: D | H62: E | I62: F | J62: G | K62: H | L62: I | M62: J | N62: K | O62: L

Sheet Sunday (hidden)
B1: ="4. SUNDAY: "&Overview!D4 -> 4. SUNDAY:
D2: A | E2: B | F2: C | G2: D | H2: E | I2: F | J2: G | K2: H | L2: I | M2: J | N2: K | O2: L
B3: =Overview!B2 -> FY2024 | D3: July | E3: August | F3: September | G3: October | H3: November | I3: December | J3: January | K3: February | L3: March | M3: April | N3: May | O3: June | P3: Quarter 1 | Q3: Quarter 2 | R3: Quarter 3 | S3: Quarter 4 | T3: YTD Totals
A4: =Saturday!A51+1 -> 102 | C4: Operating Days | P4: =D4+E4+F4 -> 0 | Q4: =G4+H4+I4 -> 0 | R4: =J4+K4+L4 -> 0 | S4: =M4+N4+O4 -> 0 | T4: =SUM(D4:O4) -> 0 | U4: =Saturday!A51+1 -> 102
B5: Demand Response Directly Operated (DR DO)
A6: =A4+1 -> 103 | C6: Hours | P6: =D6+E6+F6 -> 0 | Q6: =G6+H6+I6 -> 0 | R6: =J6+K6+L6 -> 0 | S6: =M6+N6+O6 -> 0 | T6: =SUM(D6:O6) -> 0 | U6: =U4+1 -> 103
A7: =A6+1 -> 104 | C7: Miles | P7: 0 | Q7: 0 | R7: 0 | S7: 0 | T7: =SUM(D7:O7) -> 0 | U7: =U6+1 -> 104
A8: =A7+1 -> 105 | C8: Passenger Trips: Non-Contract | P8: 0 | Q8: 0 | R8: 0 | S8: 0 | T8: =SUM(D8:O8) -> 0 | U8: =U7+1 -> 105
A9: =A8+1 -> 106 | C9: Medicaid Contract | P9: 0 | Q9: 0 | R9: 0 | S9: 0 | T9: =SUM(D9:O9) -> 0 | U9: =U8+1 -> 106
A10: =A9+1 -> 107 | C10: Non-Medicaid Contract | P10: 0 | Q10: 0 | R10: 0 | S10: 0 | T10: =SUM(D10:O10) -> 0 | U10: =U9+1 -> 107
A11: =A10+1 -> 108 | C11: Brokered Medicaid Contract | P11: 0 | Q11: 0 | R11: 0 | S11: 0 | T11: =SUM(D11:O11) -> 0 | U11: =U10+1 -> 108
C12: Total Passenger Trips for This Mode | D12: =SUM(D8:D11) -> 0 | E12: =SUM(E8:E11) -> 0 | F12: 0 | G12: 0 | H12: 0 | I12: 0 | J12: 0 | K12: 0 | L12: 0 | M12: 0 | N12: 0 | O12: 0 | P12: 0 | Q12: 0 | R12: 0 | S12: 0 | T12: =SUM(T8:T10) -> 0
B13: Demand Response Purchased (DR PT)
A14: =A11+1 -> 109 | C14: Hours | P14: =D14+E14+F14 -> 0 | Q14: =G14+H14+I14 -> 0 | R14: =J14+K14+L14 -> 0 | S14: =M14+N14+O14 -> 0 | T14: =SUM(D14:O14) -> 0 | U14: =U11+1 -> 109
A15: =A14+1 -> 110 | C15: Miles | P15: 0 | Q15: 0 | R15: 0 | S15: 0 | T15: 0 | U15: =U14+1 -> 110
A16: =A15+1 -> 111 | C16: Passenger Trips: Non-Contract | P16: 0 | Q16: 0 | R16: 0 | S16: 0 | T16: 0 | U16: =U15+1 -> 111
A17: =A16+1 -> 112 | C17: Medicaid Contract | P17: 0 | Q17: 0 | R17: 0 | S17: 0 | T17: 0 | U17: =U16+1 -> 112
A18: =A17+1 -> 113 | C18: Non-Medicaid Contract | P18: 0 | Q18: 0 | R18: 0 | S18: 0 | T18: 0 | U18: =U17+1 -> 113
A19: =A18+1 -> 114 | C19: Brokered Medicaid Contract | P19: 0 | Q19: 0 | R19: 0 | S19: 0 | T19: 0 | U19: =U18+1 -> 114
C20: Total Passenger Trips for This Mode | D20: =SUM(D16:D19) -> 0 | E20: =SUM(E16:E19) -> 0 | F20: =SUM(F16:F19) -> 0 | G20: =SUM(G16:G19) -> 0 | H20: =SUM(H16:H19) -> 0 | I20: =SUM(I16:I19) -> 0 | J20: =SUM(J16:J19) -> 0 | K20: =SUM(K16:K19) -> 0 | L20: =SUM(L16:L19) -> 0 | M20: =SUM(M16:M19) -> 0 | N20: =SUM(N16:N19) -> 0 | O20: =SUM(O16:O19) -> 0 | P20: 0 | Q20: 0 | R20: 0 | S20: 0 | T20: 0
B21: Fixed Route Directly Operated (MB DO)
A22: =A19+1 -> 115 | C22: Hours | P22: =D22+E22+F22 -> 0 | Q22: =G22+H22+I22 -> 0 | R22: =J22+K22+L22 -> 0 | S22: =M22+N22+O22 -> 0 | T22: =SUM(D22:O22) -> 0 | U22: =U19+1 -> 115
A23: =A22+1 -> 116 | C23: Miles | P23: 0 | Q23: 0 | R23: 0 | S23: 0 | T23: 0 | U23: =U22+1 -> 116
A24: =A23+1 -> 117 | C24: Passenger Trips: Non-Contract | P24: 0 | Q24: 0 | R24: 0 | S24: 0 | T24: 0 | U24: =U23+1 -> 117
A25: =A24+1 -> 118 | C25: Medicaid Contract | P25: 0 | Q25: 0 | R25: 0 | S25: 0 | T25: 0 | U25: =U24+1 -> 118
A26: =A25+1 -> 119 | C26: Non-Medicaid Contract | P26: 0 | Q26: 0 | R26: 0 | S26: 0 | T26: 0 | U26: =U25+1 -> 119
A27: =A26+1 -> 120 | C27: Brokered Medicaid Contract | P27: 0 | Q27: 0 | R27: 0 | S27: 0 | T27: 0 | U27: =U26+1 -> 120
C28: Total Passenger Trips for This Mode | D28: =SUM(D24:D27) -> 0 | E28: =SUM(E24:E27) -> 0 | F28: =SUM(F24:F27) -> 0 | G28: =SUM(G24:G27) -> 0 | H28: =SUM(H24:H27) -> 0 | I28: =SUM(I24:I27) -> 0 | J28: =SUM(J24:J27) -> 0 | K28: =SUM(K24:K27) -> 0 | L28: =SUM(L24:L27) -> 0 | M28: =SUM(M24:M27) -> 0 | N28: =SUM(N24:N27) -> 0 | O28: =SUM(O24:O27) -> 0 | P28: 0 | Q28: 0 | R28: 0 | S28: 0 | T28: 0
B29: Fixed Route Purchased (MB PT)
A30: =A27+1 -> 121 | C30: Hours | P30: =D30+E30+F30 -> 0 | Q30: =G30+H30+I30 -> 0 | R30: =J30+K30+L30 -> 0 | S30: =M30+N30+O30 -> 0 | T30: =SUM(D30:O30) -> 0 | U30: =U27+1 -> 121
A31: =A30+1 -> 122 | C31: Miles | P31: 0 | Q31: 0 | R31: 0 | S31: 0 | T31: 0 | U31: =U30+1 -> 122
A32: =A31+1 -> 123 | C32: Passenger Trips: Non-Contract | P32: 0 | Q32: 0 | R32: 0 | S32: 0 | T32: 0 | U32: =U31+1 -> 123
A33: =A32+1 -> 124 | C33: Medicaid Contract | P33: 0 | Q33: 0 | R33: 0 | S33: 0 | T33: 0 | U33: =U32+1 -> 124
A34: =A33+1 -> 125 | C34: Non-Medicaid Contract | P34: 0 | Q34: 0 | R34: 0 | S34: 0 | T34: 0 | U34: =U33+1 -> 125
A35: =A34+1 -> 126 | C35: Brokered Medicaid Contract | P35: 0 | Q35: 0 | R35: 0 | S35: 0 | T35: 0 | U35: =U34+1 -> 126
C36: Total Passenger Trips- Other Providers | D36: =SUM(D32:D35) -> 0 | E36: =SUM(E32:E35) -> 0 | F36: =SUM(F32:F35) -> 0 | G36: =SUM(G32:G35) -> 0 | H36: =SUM(H32:H35) -> 0 | I36: =SUM(I32:I35) -> 0 | J36: =SUM(J32:J35) -> 0 | K36: =SUM(K32:K35) -> 0 | L36: =SUM(L32:L35) -> 0 | M36: =SUM(M32:M35) -> 0 | N36: =SUM(N32:N35) -> 0 | O36: =SUM(O32:O35) -> 0 | P36: 0 | Q36: 0 | R36: 0 | S36: 0 | T36: 0
B37: Microtransit (MT DO)
A38: =A34+1 -> 126 | C38: Hours | P38: =D38+E38+F38 -> 0 | Q38: =G38+H38+I38 -> 0 | R38: =J38+K38+L38 -> 0 | S38: =M38+N38+O38 -> 0 | T38: =SUM(D38:O38) -> 0 | U38: =U34+1 -> 126
A39: =A38+1 -> 127 | C39: Miles | P39: 0 | Q39: 0 | R39: 0 | S39: 0 | T39: 0 | U39: =U38+1 -> 127
A40: =A39+1 -> 128 | C40: Passenger Trips: Non-Contract | P40: 0 | Q40: 0 | R40: 0 | S40: 0 | T40: 0 | U40: =U39+1 -> 128
A41: =A40+1 -> 129 | C41: Medicaid Contract | P41: 0 | Q41: 0 | R41: 0 | S41: 0 | T41: 0 | U41: =U40+1 -> 129
A42: =A41+1 -> 130 | C42: Non-Medicaid Contract | P42: 0 | Q42: 0 | R42: 0 | S42: 0 | T42: 0 | U42: =U41+1 -> 130
A43: =A42+1 -> 131 | C43: Brokered Medicaid Contract | P43: 0 | Q43: 0 | R43: 0 | S43: 0 | T43: 0
C44: Total Passenger Trips- Other Providers | D44: =SUM(D40:D43) -> 0 | E44: =SUM(E40:E43) -> 0 | F44: =SUM(F40:F43) -> 0 | G44: =SUM(G40:G43) -> 0 | H44: =SUM(H40:H43) -> 0 | I44: =SUM(I40:I43) -> 0 | J44: =SUM(J40:J43) -> 0 | K44: =SUM(K40:K43) -> 0 | L44: =SUM(L40:L43) -> 0 | M44: =SUM(M40:M43) -> 0 | N44: =SUM(N40:N43) -> 0 | O44: =SUM(O40:O43) -> 0 | P44: 0 | Q44: 0 | R44: 0 | S44: 0 | T44: 0
B45: Microtransit (MT PT)
A46: =A42+1 -> 131 | C46: Hours | P46: =D46+E46+F46 -> 0 | Q46: =G46+H46+I46 -> 0 | R46: =J46+K46+L46 -> 0 | S46: =M46+N46+O46 -> 0 | T46: =SUM(D46:O46) -> 0 | U46: =U42+1 -> 131
A47: =A46+1 -> 132 | C47: Miles | P47: 0 | Q47: 0 | R47: 0 | S47: 0 | T47: 0 | U47: =U46+1 -> 132
A48: =A47+1 -> 133 | C48: Passenger Trips: Non-Contract | P48: 0 | Q48: 0 | R48: 0 | S48: 0 | T48: 0 | U48: =U47+1 -> 133
A49: =A48+1 -> 134 | C49: Medicaid Contract | P49: 0 | Q49: 0 | R49: 0 | S49: 0 | T49: 0 | U49: =U48+1 -> 134
A50: =A49+1 -> 135 | C50: Non-Medicaid Contract | P50: 0 | Q50: 0 | R50: 0 | S50: 0 | T50: 0 | U50: =U49+1 -> 135
C51: Brokered Medicaid Contract | P51: 0 | Q51: 0 | R51: 0 | S51: 0 | T51: 0
C52: Total Passenger Trips- Other Providers | D52: =SUM(D48:D51) -> 0 | E52: =SUM(E48:E51) -> 0 | F52: =SUM(F48:F51) -> 0 | G52: =SUM(G48:G51) -> 0 | H52: =SUM(H48:H51) -> 0 | I52: =SUM(I48:I51) -> 0 | J52: =SUM(J48:J51) -> 0 | K52: =SUM(K48:K51) -> 0 | L52: =SUM(L48:L51) -> 0 | M52: =SUM(M48:M51) -> 0 | N52: =SUM(N48:N51) -> 0 | O52: =SUM(O48:O51) -> 0 | P52: 0 | Q52: 0 | R52: 0 | S52: 0 | T52: 0
B53: Transit Totals
C54: Hours | D54: =SUM(D6+D14+D22+D30+D38+D46) -> 0 | E54: 0 | F54: 0 | G54: 0 | H54: 0 | I54: 0 | J54: 0 | K54: 0 | L54: 0 | M54: 0 | N54: 0 | O54: 0 | P54: =SUM(D54:F54) -> 0 | Q54: =SUM(G54:I54) -> 0 | R54: =SUM(J54:L54) -> 0 | S54: =SUM(M54:O54) -> 0 | T54: =SUM(P54:S54) -> 0
C55: Miles | D55: =SUM(D7+D15+D23+D31+D39+D47) -> 0 | E55: 0 | F55: 0 | G55: 0 | H55: 0 | I55: 0 | J55: 0 | K55: 0 | L55: 0 | M55: 0 | N55: 0 | O55: 0 | P55: =SUM(D55:F55) -> 0 | Q55: =SUM(G55:I55) -> 0 | R55: =SUM(J55:L55) -> 0 | S55: =SUM(M55:O55) -> 0 | T55: =SUM(P55:S55) -> 0
C56: Passenger Trips: Non-Contract | D56: =SUM(D8+D16+D24+D32+D40+D48) -> 0 | E56: 0 | F56: 0 | G56: 0 | H56: 0 | I56: 0 | J56: 0 | K56: 0 | L56: 0 | M56: 0 | N56: 0 | O56: 0 | P56: 0 | Q56: 0 | R56: 0 | S56: 0 | T56: 0
C57: Medicaid Contract | D57: =SUM(D9+D17+D25+D33+D41+D49) -> 0 | E57: 0 | F57: 0 | G57: 0 | H57: 0 | I57: 0 | J57: 0 | K57: 0 | L57: 0 | M57: 0 | N57: 0 | O57: 0 | P57: 0 | Q57: 0 | R57: 0 | S57: 0 | T57: 0
C58: Non-Medicaid Contract | D58: =SUM(D10+D18+D26+D34+D42+D50) -> 0 | E58: 0 | F58: 0 | G58: 0 | H58: 0 | I58: 0 | J58: 0 | K58: 0 | L58: 0 | M58: 0 | N58: 0 | O58: 0 | P58: 0 | Q58: 0 | R58: 0 | S58: 0 | T58: 0
C59: Brokered Medicaid Contract | D59: =SUM(D11+D19+D27+D35+D43+D51) -> 0 | E59: 0 | F59: 0 | G59: 0 | H59: 0 | I59: 0 | J59: 0 | K59: 0 | L59: 0 | M59: 0 | N59: 0 | O59: 0 | P59: =SUM(D59:F59) -> 0 | Q59: =SUM(G59:I59) -> 0 | R59: =SUM(J59:L59) -> 0 | S59: =SUM(M59:O59) -> 0 | T59: =SUM(P59:S59) -> 0
C60: Total Passenger Trips for All Modes | D60: =SUM(D56:D59) -> 0 | E60: =SUM(E56:E59) -> 0 | F60: =SUM(F56:F59) -> 0 | G60: =SUM(G56:G59) -> 0 | H60: =SUM(H56:H59) -> 0 | I60: =SUM(I56:I59) -> 0 | J60: =SUM(J56:J59) -> 0 | K60: =SUM(K56:K59) -> 0 | L60: =SUM(L56:L59) -> 0 | M60: =SUM(M56:M59) -> 0 | N60: =SUM(N56:N59) -> 0 | O60: =SUM(O56:O59) -> 0 | P60: 0 | Q60: 0 | R60: 0 | S60: 0 | T60: 0
D62: A | E62: B | F62: C | G62: D | H62: E | I62: F | J62: G | K62: H | L62: I | M62: J | N62: K | O62: L

Sheet Weekly Totals (hidden)
B1: ="WEEKLY TOTALS: "&Overview!D4 -> WEEKLY TOTALS:
B2: NO DATA ENTRY ON THIS FORM
B3: =Overview!B2 -> FY2024 | D3: July | E3: August | F3: September | G3: October | H3: November | I3: December | J3: January | K3: February | L3: March | M3: April | N3: May | O3: June | P3: Quarter 1 | Q3: Quarter 2 | R3: Quarter 3 | S3: Quarter 4 | T3: YTD Totals
C4: Operating Days | D4: =Weekday!D4+Saturday!D4+Sunday!D4 -> 0 | E4: =Weekday!E4+Saturday!E4+Sunday!E4 -> 0 | F4: =Weekday!F4+Saturday!F4+Sunday!F4 -> 0 | G4: =Weekday!G4+Saturday!G4+Sunday!G4 -> 0 | H4: =Weekday!H4+Saturday!H4+Sunday!H4 -> 0 | I4: =Weekday!I4+Saturday!I4+Sunday!I4 -> 0 | J4: =Weekday!J4+Saturday!J4+Sunday!J4 -> 0 | K4: =Weekday!K4+Saturday!K4+Sunday!K4 -> 0 | L4: =Weekday!L4+Saturday!L4+Sunday!L4 -> 0 | M4: =Weekday!M4+Saturday!M4+Sunday!M4 -> 0 | N4: =Weekday!N4+Saturday!N4+Sunday!N4 -> 0 | O4: =Weekday!O4+Saturday!O4+Sunday!O4 -> 0 | P4: =D4+E4+F4 -> 0 | Q4: =G4+H4+I4 -> 0 | R4: =J4+K4+L4 -> 0 | S4: =M4+N4+O4 -> 0 | T4: =SUM(D4:O4) -> 0
B5: Demand Response Directly Operated (DR DO)
C6: Hours | D6: =Weekday!D6+Saturday!D6+Sunday!D6 -> 0 | E6: =Weekday!E6+Saturday!E6+Sunday!E6 -> 0 | F6: =Weekday!F6+Saturday!F6+Sunday!F6 -> 0 | G6: =Weekday!G6+Saturday!G6+Sunday!G6 -> 0 | H6: =Weekday!H6+Saturday!H6+Sunday!H6 -> 0 | I6: =Weekday!I6+Saturday!I6+Sunday!I6 -> 0 | J6: =Weekday!J6+Saturday!J6+Sunday!J6 -> 0 | K6: =Weekday!K6+Saturday!K6+Sunday!K6 -> 0 | L6: =Weekday!L6+Saturday!L6+Sunday!L6 -> 0 | M6: =Weekday!M6+Saturday!M6+Sunday!M6 -> 0 | N6: =Weekday!N6+Saturday!N6+Sunday!N6 -> 0 | O6: =Weekday!O6+Saturday!O6+Sunday!O6 -> 0 | P6: =D6+E6+F6 -> 0 | Q6: =G6+H6+I6 -> 0 | R6: =J6+K6+L6 -> 0 | S6: =M6+N6+O6 -> 0 | T6: =SUM(D6:O6) -> 0
C7: Miles | D7: =Weekday!D7+Saturday!D7+Sunday!D7 -> 0 | E7: =Weekday!E7+Saturday!E7+Sunday!E7 -> 0 | F7: =Weekday!F7+Saturday!F7+Sunday!F7 -> 0 | G7: =Weekday!G7+Saturday!G7+Sunday!G7 -> 0 | H7: =Weekday!H7+Saturday!H7+Sunday!H7 -> 0 | I7: =Weekday!I7+Saturday!I7+Sunday!I7 -> 0 | J7: =Weekday!J7+Saturday!J7+Sunday!J7 -> 0 | K7: =Weekday!K7+Saturday!K7+Sunday!K7 -> 0 | L7: =Weekday!L7+Saturday!L7+Sunday!L7 -> 0 | M7: =Weekday!M7+Saturday!M7+Sunday!M7 -> 0 | N7: =Weekday!N7+Saturday!N7+Sunday!N7 -> 0 | O7: =Weekday!O7+Saturday!O7+Sunday!O7 -> 0 | P7: 0 | Q7: 0 | R7: 0 | S7: 0 | T7: 0
C8: Passenger Trips: Non-Contract | D8: =Weekday!D8+Saturday!D8+Sunday!D8 -> 0 | E8: =Weekday!E8+Saturday!E8+Sunday!E8 -> 0 | F8: =Weekday!F8+Saturday!F8+Sunday!F8 -> 0 | G8: =Weekday!G8+Saturday!G8+Sunday!G8 -> 0 | H8: =Weekday!H8+Saturday!H8+Sunday!H8 -> 0 | I8: =Weekday!I8+Saturday!I8+Sunday!I8 -> 0 | J8: =Weekday!J8+Saturday!J8+Sunday!J8 -> 0 | K8: =Weekday!K8+Saturday!K8+Sunday!K8 -> 0 | L8: =Weekday!L8+Saturday!L8+Sunday!L8 -> 0 | M8: =Weekday!M8+Saturday!M8+Sunday!M8 -> 0 | N8: =Weekday!N8+Saturday!N8+Sunday!N8 -> 0 | O8: =Weekday!O8+Saturday!O8+Sunday!O8 -> 0 | P8: 0 | Q8: 0 | R8: 0 | S8: 0 | T8: 0
C9: Medicaid Contract | D9: =Weekday!D9+Saturday!D9+Sunday!D9 -> 0 | E9: =Weekday!E9+Saturday!E9+Sunday!E9 -> 0 | F9: =Weekday!F9+Saturday!F9+Sunday!F9 -> 0 | G9: =Weekday!G9+Saturday!G9+Sunday!G9 -> 0 | H9: =Weekday!H9+Saturday!H9+Sunday!H9 -> 0 | I9: =Weekday!I9+Saturday!I9+Sunday!I9 -> 0 | J9: =Weekday!J9+Saturday!J9+Sunday!J9 -> 0 | K9: =Weekday!K9+Saturday!K9+Sunday!K9 -> 0 | L9: =Weekday!L9+Saturday!L9+Sunday!L9 -> 0 | M9: =Weekday!M9+Saturday!M9+Sunday!M9 -> 0 | N9: =Weekday!N9+Saturday!N9+Sunday!N9 -> 0 | O9: =Weekday!O9+Saturday!O9+Sunday!O9 -> 0 | P9: 0 | Q9: 0 | R9: 0 | S9: 0 | T9: 0
C10: Non-Medicaid Contract | D10: =Weekday!D10+Saturday!D10+Sunday!D10 -> 0 | E10: =Weekday!E10+Saturday!E10+Sunday!E10 -> 0 | F10: =Weekday!F10+Saturday!F10+Sunday!F10 -> 0 | G10: =Weekday!G10+Saturday!G10+Sunday!G10 -> 0 | H10: =Weekday!H10+Saturday!H10+Sunday!H10 -> 0 | I10: =Weekday!I10+Saturday!I10+Sunday!I10 -> 0 | J10: =Weekday!J10+Saturday!J10+Sunday!J10 -> 0 | K10: =Weekday!K10+Saturday!K10+Sunday!K10 -> 0 | L10: =Weekday!L10+Saturday!L10+Sunday!L10 -> 0 | M10: =Weekday!M10+Saturday!M10+Sunday!M10 -> 0 | N10: =Weekday!N10+Saturday!N10+Sunday!N10 -> 0 | O10: =Weekday!O10+Saturday!O10+Sunday!O10 -> 0 | P10: 0 | Q10: 0 | R10: 0 | S10: 0 | T10: 0
C11: Brokered Medicaid Contract | D11: =Weekday!D11+Saturday!D11+Sunday!D11 -> 0 | E11: =Weekday!E11+Saturday!E11+Sunday!E11 -> 0 | F11: =Weekday!F11+Saturday!F11+Sunday!F11 -> 0 | G11: =Weekday!G11+Saturday!G11+Sunday!G11 -> 0 | H11: =Weekday!H11+Saturday!H11+Sunday!H11 -> 0 | I11: =Weekday!I11+Saturday!I11+Sunday!I11 -> 0 | J11: =Weekday!J11+Saturday!J11+Sunday!J11 -> 0 | K11: =Weekday!K11+Saturday!K11+Sunday!K11 -> 0 | L11: =Weekday!L11+Saturday!L11+Sunday!L11 -> 0 | M11: =Weekday!M11+Saturday!M11+Sunday!M11 -> 0 | N11: =Weekday!N11+Saturday!N11+Sunday!N11 -> 0 | O11: =Weekday!O11+Saturday!O11+Sunday!O11 -> 0 | P11: =D11+E11+F11 -> 0 | Q11: =G11+H11+I11 -> 0 | R11: =J11+K11+L11 -> 0 | S11: =M11+N11+O11 -> 0 | T11: =SUM(D11:O11) -> 0
C12: Total Passenger Trips for This Mode | D12: =SUM(D8:D11) -> 0 | E12: =SUM(E8:E11) -> 0 | F12: 0 | G12: 0 | H12: 0 | I12: 0 | J12: 0 | K12: 0 | L12: 0 | M12: 0 | N12: 0 | O12: 0 | P12: 0 | Q12: 0 | R12: 0 | S12: 0 | T12: 0
B13: Demand Response Purchased (DR PT)
C14: Hours | D14: =Weekday!D14+Saturday!D14+Sunday!D14 -> 0 | E14: =Weekday!E14+Saturday!E14+Sunday!E14 -> 0 | F14: =Weekday!F14+Saturday!F14+Sunday!F14 -> 0 | G14: =Weekday!G14+Saturday!G14+Sunday!G14 -> 0 | H14: =Weekday!H14+Saturday!H14+Sunday!H14 -> 0 | I14: =Weekday!I14+Saturday!I14+Sunday!I14 -> 0 | J14: =Weekday!J14+Saturday!J14+Sunday!J14 -> 0 | K14: =Weekday!K14+Saturday!K14+Sunday!K14 -> 0 | L14: =Weekday!L14+Saturday!L14+Sunday!L14 -> 0 | M14: =Weekday!M14+Saturday!M14+Sunday!M14 -> 0 | N14: =Weekday!N14+Saturday!N14+Sunday!N14 -> 0 | O14: =Weekday!O14+Saturday!O14+Sunday!O14 -> 0 | P14: =D14+E14+F14 -> 0 | Q14: =G14+H14+I14 -> 0 | R14: =J14+K14+L14 -> 0 | S14: =M14+N14+O14 -> 0 | T14: =SUM(D14:O14) -> 0
C15: Miles | D15: =Weekday!D15+Saturday!D15+Sunday!D15 -> 0 | E15: =Weekday!E15+Saturday!E15+Sunday!E15 -> 0 | F15: =Weekday!F15+Saturday!F15+Sunday!F15 -> 0 | G15: =Weekday!G15+Saturday!G15+Sunday!G15 -> 0 | H15: =Weekday!H15+Saturday!H15+Sunday!H15 -> 0 | I15: =Weekday!I15+Saturday!I15+Sunday!I15 -> 0 | J15: =Weekday!J15+Saturday!J15+Sunday!J15 -> 0 | K15: =Weekday!K15+Saturday!K15+Sunday!K15 -> 0 | L15: =Weekday!L15+Saturday!L15+Sunday!L15 -> 0 | M15: =Weekday!M15+Saturday!M15+Sunday!M15 -> 0 | N15: =Weekday!N15+Saturday!N15+Sunday!N15 -> 0 | O15: =Weekday!O15+Saturday!O15+Sunday!O15 -> 0 | P15: 0 | Q15: 0 | R15: 0 | S15: 0 | T15: 0
C16: Passenger Trips: Non-Contract | D16: =Weekday!D16+Saturday!D16+Sunday!D16 -> 0 | E16: =Weekday!E16+Saturday!E16+Sunday!E16 -> 0 | F16: =Weekday!F16+Saturday!F16+Sunday!F16 -> 0 | G16: =Weekday!G16+Saturday!G16+Sunday!G16 -> 0 | H16: =Weekday!H16+Saturday!H16+Sunday!H16 -> 0 | I16: =Weekday!I16+Saturday!I16+Sunday!I16 -> 0 | J16: =Weekday!J16+Saturday!J16+Sunday!J16 -> 0 | K16: =Weekday!K16+Saturday!K16+Sunday!K16 -> 0 | L16: =Weekday!L16+Saturday!L16+Sunday!L16 -> 0 | M16: =Weekday!M16+Saturday!M16+Sunday!M16 -> 0 | N16: =Weekday!N16+Saturday!N16+Sunday!N16 -> 0 | O16: =Weekday!O16+Saturday!O16+Sunday!O16 -> 0 | P16: 0 | Q16: 0 | R16: 0 | S16: 0 | T16: 0
C17: Medicaid Contract | D17: =Weekday!D17+Saturday!D17+Sunday!D17 -> 0 | E17: =Weekday!E17+Saturday!E17+Sunday!E17 -> 0 | F17: =Weekday!F17+Saturday!F17+Sunday!F17 -> 0 | G17: =Weekday!G17+Saturday!G17+Sunday!G17 -> 0 | H17: =Weekday!H17+Saturday!H17+Sunday!H17 -> 0 | I17: =Weekday!I17+Saturday!I17+Sunday!I17 -> 0 | J17: =Weekday!J17+Saturday!J17+Sunday!J17 -> 0 | K17: =Weekday!K17+Saturday!K17+Sunday!K17 -> 0 | L17: =Weekday!L17+Saturday!L17+Sunday!L17 -> 0 | M17: =Weekday!M17+Saturday!M17+Sunday!M17 -> 0 | N17: =Weekday!N17+Saturday!N17+Sunday!N17 -> 0 | O17: =Weekday!O17+Saturday!O17+Sunday!O17 -> 0 | P17: 0 | Q17: 0 | R17: 0 | S17: 0 | T17: 0
C18: Non-Medicaid Contract | D18: =Weekday!D18+Saturday!D18+Sunday!D18 -> 0 | E18: =Weekday!E18+Saturday!E18+Sunday!E18 -> 0 | F18: =Weekday!F18+Saturday!F18+Sunday!F18 -> 0 | G18: =Weekday!G18+Saturday!G18+Sunday!G18 -> 0 | H18: =Weekday!H18+Saturday!H18+Sunday!H18 -> 0 | I18: =Weekday!I18+Saturday!I18+Sunday!I18 -> 0 | J18: =Weekday!J18+Saturday!J18+Sunday!J18 -> 0 | K18: =Weekday!K18+Saturday!K18+Sunday!K18 -> 0 | L18: =Weekday!L18+Saturday!L18+Sunday!L18 -> 0 | M18: =Weekday!M18+Saturday!M18+Sunday!M18 -> 0 | N18: =Weekday!N18+Saturday!N18+Sunday!N18 -> 0 | O18: =Weekday!O18+Saturday!O18+Sunday!O18 -> 0 | P18: 0 | Q18: 0 | R18: 0 | S18: 0 | T18: 0
C19: Brokered Medicaid Contract | D19: =Weekday!D19+Saturday!D19+Sunday!D19 -> 0 | E19: =Weekday!E19+Saturday!E19+Sunday!E19 -> 0 | F19: =Weekday!F19+Saturday!F19+Sunday!F19 -> 0 | G19: =Weekday!G19+Saturday!G19+Sunday!G19 -> 0 | H19: =Weekday!H19+Saturday!H19+Sunday!H19 -> 0 | I19: =Weekday!I19+Saturday!I19+Sunday!I19 -> 0 | J19: =Weekday!J19+Saturday!J19+Sunday!J19 -> 0 | K19: =Weekday!K19+Saturday!K19+Sunday!K19 -> 0 | L19: =Weekday!L19+Saturday!L19+Sunday!L19 -> 0 | M19: =Weekday!M19+Saturday!M19+Sunday!M19 -> 0 | N19: =Weekday!N19+Saturday!N19+Sunday!N19 -> 0 | O19: =Weekday!O19+Saturday!O19+Sunday!O19 -> 0 | P19: 0 | Q19: 0 | R19: 0 | S19: 0 | T19: 0
C20: Total Passenger Trips for This Mode | D20: =SUM(D16:D19) -> 0 | E20: =SUM(E16:E19) -> 0 | F20: =SUM(F16:F19) -> 0 | G20: =SUM(G16:G19) -> 0 | H20: =SUM(H16:H19) -> 0 | I20: =SUM(I16:I19) -> 0 | J20: =SUM(J16:J19) -> 0 | K20: =SUM(K16:K19) -> 0 | L20: =SUM(L16:L19) -> 0 | M20: =SUM(M16:M19) -> 0 | N20: =SUM(N16:N19) -> 0 | O20: =SUM(O16:O19) -> 0 | P20: 0 | Q20: 0 | R20: 0 | S20: 0 | T20: 0
B21: Fixed Route Directly Operated (MB DO)
C22: Hours | D22: =Weekday!D22+Saturday!D22+Sunday!D22 -> 0 | E22: =Weekday!E22+Saturday!E22+Sunday!E22 -> 0 | F22: =Weekday!F22+Saturday!F22+Sunday!F22 -> 0 | G22: =Weekday!G22+Saturday!G22+Sunday!G22 -> 0 | H22: =Weekday!H22+Saturday!H22+Sunday!H22 -> 0 | I22: =Weekday!I22+Saturday!I22+Sunday!I22 -> 0 | J22: =Weekday!J22+Saturday!J22+Sunday!J22 -> 0 | K22: =Weekday!K22+Saturday!K22+Sunday!K22 -> 0 | L22: =Weekday!L22+Saturday!L22+Sunday!L22 -> 0 | M22: =Weekday!M22+Saturday!M22+Sunday!M22 -> 0 | N22: =Weekday!N22+Saturday!N22+Sunday!N22 -> 0 | O22: =Weekday!O22+Saturday!O22+Sunday!O22 -> 0 | P22: =D22+E22+F22 -> 0 | Q22: =G22+H22+I22 -> 0 | R22: =J22+K22+L22 -> 0 | S22: =M22+N22+O22 -> 0 | T22: =SUM(D22:O22) -> 0
C23: Miles | D23: =Weekday!D23+Saturday!D23+Sunday!D23 -> 0 | E23: =Weekday!E23+Saturday!E23+Sunday!E23 -> 0 | F23: =Weekday!F23+Saturday!F23+Sunday!F23 -> 0 | G23: =Weekday!G23+Saturday!G23+Sunday!G23 -> 0 | H23: =Weekday!H23+Saturday!H23+Sunday!H23 -> 0 | I23: =Weekday!I23+Saturday!I23+Sunday!I23 -> 0 | J23: =Weekday!J23+Saturday!J23+Sunday!J23 -> 0 | K23: =Weekday!K23+Saturday!K23+Sunday!K23 -> 0 | L23: =Weekday!L23+Saturday!L23+Sunday!L23 -> 0 | M23: =Weekday!M23+Saturday!M23+Sunday!M23 -> 0 | N23: =Weekday!N23+Saturday!N23+Sunday!N23 -> 0 | O23: =Weekday!O23+Saturday!O23+Sunday!O23 -> 0 | P23: 0 | Q23: 0 | R23: 0 | S23: 0 | T23: 0
C24: Passenger Trips: Non-Contract | D24: =Weekday!D24+Saturday!D24+Sunday!D24 -> 0 | E24: =Weekday!E24+Saturday!E24+Sunday!E24 -> 0 | F24: =Weekday!F24+Saturday!F24+Sunday!F24 -> 0 | G24: =Weekday!G24+Saturday!G24+Sunday!G24 -> 0 | H24: =Weekday!H24+Saturday!H24+Sunday!H24 -> 0 | I24: =Weekday!I24+Saturday!I24+Sunday!I24 -> 0 | J24: =Weekday!J24+Saturday!J24+Sunday!J24 -> 0 | K24: =Weekday!K24+Saturday!K24+Sunday!K24 -> 0 | L24: =Weekday!L24+Saturday!L24+Sunday!L24 -> 0 | M24: =Weekday!M24+Saturday!M24+Sunday!M24 -> 0 | N24: =Weekday!N24+Saturday!N24+Sunday!N24 -> 0 | O24: =Weekday!O24+Saturday!O24+Sunday!O24 -> 0 | P24: 0 | Q24: 0 | R24: 0 | S24: 0 | T24: 0
C25: Medicaid Contract | D25: =Weekday!D25+Saturday!D25+Sunday!D25 -> 0 | E25: =Weekday!E25+Saturday!E25+Sunday!E25 -> 0 | F25: =Weekday!F25+Saturday!F25+Sunday!F25 -> 0 | G25: =Weekday!G25+Saturday!G25+Sunday!G25 -> 0 | H25: =Weekday!H25+Saturday!H25+Sunday!H25 -> 0 | I25: =Weekday!I25+Saturday!I25+Sunday!I25 -> 0 | J25: =Weekday!J25+Saturday!J25+Sunday!J25 -> 0 | K25: =Weekday!K25+Saturday!K25+Sunday!K25 -> 0 | L25: =Weekday!L25+Saturday!L25+Sunday!L25 -> 0 | M25: =Weekday!M25+Saturday!M25+Sunday!M25 -> 0 | N25: =Weekday!N25+Saturday!N25+Sunday!N25 -> 0 | O25: =Weekday!O25+Saturday!O25+Sunday!O25 -> 0 | P25: 0 | Q25: 0 | R25: 0 | S25: 0 | T25: 0
C26: Non-Medicaid Contract | D26: =Weekday!D26+Saturday!D26+Sunday!D26 -> 0 | E26: =Weekday!E26+Saturday!E26+Sunday!E26 -> 0 | F26: =Weekday!F26+Saturday!F26+Sunday!F26 -> 0 | G26: =Weekday!G26+Saturday!G26+Sunday!G26 -> 0 | H26: =Weekday!H26+Saturday!H26+Sunday!H26 -> 0 | I26: =Weekday!I26+Saturday!I26+Sunday!I26 -> 0 | J26: =Weekday!J26+Saturday!J26+Sunday!J26 -> 0 | K26: =Weekday!K26+Saturday!K26+Sunday!K26 -> 0 | L26: =Weekday!L26+Saturday!L26+Sunday!L26 -> 0 | M26: =Weekday!M26+Saturday!M26+Sunday!M26 -> 0 | N26: =Weekday!N26+Saturday!N26+Sunday!N26 -> 0 | O26: =Weekday!O26+Saturday!O26+Sunday!O26 -> 0 | P26: 0 | Q26: 0 | R26: 0 | S26: 0 | T26: 0
C27: Brokered Medicaid Contract | D27: =Weekday!D27+Saturday!D27+Sunday!D27 -> 0 | E27: =Weekday!E27+Saturday!E27+Sunday!E27 -> 0 | F27: =Weekday!F27+Saturday!F27+Sunday!F27 -> 0 | G27: =Weekday!G27+Saturday!G27+Sunday!G27 -> 0 | H27: =Weekday!H27+Saturday!H27+Sunday!H27 -> 0 | I27: =Weekday!I27+Saturday!I27+Sunday!I27 -> 0 | J27: =Weekday!J27+Saturday!J27+Sunday!J27 -> 0 | K27: =Weekday!K27+Saturday!K27+Sunday!K27 -> 0 | L27: =Weekday!L27+Saturday!L27+Sunday!L27 -> 0 | M27: =Weekday!M27+Saturday!M27+Sunday!M27 -> 0 | N27: =Weekday!N27+Saturday!N27+Sunday!N27 -> 0 | O27: =Weekday!O27+Saturday!O27+Sunday!O27 -> 0 | P27: 0 | Q27: 0 | R27: 0 | S27: 0 | T27: 0
C28: Total Passenger Trips for This Mode | D28: =SUM(D24:D27) -> 0 | E28: =SUM(E24:E27) -> 0 | F28: =SUM(F24:F27) -> 0 | G28: =SUM(G24:G27) -> 0 | H28: =SUM(H24:H27) -> 0 | I28: =SUM(I24:I27) -> 0 | J28: =SUM(J24:J27) -> 0 | K28: =SUM(K24:K27) -> 0 | L28: =SUM(L24:L27) -> 0 | M28: =SUM(M24:M27) -> 0 | N28: =SUM(N24:N27) -> 0 | O28: =SUM(O24:O27) -> 0 | P28: 0 | Q28: 0 | R28: 0 | S28: 0 | T28: 0
B29: Fixed Route Purchased (MB PT)
C30: Hours | D30: =Weekday!D30+Saturday!D30+Sunday!D30 -> 0 | E30: =Weekday!E30+Saturday!E30+Sunday!E30 -> 0 | F30: =Weekday!F30+Saturday!F30+Sunday!F30 -> 0 | G30: =Weekday!G30+Saturday!G30+Sunday!G30 -> 0 | H30: =Weekday!H30+Saturday!H30+Sunday!H30 -> 0 | I30: =Weekday!I30+Saturday!I30+Sunday!I30 -> 0 | J30: =Weekday!J30+Saturday!J30+Sunday!J30 -> 0 | K30: =Weekday!K30+Saturday!K30+Sunday!K30 -> 0 | L30: =Weekday!L30+Saturday!L30+Sunday!L30 -> 0 | M30: =Weekday!M30+Saturday!M30+Sunday!M30 -> 0 | N30: =Weekday!N30+Saturday!N30+Sunday!N30 -> 0 | O30: =Weekday!O30+Saturday!O30+Sunday!O30 -> 0 | P30: =D30+E30+F30 -> 0 | Q30: =G30+H30+I30 -> 0 | R30: =J30+K30+L30 -> 0 | S30: =M30+N30+O30 -> 0 | T30: =SUM(D30:O30) -> 0
C31: Miles | D31: =Weekday!D31+Saturday!D31+Sunday!D31 -> 0 | E31: =Weekday!E31+Saturday!E31+Sunday!E31 -> 0 | F31: =Weekday!F31+Saturday!F31+Sunday!F31 -> 0 | G31: =Weekday!G31+Saturday!G31+Sunday!G31 -> 0 | H31: =Weekday!H31+Saturday!H31+Sunday!H31 -> 0 | I31: =Weekday!I31+Saturday!I31+Sunday!I31 -> 0 | J31: =Weekday!J31+Saturday!J31+Sunday!J31 -> 0 | K31: =Weekday!K31+Saturday!K31+Sunday!K31 -> 0 | L31: =Weekday!L31+Saturday!L31+Sunday!L31 -> 0 | M31: =Weekday!M31+Saturday!M31+Sunday!M31 -> 0 | N31: =Weekday!N31+Saturday!N31+Sunday!N31 -> 0 | O31: =Weekday!O31+Saturday!O31+Sunday!O31 -> 0 | P31: 0 | Q31: 0 | R31: 0 | S31: 0 | T31: 0
C32: Passenger Trips: Non-Contract | D32: =Weekday!D32+Saturday!D32+Sunday!D32 -> 0 | E32: =Weekday!E32+Saturday!E32+Sunday!E32 -> 0 | F32: =Weekday!F32+Saturday!F32+Sunday!F32 -> 0 | G32: =Weekday!G32+Saturday!G32+Sunday!G32 -> 0 | H32: =Weekday!H32+Saturday!H32+Sunday!H32 -> 0 | I32: =Weekday!I32+Saturday!I32+Sunday!I32 -> 0 | J32: =Weekday!J32+Saturday!J32+Sunday!J32 -> 0 | K32: =Weekday!K32+Saturday!K32+Sunday!K32 -> 0 | L32: =Weekday!L32+Saturday!L32+Sunday!L32 -> 0 | M32: =Weekday!M32+Saturday!M32+Sunday!M32 -> 0 | N32: =Weekday!N32+Saturday!N32+Sunday!N32 -> 0 | O32: =Weekday!O32+Saturday!O32+Sunday!O32 -> 0 | P32: 0 | Q32: 0 | R32: 0 | S32: 0 | T32: 0
C33: Medicaid Contract | D33: =Weekday!D33+Saturday!D33+Sunday!D33 -> 0 | E33: =Weekday!E33+Saturday!E33+Sunday!E33 -> 0 | F33: =Weekday!F33+Saturday!F33+Sunday!F33 -> 0 | G33: =Weekday!G33+Saturday!G33+Sunday!G33 -> 0 | H33: =Weekday!H33+Saturday!H33+Sunday!H33 -> 0 | I33: =Weekday!I33+Saturday!I33+Sunday!I33 -> 0 | J33: =Weekday!J33+Saturday!J33+Sunday!J33 -> 0 | K33: =Weekday!K33+Saturday!K33+Sunday!K33 -> 0 | L33: =Weekday!L33+Saturday!L33+Sunday!L33 -> 0 | M33: =Weekday!M33+Saturday!M33+Sunday!M33 -> 0 | N33: =Weekday!N33+Saturday!N33+Sunday!N33 -> 0 | O33: =Weekday!O33+Saturday!O33+Sunday!O33 -> 0 | P33: 0 | Q33: 0 | R33: 0 | S33: 0 | T33: 0
C34: Non-Medicaid Contract | D34: =Weekday!D34+Saturday!D34+Sunday!D34 -> 0 | E34: =Weekday!E34+Saturday!E34+Sunday!E34 -> 0 | F34: =Weekday!F34+Saturday!F34+Sunday!F34 -> 0 | G34: =Weekday!G34+Saturday!G34+Sunday!G34 -> 0 | H34: =Weekday!H34+Saturday!H34+Sunday!H34 -> 0 | I34: =Weekday!I34+Saturday!I34+Sunday!I34 -> 0 | J34: =Weekday!J34+Saturday!J34+Sunday!J34 -> 0 | K34: =Weekday!K34+Saturday!K34+Sunday!K34 -> 0 | L34: =Weekday!L34+Saturday!L34+Sunday!L34 -> 0 | M34: =Weekday!M34+Saturday!M34+Sunday!M34 -> 0 | N34: =Weekday!N34+Saturday!N34+Sunday!N34 -> 0 | O34: =Weekday!O34+Saturday!O34+Sunday!O34 -> 0 | P34: 0 | Q34: 0 | R34: 0 | S34: 0 | T34: 0
C35: Brokered Medicaid Contract | D35: =Weekday!D35+Saturday!D35+Sunday!D35 -> 0 | E35: =Weekday!E35+Saturday!E35+Sunday!E35 -> 0 | F35: =Weekday!F35+Saturday!F35+Sunday!F35 -> 0 | G35: =Weekday!G35+Saturday!G35+Sunday!G35 -> 0 | H35: =Weekday!H35+Saturday!H35+Sunday!H35 -> 0 | I35: =Weekday!I35+Saturday!I35+Sunday!I35 -> 0 | J35: =Weekday!J35+Saturday!J35+Sunday!J35 -> 0 | K35: =Weekday!K35+Saturday!K35+Sunday!K35 -> 0 | L35: =Weekday!L35+Saturday!L35+Sunday!L35 -> 0 | M35: =Weekday!M35+Saturday!M35+Sunday!M35 -> 0 | N35: =Weekday!N35+Saturday!N35+Sunday!N35 -> 0 | O35: =Weekday!O35+Saturday!O35+Sunday!O35 -> 0 | P35: 0 | Q35: 0 | R35: 0 | S35: 0 | T35: 0
C36: Total Passenger Trips for This Mode | D36: =SUM(D32:D35) -> 0 | E36: =SUM(E32:E35) -> 0 | F36: =SUM(F32:F35) -> 0 | G36: =SUM(G32:G35) -> 0 | H36: =SUM(H32:H35) -> 0 | I36: =SUM(I32:I35) -> 0 | J36: =SUM(J32:J35) -> 0 | K36: =SUM(K32:K35) -> 0 | L36: =SUM(L32:L35) -> 0 | M36: =SUM(M32:M35) -> 0 | N36: =SUM(N32:N35) -> 0 | O36: =SUM(O32:O35) -> 0 | P36: 0 | Q36: 0 | R36: 0 | S36: 0 | T36: 0
B37: Microtransit (MT DO)
A38: =A34+1 -> 1 | C38: Hours | D38: =Weekday!D38+Saturday!D38+Sunday!D38 -> 0 | E38: =Weekday!E38+Saturday!E38+Sunday!E38 -> 0 | F38: =Weekday!F38+Saturday!F38+Sunday!F38 -> 0 | G38: =Weekday!G38+Saturday!G38+Sunday!G38 -> 0 | H38: =Weekday!H38+Saturday!H38+Sunday!H38 -> 0 | I38: =Weekday!I38+Saturday!I38+Sunday!I38 -> 0 | J38: =Weekday!J38+Saturday!J38+Sunday!J38 -> 0 | K38: =Weekday!K38+Saturday!K38+Sunday!K38 -> 0 | L38: =Weekday!L38+Saturday!L38+Sunday!L38 -> 0 | M38: =Weekday!M38+Saturday!M38+Sunday!M38 -> 0 | N38: =Weekday!N38+Saturday!N38+Sunday!N38 -> 0 | O38: =Weekday!O38+Saturday!O38+Sunday!O38 -> 0 | P38: =D38+E38+F38 -> 0 | Q38: =G38+H38+I38 -> 0 | R38: =J38+K38+L38 -> 0 | S38: =M38+N38+O38 -> 0 | T38: =SUM(D38:O38) -> 0 | U38: =U34+1 -> 1
A39: =A38+1 -> 2 | C39: Miles | D39: =Weekday!D39+Saturday!D39+Sunday!D39 -> 0 | E39: =Weekday!E39+Saturday!E39+Sunday!E39 -> 0 | F39: =Weekday!F39+Saturday!F39+Sunday!F39 -> 0 | G39: =Weekday!G39+Saturday!G39+Sunday!G39 -> 0 | H39: =Weekday!H39+Saturday!H39+Sunday!H39 -> 0 | I39: =Weekday!I39+Saturday!I39+Sunday!I39 -> 0 | J39: =Weekday!J39+Saturday!J39+Sunday!J39 -> 0 | K39: =Weekday!K39+Saturday!K39+Sunday!K39 -> 0 | L39: =Weekday!L39+Saturday!L39+Sunday!L39 -> 0 | M39: =Weekday!M39+Saturday!M39+Sunday!M39 -> 0 | N39: =Weekday!N39+Saturday!N39+Sunday!N39 -> 0 | O39: =Weekday!O39+Saturday!O39+Sunday!O39 -> 0 | P39: 0 | Q39: 0 | R39: 0 | S39: 0 | T39: 0 | U39: =U38+1 -> 2
A40: =A39+1 -> 3 | C40: Passenger Trips: Non-Contract | D40: =Weekday!D40+Saturday!D40+Sunday!D40 -> 0 | E40: =Weekday!E40+Saturday!E40+Sunday!E40 -> 0 | F40: =Weekday!F40+Saturday!F40+Sunday!F40 -> 0 | G40: =Weekday!G40+Saturday!G40+Sunday!G40 -> 0 | H40: =Weekday!H40+Saturday!H40+Sunday!H40 -> 0 | I40: =Weekday!I40+Saturday!I40+Sunday!I40 -> 0 | J40: =Weekday!J40+Saturday!J40+Sunday!J40 -> 0 | K40: =Weekday!K40+Saturday!K40+Sunday!K40 -> 0 | L40: =Weekday!L40+Saturday!L40+Sunday!L40 -> 0 | M40: =Weekday!M40+Saturday!M40+Sunday!M40 -> 0 | N40: =Weekday!N40+Saturday!N40+Sunday!N40 -> 0 | O40: =Weekday!O40+Saturday!O40+Sunday!O40 -> 0 | P40: 0 | Q40: 0 | R40: 0 | S40: 0 | T40: 0 | U40: =U39+1 -> 3
A41: =A40+1 -> 4 | C41: Medicaid Contract | D41: =Weekday!D41+Saturday!D41+Sunday!D41 -> 0 | E41: =Weekday!E41+Saturday!E41+Sunday!E41 -> 0 | F41: =Weekday!F41+Saturday!F41+Sunday!F41 -> 0 | G41: =Weekday!G41+Saturday!G41+Sunday!G41 -> 0 | H41: =Weekday!H41+Saturday!H41+Sunday!H41 -> 0 | I41: =Weekday!I41+Saturday!I41+Sunday!I41 -> 0 | J41: =Weekday!J41+Saturday!J41+Sunday!J41 -> 0 | K41: =Weekday!K41+Saturday!K41+Sunday!K41 -> 0 | L41: =Weekday!L41+Saturday!L41+Sunday!L41 -> 0 | M41: =Weekday!M41+Saturday!M41+Sunday!M41 -> 0 | N41: =Weekday!N41+Saturday!N41+Sunday!N41 -> 0 | O41: =Weekday!O41+Saturday!O41+Sunday!O41 -> 0 | P41: 0 | Q41: 0 | R41: 0 | S41: 0 | T41: 0 | U41: =U40+1 -> 4
A42: =A41+1 -> 5 | C42: Non-Medicaid Contract | D42: =Weekday!D42+Saturday!D42+Sunday!D42 -> 0 | E42: =Weekday!E42+Saturday!E42+Sunday!E42 -> 0 | F42: =Weekday!F42+Saturday!F42+Sunday!F42 -> 0 | G42: =Weekday!G42+Saturday!G42+Sunday!G42 -> 0 | H42: =Weekday!H42+Saturday!H42+Sunday!H42 -> 0 | I42: =Weekday!I42+Saturday!I42+Sunday!I42 -> 0 | J42: =Weekday!J42+Saturday!J42+Sunday!J42 -> 0 | K42: =Weekday!K42+Saturday!K42+Sunday!K42 -> 0 | L42: =Weekday!L42+Saturday!L42+Sunday!L42 -> 0 | M42: =Weekday!M42+Saturday!M42+Sunday!M42 -> 0 | N42: =Weekday!N42+Saturday!N42+Sunday!N42 -> 0 | O42: =Weekday!O42+Saturday!O42+Sunday!O42 -> 0 | P42: 0 | Q42: 0 | R42: 0 | S42: 0 | T42: 0 | U42: =U41+1 -> 5
C43: Brokered Medicaid Contract | D43: =Weekday!D43+Saturday!D43+Sunday!D43 -> 0 | E43: =Weekday!E43+Saturday!E43+Sunday!E43 -> 0 | F43: =Weekday!F43+Saturday!F43+Sunday!F43 -> 0 | G43: =Weekday!G43+Saturday!G43+Sunday!G43 -> 0 | H43: =Weekday!H43+Saturday!H43+Sunday!H43 -> 0 | I43: =Weekday!I43+Saturday!I43+Sunday!I43 -> 0 | J43: =Weekday!J43+Saturday!J43+Sunday!J43 -> 0 | K43: =Weekday!K43+Saturday!K43+Sunday!K43 -> 0 | L43: =Weekday!L43+Saturday!L43+Sunday!L43 -> 0 | M43: =Weekday!M43+Saturday!M43+Sunday!M43 -> 0 | N43: =Weekday!N43+Saturday!N43+Sunday!N43 -> 0 | O43: =Weekday!O43+Saturday!O43+Sunday!O43 -> 0 | P43: 0 | Q43: 0 | R43: 0 | S43: 0 | T43: 0
C44: Total Passenger Trips- Other Providers | D44: =SUM(D40:D43) -> 0 | E44: =SUM(E40:E43) -> 0 | F44: =SUM(F40:F43) -> 0 | G44: =SUM(G40:G43) -> 0 | H44: =SUM(H40:H43) -> 0 | I44: =SUM(I40:I43) -> 0 | J44: =SUM(J40:J43) -> 0 | K44: =SUM(K40:K43) -> 0 | L44: =SUM(L40:L43) -> 0 | M44: =SUM(M40:M43) -> 0 | N44: =SUM(N40:N43) -> 0 | O44: =SUM(O40:O43) -> 0 | P44: 0 | Q44: 0 | R44: 0 | S44: 0 | T44: 0
B45: Microtransit (MT PT)
A46: =A42+1 -> 6 | C46: Hours | D46: =Weekday!D46+Saturday!D46+Sunday!D46 -> 0 | E46: =Weekday!E46+Saturday!E46+Sunday!E46 -> 0 | F46: =Weekday!F46+Saturday!F46+Sunday!F46 -> 0 | G46: =Weekday!G46+Saturday!G46+Sunday!G46 -> 0 | H46: =Weekday!H46+Saturday!H46+Sunday!H46 -> 0 | I46: =Weekday!I46+Saturday!I46+Sunday!I46 -> 0 | J46: =Weekday!J46+Saturday!J46+Sunday!J46 -> 0 | K46: =Weekday!K46+Saturday!K46+Sunday!K46 -> 0 | L46: =Weekday!L46+Saturday!L46+Sunday!L46 -> 0 | M46: =Weekday!M46+Saturday!M46+Sunday!M46 -> 0 | N46: =Weekday!N46+Saturday!N46+Sunday!N46 -> 0 | O46: =Weekday!O46+Saturday!O46+Sunday!O46 -> 0 | P46: =D46+E46+F46 -> 0 | Q46: =G46+H46+I46 -> 0 | R46: =J46+K46+L46 -> 0 | S46: =M46+N46+O46 -> 0 | T46: =SUM(D46:O46) -> 0 | U46: =U42+1 -> 6
A47: =A46+1 -> 7 | C47: Miles | D47: =Weekday!D47+Saturday!D47+Sunday!D47 -> 0 | E47: =Weekday!E47+Saturday!E47+Sunday!E47 -> 0 | F47: =Weekday!F47+Saturday!F47+Sunday!F47 -> 0 | G47: =Weekday!G47+Saturday!G47+Sunday!G47 -> 0 | H47: =Weekday!H47+Saturday!H47+Sunday!H47 -> 0 | I47: =Weekday!I47+Saturday!I47+Sunday!I47 -> 0 | J47: =Weekday!J47+Saturday!J47+Sunday!J47 -> 0 | K47: =Weekday!K47+Saturday!K47+Sunday!K47 -> 0 | L47: =Weekday!L47+Saturday!L47+Sunday!L47 -> 0 | M47: =Weekday!M47+Saturday!M47+Sunday!M47 -> 0 | N47: =Weekday!N47+Saturday!N47+Sunday!N47 -> 0 | O47: =Weekday!O47+Saturday!O47+Sunday!O47 -> 0 | P47: 0 | Q47: 0 | R47: 0 | S47: 0 | T47: 0 | U47: =U46+1 -> 7
A48: =A47+1 -> 8 | C48: Passenger Trips: Non-Contract | D48: =Weekday!D48+Saturday!D48+Sunday!D48 -> 0 | E48: =Weekday!E48+Saturday!E48+Sunday!E48 -> 0 | F48: =Weekday!F48+Saturday!F48+Sunday!F48 -> 0 | G48: =Weekday!G48+Saturday!G48+Sunday!G48 -> 0 | H48: =Weekday!H48+Saturday!H48+Sunday!H48 -> 0 | I48: =Weekday!I48+Saturday!I48+Sunday!I48 -> 0 | J48: =Weekday!J48+Saturday!J48+Sunday!J48 -> 0 | K48: =Weekday!K48+Saturday!K48+Sunday!K48 -> 0 | L48: =Weekday!L48+Saturday!L48+Sunday!L48 -> 0 | M48: =Weekday!M48+Saturday!M48+Sunday!M48 -> 0 | N48: =Weekday!N48+Saturday!N48+Sunday!N48 -> 0 | O48: =Weekday!O48+Saturday!O48+Sunday!O48 -> 0 | P48: 0 | Q48: 0 | R48: 0 | S48: 0 | T48: 0 | U48: =U47+1 -> 8
A49: =A48+1 -> 9 | C49: Medicaid Contract | D49: =Weekday!D49+Saturday!D49+Sunday!D49 -> 0 | E49: =Weekday!E49+Saturday!E49+Sunday!E49 -> 0 | F49: =Weekday!F49+Saturday!F49+Sunday!F49 -> 0 | G49: =Weekday!G49+Saturday!G49+Sunday!G49 -> 0 | H49: =Weekday!H49+Saturday!H49+Sunday!H49 -> 0 | I49: =Weekday!I49+Saturday!I49+Sunday!I49 -> 0 | J49: =Weekday!J49+Saturday!J49+Sunday!J49 -> 0 | K49: =Weekday!K49+Saturday!K49+Sunday!K49 -> 0 | L49: =Weekday!L49+Saturday!L49+Sunday!L49 -> 0 | M49: =Weekday!M49+Saturday!M49+Sunday!M49 -> 0 | N49: =Weekday!N49+Saturday!N49+Sunday!N49 -> 0 | O49: =Weekday!O49+Saturday!O49+Sunday!O49 -> 0 | P49: 0 | Q49: 0 | R49: 0 | S49: 0 | T49: 0 | U49: =U48+1 -> 9
A50: =A49+1 -> 10 | C50: Non-Medicaid Contract | D50: =Weekday!D50+Saturday!D50+Sunday!D50 -> 0 | E50: =Weekday!E50+Saturday!E50+Sunday!E50 -> 0 | F50: =Weekday!F50+Saturday!F50+Sunday!F50 -> 0 | G50: =Weekday!G50+Saturday!G50+Sunday!G50 -> 0 | H50: =Weekday!H50+Saturday!H50+Sunday!H50 -> 0 | I50: =Weekday!I50+Saturday!I50+Sunday!I50 -> 0 | J50: =Weekday!J50+Saturday!J50+Sunday!J50 -> 0 | K50: =Weekday!K50+Saturday!K50+Sunday!K50 -> 0 | L50: =Weekday!L50+Saturday!L50+Sunday!L50 -> 0 | M50: =Weekday!M50+Saturday!M50+Sunday!M50 -> 0 | N50: =Weekday!N50+Saturday!N50+Sunday!N50 -> 0 | O50: =Weekday!O50+Saturday!O50+Sunday!O50 -> 0 | P50: 0 | Q50: 0 | R50: 0 | S50: 0 | T50: 0 | U50: =U49+1 -> 10
C51: Brokered Medicaid Contract | D51: =Weekday!D51+Saturday!D51+Sunday!D51 -> 0 | E51: =Weekday!E51+Saturday!E51+Sunday!E51 -> 0 | F51: =Weekday!F51+Saturday!F51+Sunday!F51 -> 0 | G51: =Weekday!G51+Saturday!G51+Sunday!G51 -> 0 | H51: =Weekday!H51+Saturday!H51+Sunday!H51 -> 0 | I51: =Weekday!I51+Saturday!I51+Sunday!I51 -> 0 | J51: =Weekday!J51+Saturday!J51+Sunday!J51 -> 0 | K51: =Weekday!K51+Saturday!K51+Sunday!K51 -> 0 | L51: =Weekday!L51+Saturday!L51+Sunday!L51 -> 0 | M51: =Weekday!M51+Saturday!M51+Sunday!M51 -> 0 | N51: =Weekday!N51+Saturday!N51+Sunday!N51 -> 0 | O51: =Weekday!O51+Saturday!O51+Sunday!O51 -> 0 | P51: 0 | Q51: 0 | R51: 0 | S51: 0 | T51: 0
C52: Total Passenger Trips- Other Providers | D52: =SUM(D48:D51) -> 0 | E52: =SUM(E48:E51) -> 0 | F52: =SUM(F48:F51) -> 0 | G52: =SUM(G48:G51) -> 0 | H52: =SUM(H48:H51) -> 0 | I52: =SUM(I48:I51) -> 0 | J52: =SUM(J48:J51) -> 0 | K52: =SUM(K48:K51) -> 0 | L52: =SUM(L48:L51) -> 0 | M52: =SUM(M48:M51) -> 0 | N52: =SUM(N48:N51) -> 0 | O52: =SUM(O48:O51) -> 0 | P52: 0 | Q52: 0 | R52: 0 | S52: 0 | T52: 0
B53: Transit Totals
C54: Hours | D54: =SUM(D6+D14+D22+D30+D38+D46) -> 0 | E54: =SUM(E6+E14+E22+E30+E38+E46) -> 0 | F54: 0 | G54: 0 | H54: 0 | I54: 0 | J54: 0 | K54: 0 | L54: 0 | M54: 0 | N54: 0 | O54: 0 | P54: =SUM(D54:F54) -> 0 | Q54: =SUM(G54:I54) -> 0 | R54: =SUM(J54:L54) -> 0 | S54: =SUM(M54:O54) -> 0 | T54: =SUM(P54:S54) -> 0
C55: Miles | D55: =SUM(D7+D15+D23+D31+D39+D47) -> 0 | E55: =SUM(E7+E15+E23+E31+E39+E47) -> 0 | F55: 0 | G55: 0 | H55: 0 | I55: 0 | J55: 0 | K55: 0 | L55: 0 | M55: 0 | N55: 0 | O55: 0 | P55: =SUM(D55:F55) -> 0 | Q55: =SUM(G55:I55) -> 0 | R55: =SUM(J55:L55) -> 0 | S55: =SUM(M55:O55) -> 0 | T55: =SUM(P55:S55) -> 0
C56: Passenger Trips: Non-Contract | D56: =SUM(D8+D16+D24+D32+D40+D48) -> 0 | E56: =SUM(E8+E16+E24+E32+E40+E48) -> 0 | F56: 0 | G56: 0 | H56: 0 | I56: 0 | J56: 0 | K56: 0 | L56: 0 | M56: 0 | N56: 0 | O56: 0 | P56: 0 | Q56: 0 | R56: 0 | S56: 0 | T56: 0
C57: Medicaid Contract | D57: =SUM(D9+D17+D25+D33+D41+D49) -> 0 | E57: =SUM(E9+E17+E25+E33+E41+E49) -> 0 | F57: 0 | G57: 0 | H57: 0 | I57: 0 | J57: 0 | K57: 0 | L57: 0 | M57: 0 | N57: 0 | O57: 0 | P57: 0 | Q57: 0 | R57: 0 | S57: 0 | T57: 0
C58: Non-Medicaid Contract | D58: =SUM(D10+D18+D26+D34+D42+D50) -> 0 | E58: =SUM(E10+E18+E26+E34+E42+E50) -> 0 | F58: 0 | G58: 0 | H58: 0 | I58: 0 | J58: 0 | K58: 0 | L58: 0 | M58: 0 | N58: 0 | O58: 0 | P58: 0 | Q58: 0 | R58: 0 | S58: 0 | T58: 0
C59: Brokered Medicaid Contract | D59: =Weekday!D59+Saturday!D59+Sunday!D59 -> 0 | E59: =Weekday!E59+Saturday!E59+Sunday!E59 -> 0 | F59: =Weekday!F59+Saturday!F59+Sunday!F59 -> 0 | G59: =Weekday!G59+Saturday!G59+Sunday!G59 -> 0 | H59: =Weekday!H59+Saturday!H59+Sunday!H59 -> 0 | I59: =Weekday!I59+Saturday!I59+Sunday!I59 -> 0 | J59: =Weekday!J59+Saturday!J59+Sunday!J59 -> 0 | K59: =Weekday!K59+Saturday!K59+Sunday!K59 -> 0 | L59: =Weekday!L59+Saturday!L59+Sunday!L59 -> 0 | M59: =Weekday!M59+Saturday!M59+Sunday!M59 -> 0 | N59: =Weekday!N59+Saturday!N59+Sunday!N59 -> 0 | O59: =Weekday!O59+Saturday!O59+Sunday!O59 -> 0 | P59: =SUM(D59:F59) -> 0 | Q59: =SUM(G59:I59) -> 0 | R59: =SUM(J59:L59) -> 0 | S59: =SUM(M59:O59) -> 0 | T59: =SUM(P59:S59) -> 0
C60: Total Passenger Trips for All Modes | D60: =SUM(D56:D59) -> 0 | E60: =SUM(E56:E59) -> 0 | F60: =SUM(F56:F59) -> 0 | G60: =SUM(G56:G59) -> 0 | H60: =SUM(H56:H59) -> 0 | I60: =SUM(I56:I59) -> 0 | J60: =SUM(J56:J59) -> 0 | K60: =SUM(K56:K59) -> 0 | L60: =SUM(L56:L59) -> 0 | M60: =SUM(M56:M59) -> 0 | N60: =SUM(N56:N59) -> 0 | O60: =SUM(O56:O59) -> 0 | P60: =SUM(D60:F60) -> 0 | Q60: =SUM(G60:I60) -> 0 | R60: =SUM(J60:L60) -> 0 | S60: =SUM(M60:O60) -> 0 | T60: =SUM(P60:S60) -> 0

Sheet Dashboard (hidden)
B1: ="TRANSIT PERFORMANCE DASHBOARD: " &Overview!D4 -> TRANSIT PERFORMANCE DASHBOARD:
A3: Passenger Trips by Month
CC30: 2
A33: Passengers per Mile
S35: PassPerMile
C36: PassPerMile | S36: Month | T36: ='Weekly Totals'!D3 -> July | U36: ='Weekly Totals'!E3 -> August | V36: ='Weekly Totals'!F3 -> September | W36: ='Weekly Totals'!G3 -> October | X36: ='Weekly Totals'!H3 -> November | Y36: ='Weekly Totals'!I3 -> December | Z36: ='Weekly Totals'!J3 -> January | AA36: ='Weekly Totals'!K3 -> February | AB36: ='Weekly Totals'!L3 -> March | AC36: ='Weekly Totals'!M3 -> April | AD36: ='Weekly Totals'!N3 -> May | AE36: ='Weekly Totals'!O3 -> June
C37: Month | D37: ='Weekly Totals'!D3 -> July | E37: ='Weekly Totals'!E3 -> August | F37: ='Weekly Totals'!F3 -> September | G37: ='Weekly Totals'!G3 -> October | H37: ='Weekly Totals'!H3 -> November | I37: ='Weekly Totals'!I3 -> December | J37: ='Weekly Totals'!J3 -> January | K37: ='Weekly Totals'!K3 -> February | L37: ='Weekly Totals'!L3 -> March | M37: ='Weekly Totals'!M3 -> April | N37: ='Weekly Totals'!N3 -> May | O37: ='Weekly Totals'!O3 -> June | S37: DO Pass | T37: ='Weekly Totals'!D12 -> 0 | U37: ='Weekly Totals'!E12 -> 0 | V37: ='Weekly Totals'!F12 -> 0 | W37: ='Weekly Totals'!G12 -> 0 | X37: ='Weekly Totals'!H12 -> 0 | Y37: ='Weekly Totals'!I12 -> 0 | Z37: ='Weekly Totals'!J12 -> 0 | AA37: ='Weekly Totals'!K12 -> 0 | AB37: ='Weekly Totals'!L12 -> 0 | AC37: ='Weekly Totals'!M12 -> 0 | AD37: ='Weekly Totals'!N12 -> 0 | AE37: ='Weekly Totals'!O12 -> 0
C38: Pass | D38: ='Weekly Totals'!D60 -> 0 | E38: ='Weekly Totals'!E60 -> 0 | F38: ='Weekly Totals'!F60 -> 0 | G38: ='Weekly Totals'!G60 -> 0 | H38: ='Weekly Totals'!H60 -> 0 | I38: ='Weekly Totals'!I60 -> 0 | J38: ='Weekly Totals'!J60 -> 0 | K38: ='Weekly Totals'!K60 -> 0 | L38: ='Weekly Totals'!L60 -> 0 | M38: ='Weekly Totals'!M60 -> 0 | N38: ='Weekly Totals'!N60 -> 0 | O38: ='Weekly Totals'!O60 -> 0 | S38: DO Mile | T38: ='Weekly Totals'!D7 -> 0 | U38: ='Weekly Totals'!E7 -> 0 | V38: ='Weekly Totals'!F7 -> 0 | W38: ='Weekly Totals'!G7 -> 0 | X38: ='Weekly Totals'!H7 -> 0 | Y38: ='Weekly Totals'!I7 -> 0 | Z38: ='Weekly Totals'!J7 -> 0 | AA38: ='Weekly Totals'!K7 -> 0 | AB38: ='Weekly Totals'!L7 -> 0 | AC38: ='Weekly Totals'!M7 -> 0 | AD38: ='Weekly Totals'!N7 -> 0 | AE38: ='Weekly Totals'!O7 -> 0
C39: Mile | D39: ='Weekly Totals'!D55 -> 0 | E39: ='Weekly Totals'!E55 -> 0 | F39: ='Weekly Totals'!F55 -> 0 | G39: ='Weekly Totals'!G55 -> 0 | H39: ='Weekly Totals'!H55 -> 0 | I39: ='Weekly Totals'!I55 -> 0 | J39: ='Weekly Totals'!J55 -> 0 | K39: ='Weekly Totals'!K55 -> 0 | L39: ='Weekly Totals'!L55 -> 0 | M39: ='Weekly Totals'!M55 -> 0 | N39: ='Weekly Totals'!N55 -> 0 | O39: ='Weekly Totals'!O55 -> 0 | S39: Pass/DO Mile | T39: =T37/T38 ->  | AJ39: PassPerMile | BA39: PassPerMile
C40: Pass/Mile | D40: =D38/D39 ->  | E40: =E38/E39 ->  | S40: PT Pass | T40: ='Weekly Totals'!D20 -> 0 | U40: ='Weekly Totals'!E20 -> 0 | V40: ='Weekly Totals'!F20 -> 0 | W40: ='Weekly Totals'!G20 -> 0 | X40: ='Weekly Totals'!H20 -> 0 | Y40: ='Weekly Totals'!I20 -> 0 | Z40: ='Weekly Totals'!J20 -> 0 | AA40: ='Weekly Totals'!K20 -> 0 | AB40: ='Weekly Totals'!L20 -> 0 | AC40: ='Weekly Totals'!M20 -> 0 | AD40: ='Weekly Totals'!N20 -> 0 | AE40: ='Weekly Totals'!O20 -> 0 | AJ40: Month | AK40: ='Weekly Totals'!D3 -> July | AL40: ='Weekly Totals'!E3 -> August | AM40: ='Weekly Totals'!F3 -> September | AN40: ='Weekly Totals'!G3 -> October | AO40: ='Weekly Totals'!H3 -> November | AP40: ='Weekly Totals'!I3 -> December | AQ40: ='Weekly Totals'!J3 -> January | AR40: ='Weekly Totals'!K3 -> February | AS40: ='Weekly Totals'!L3 -> March | AT40: ='Weekly Totals'!M3 -> April | AU40: ='Weekly Totals'!N3 -> May | AV40: ='Weekly Totals'!O3 -> June | BA40: Month | BB40: ='Weekly Totals'!D3 -> July | BC40: ='Weekly Totals'!E3 -> August | BD40: ='Weekly Totals'!F3 -> September | BE40: ='Weekly Totals'!G3 -> October | BF40: ='Weekly Totals'!H3 -> November | BG40: ='Weekly Totals'!I3 -> December | BH40: ='Weekly Totals'!J3 -> January | BI40: ='Weekly Totals'!K3 -> February | BJ40: ='Weekly Totals'!L3 -> March | BK40: ='Weekly Totals'!M3 -> April | BL40: ='Weekly Totals'!N3 -> May | BM40: ='Weekly Totals'!O3 -> June
S41: PT Mile | T41: ='Weekly Totals'!D15 -> 0 | U41: ='Weekly Totals'!E15 -> 0 | V41: ='Weekly Totals'!F15 -> 0 | W41: ='Weekly Totals'!G15 -> 0 | X41: ='Weekly Totals'!H15 -> 0 | Y41: ='Weekly Totals'!I15 -> 0 | Z41: ='Weekly Totals'!J15 -> 0 | AA41: ='Weekly Totals'!K15 -> 0 | AB41: ='Weekly Totals'!L15 -> 0 | AC41: ='Weekly Totals'!M15 -> 0 | AD41: ='Weekly Totals'!N15 -> 0 | AE41: ='Weekly Totals'!O15 -> 0 | AJ41: DO Pass | AK41: ='Weekly Totals'!D28 -> 0 | AL41: ='Weekly Totals'!E28 -> 0 | AM41: ='Weekly Totals'!F28 -> 0 | AN41: ='Weekly Totals'!G28 -> 0 | AO41: ='Weekly Totals'!H28 -> 0 | AP41: ='Weekly Totals'!I28 -> 0 | AQ41: ='Weekly Totals'!J28 -> 0 | AR41: ='Weekly Totals'!K28 -> 0 | AS41: ='Weekly Totals'!L28 -> 0 | AT41: ='Weekly Totals'!M28 -> 0 | AU41: ='Weekly Totals'!N28 -> 0 | AV41: ='Weekly Totals'!O28 -> 0 | BA41: DO Pass | BB41: ='Weekly Totals'!D44 -> 0 | BC41: ='Weekly Totals'!E44 -> 0 | BD41: ='Weekly Totals'!F44 -> 0 | BE41: ='Weekly Totals'!G44 -> 0 | BF41: ='Weekly Totals'!H44 -> 0 | BG41: ='Weekly Totals'!I44 -> 0 | BH41: ='Weekly Totals'!J44 -> 0 | BI41: ='Weekly Totals'!K44 -> 0 | BJ41: ='Weekly Totals'!L44 -> 0 | BK41: ='Weekly Totals'!M44 -> 0 | BL41: ='Weekly Totals'!N44 -> 0 | BM41: ='Weekly Totals'!O44 -> 0
S42: Pass/PT Mile | T42: =T40/T41 ->  | AJ42: DO Mile | AK42: ='Weekly Totals'!D23 -> 0 | AL42: ='Weekly Totals'!E23 -> 0 | AM42: ='Weekly Totals'!F23 -> 0 | AN42: ='Weekly Totals'!G23 -> 0 | AO42: ='Weekly Totals'!H23 -> 0 | AP42: ='Weekly Totals'!I23 -> 0 | AQ42: ='Weekly Totals'!J23 -> 0 | AR42: ='Weekly Totals'!K23 -> 0 | AS42: ='Weekly Totals'!L23 -> 0 | AT42: ='Weekly Totals'!M23 -> 0 | AU42: ='Weekly Totals'!N23 -> 0 | AV42: ='Weekly Totals'!O23 -> 0 | BA42: DO Mile | BB42: ='Weekly Totals'!D39 -> 0 | BC42: ='Weekly Totals'!E39 -> 0 | BD42: ='Weekly Totals'!F39 -> 0 | BE42: ='Weekly Totals'!G39 -> 0 | BF42: ='Weekly Totals'!H39 -> 0 | BG42: ='Weekly Totals'!I39 -> 0 | BH42: ='Weekly Totals'!J39 -> 0 | BI42: ='Weekly Totals'!K39 -> 0 | BJ42: ='Weekly Totals'!L39 -> 0 | BK42: ='Weekly Totals'!M39 -> 0 | BL42: ='Weekly Totals'!N39 -> 0 | BM42: ='Weekly Totals'!O39 -> 0
AJ43: Pass/DO Mile | AK43: =AK41/AK42 ->  | BA43: Pass/DO Mile | BB43: =BB41/BB42 -> 
AJ44: PT Pass | AK44: ='Weekly Totals'!D36 -> 0 | AL44: ='Weekly Totals'!E36 -> 0 | AM44: ='Weekly Totals'!F36 -> 0 | AN44: ='Weekly Totals'!G36 -> 0 | AO44: ='Weekly Totals'!H36 -> 0 | AP44: ='Weekly Totals'!I36 -> 0 | AQ44: ='Weekly Totals'!J36 -> 0 | AR44: ='Weekly Totals'!K36 -> 0 | AS44: ='Weekly Totals'!L36 -> 0 | AT44: ='Weekly Totals'!M36 -> 0 | AU44: ='Weekly Totals'!N36 -> 0 | AV44: ='Weekly Totals'!O36 -> 0 | BA44: PT Pass | BB44: ='Weekly Totals'!D52 -> 0 | BC44: ='Weekly Totals'!E52 -> 0 | BD44: ='Weekly Totals'!F52 -> 0 | BE44: ='Weekly Totals'!G52 -> 0 | BF44: ='Weekly Totals'!H52 -> 0 | BG44: ='Weekly Totals'!I52 -> 0 | BH44: ='Weekly Totals'!J52 -> 0 | BI44: ='Weekly Totals'!K52 -> 0 | BJ44: ='Weekly Totals'!L52 -> 0 | BK44: ='Weekly Totals'!M52 -> 0 | BL44: ='Weekly Totals'!N52 -> 0 | BM44: ='Weekly Totals'!O52 -> 0
AJ45: PT Mile | AK45: ='Weekly Totals'!D31 -> 0 | AL45: ='Weekly Totals'!E31 -> 0 | AM45: ='Weekly Totals'!F31 -> 0 | AN45: ='Weekly Totals'!G31 -> 0 | AO45: ='Weekly Totals'!H31 -> 0 | AP45: ='Weekly Totals'!I31 -> 0 | AQ45: ='Weekly Totals'!J31 -> 0 | AR45: ='Weekly Totals'!K31 -> 0 | AS45: ='Weekly Totals'!L31 -> 0 | AT45: ='Weekly Totals'!M31 -> 0 | AU45: ='Weekly Totals'!N31 -> 0 | AV45: ='Weekly Totals'!O31 -> 0 | BA45: PT Mile | BB45: ='Weekly Totals'!D47 -> 0 | BC45: ='Weekly Totals'!E47 -> 0 | BD45: ='Weekly Totals'!F47 -> 0 | BE45: ='Weekly Totals'!G47 -> 0 | BF45: ='Weekly Totals'!H47 -> 0 | BG45: ='Weekly Totals'!I47 -> 0 | BH45: ='Weekly Totals'!J47 -> 0 | BI45: ='Weekly Totals'!K47 -> 0 | BJ45: ='Weekly Totals'!L47 -> 0 | BK45: ='Weekly Totals'!M47 -> 0 | BL45: ='Weekly Totals'!N47 -> 0 | BM45: ='Weekly Totals'!O47 -> 0
AJ46: Pass/PT Mile | AK46: =AK44/AK45 ->  | BA46: Pass/PT Mile | BB46: =BB44/BB45 -> 
A54: Passengers per Hour
C56: PassPerHour | S56: PassPerHour | AJ56: PassPerHour | BA56: PassPerHour
C57: Month | D57: ='Weekly Totals'!D3 -> July | E57: ='Weekly Totals'!E3 -> August | F57: ='Weekly Totals'!F3 -> September | G57: ='Weekly Totals'!G3 -> October | H57: ='Weekly Totals'!H3 -> November | I57: ='Weekly Totals'!I3 -> December | J57: ='Weekly Totals'!J3 -> January | K57: ='Weekly Totals'!K3 -> February | L57: ='Weekly Totals'!L3 -> March | M57: ='Weekly Totals'!M3 -> April | N57: ='Weekly Totals'!N3 -> May | O57: ='Weekly Totals'!O3 -> June | S57: Month | T57: ='Weekly Totals'!D3 -> July | U57: ='Weekly Totals'!E3 -> August | V57: ='Weekly Totals'!F3 -> September | W57: ='Weekly Totals'!G3 -> October | X57: ='Weekly Totals'!H3 -> November | Y57: ='Weekly Totals'!I3 -> December | Z57: ='Weekly Totals'!J3 -> January | AA57: ='Weekly Totals'!K3 -> February | AB57: ='Weekly Totals'!L3 -> March | AC57: ='Weekly Totals'!M3 -> April | AD57: ='Weekly Totals'!N3 -> May | AE57: ='Weekly Totals'!O3 -> June | AJ57: Month | AK57: ='Weekly Totals'!D3 -> July | AL57: ='Weekly Totals'!E3 -> August | AM57: ='Weekly Totals'!F3 -> September | AN57: ='Weekly Totals'!G3 -> October | AO57: ='Weekly Totals'!H3 -> November | AP57: ='Weekly Totals'!I3 -> December | AQ57: ='Weekly Totals'!J3 -> January | AR57: ='Weekly Totals'!K3 -> February | AS57: ='Weekly Totals'!L3 -> March | AT57: ='Weekly Totals'!M3 -> April | AU57: ='Weekly Totals'!N3 -> May | AV57: ='Weekly Totals'!O3 -> June | BA57: Month | BB57: ='Weekly Totals'!D3 -> July | BC57: ='Weekly Totals'!E3 -> August | BD57: ='Weekly Totals'!F3 -> September | BE57: ='Weekly Totals'!G3 -> October | BF57: ='Weekly Totals'!H3 -> November | BG57: ='Weekly Totals'!I3 -> December | BH57: ='Weekly Totals'!J3 -> January | BI57: ='Weekly Totals'!K3 -> February | BJ57: ='Weekly Totals'!L3 -> March | BK57: ='Weekly Totals'!M3 -> April | BL57: ='Weekly Totals'!N3 -> May | BM57: ='Weekly Totals'!O3 -> June
C58: Pass | D58: ='Weekly Totals'!D60 -> 0 | E58: ='Weekly Totals'!E60 -> 0 | F58: ='Weekly Totals'!F60 -> 0 | G58: ='Weekly Totals'!G60 -> 0 | H58: ='Weekly Totals'!H60 -> 0 | I58: ='Weekly Totals'!I60 -> 0 | J58: ='Weekly Totals'!J60 -> 0 | K58: ='Weekly Totals'!K60 -> 0 | L58: ='Weekly Totals'!L60 -> 0 | M58: ='Weekly Totals'!M60 -> 0 | N58: ='Weekly Totals'!N60 -> 0 | O58: ='Weekly Totals'!O60 -> 0 | S58: DO Pass | T58: ='Weekly Totals'!D12 -> 0 | U58: ='Weekly Totals'!E12 -> 0 | V58: ='Weekly Totals'!F12 -> 0 | W58: ='Weekly Totals'!G12 -> 0 | X58: ='Weekly Totals'!H12 -> 0 | Y58: ='Weekly Totals'!I12 -> 0 | Z58: ='Weekly Totals'!J12 -> 0 | AA58: ='Weekly Totals'!K12 -> 0 | AB58: ='Weekly Totals'!L12 -> 0 | AC58: ='Weekly Totals'!M12 -> 0 | AD58: ='Weekly Totals'!N12 -> 0 | AE58: ='Weekly Totals'!O12 -> 0 | AJ58: DO Pass | AK58: ='Weekly Totals'!D28 -> 0 | AL58: ='Weekly Totals'!E28 -> 0 | AM58: ='Weekly Totals'!F28 -> 0 | AN58: ='Weekly Totals'!G28 -> 0 | AO58: ='Weekly Totals'!H28 -> 0 | AP58: ='Weekly Totals'!I28 -> 0 | AQ58: ='Weekly Totals'!J28 -> 0 | AR58: ='Weekly Totals'!K28 -> 0 | AS58: ='Weekly Totals'!L28 -> 0 | AT58: ='Weekly Totals'!M28 -> 0 | AU58: ='Weekly Totals'!N28 -> 0 | AV58: ='Weekly Totals'!O28 -> 0 | BA58: DO Pass | BB58: ='Weekly Totals'!D44 -> 0 | BC58: ='Weekly Totals'!E44 -> 0 | BD58: ='Weekly Totals'!F44 -> 0 | BE58: ='Weekly Totals'!G44 -> 0 | BF58: ='Weekly Totals'!H44 -> 0 | BG58: ='Weekly Totals'!I44 -> 0 | BH58: ='Weekly Totals'!J44 -> 0 | BI58: ='Weekly Totals'!K44 -> 0 | BJ58: ='Weekly Totals'!L44 -> 0 | BK58: ='Weekly Totals'!M44 -> 0 | BL58: ='Weekly Totals'!N44 -> 0 | BM58: ='Weekly Totals'!O44 -> 0
C59: Hour | D59: ='Weekly Totals'!D54 -> 0 | E59: ='Weekly Totals'!E54 -> 0 | F59: ='Weekly Totals'!F54 -> 0 | G59: ='Weekly Totals'!G54 -> 0 | H59: ='Weekly Totals'!H54 -> 0 | I59: ='Weekly Totals'!I54 -> 0 | J59: ='Weekly Totals'!J54 -> 0 | K59: ='Weekly Totals'!K54 -> 0 | L59: ='Weekly Totals'!L54 -> 0 | M59: ='Weekly Totals'!M54 -> 0 | N59: ='Weekly Totals'!N54 -> 0 | O59: ='Weekly Totals'!O54 -> 0 | S59: DO Hour | T59: ='Weekly Totals'!D6 -> 0 | U59: ='Weekly Totals'!E6 -> 0 | V59: ='Weekly Totals'!F6 -> 0 | W59: ='Weekly Totals'!G6 -> 0 | X59: ='Weekly Totals'!H6 -> 0 | Y59: ='Weekly Totals'!I6 -> 0 | Z59: ='Weekly Totals'!J6 -> 0 | AA59: ='Weekly Totals'!K6 -> 0 | AB59: ='Weekly Totals'!L6 -> 0 | AC59: ='Weekly Totals'!M6 -> 0 | AD59: ='Weekly Totals'!N6 -> 0 | AE59: ='Weekly Totals'!O6 -> 0 | AJ59: DO Hour | AK59: ='Weekly Totals'!D22 -> 0 | AL59: ='Weekly Totals'!E22 -> 0 | AM59: ='Weekly Totals'!F22 -> 0 | AN59: ='Weekly Totals'!G22 -> 0 | AO59: ='Weekly Totals'!H22 -> 0 | AP59: ='Weekly Totals'!I22 -> 0 | AQ59: ='Weekly Totals'!J22 -> 0 | AR59: ='Weekly Totals'!K22 -> 0 | AS59: ='Weekly Totals'!L22 -> 0 | AT59: ='Weekly Totals'!M22 -> 0 | AU59: ='Weekly Totals'!N22 -> 0 | AV59: ='Weekly Totals'!O22 -> 0 | BA59: DO Hour | BB59: ='Weekly Totals'!D39 -> 0 | BC59: ='Weekly Totals'!E39 -> 0 | BD59: ='Weekly Totals'!F39 -> 0 | BE59: ='Weekly Totals'!G39 -> 0 | BF59: ='Weekly Totals'!H39 -> 0 | BG59: ='Weekly Totals'!I39 -> 0 | BH59: ='Weekly Totals'!J39 -> 0 | BI59: ='Weekly Totals'!K39 -> 0 | BJ59: ='Weekly Totals'!L39 -> 0 | BK59: ='Weekly Totals'!M39 -> 0 | BL59: ='Weekly Totals'!N39 -> 0 | BM59: ='Weekly Totals'!O39 -> 0
C60: Pass/Hour | D60: =D58/D59 ->  | E60: =E58/E59 ->  | S60: Pass/DO Hour | T60: =T58/T59 ->  | AJ60: Pass/DO Hour | AK60: =AK58/AK59 ->  | AL60: =AL58/AL59 ->  | BA60: Pass/DO Hour | BB60: =BB58/BB59 ->  | BC60: =BC58/BC59 -> 
S61: PT Pass | T61: ='Weekly Totals'!D20 -> 0 | U61: ='Weekly Totals'!E20 -> 0 | V61: ='Weekly Totals'!F20 -> 0 | W61: ='Weekly Totals'!G20 -> 0 | X61: ='Weekly Totals'!H20 -> 0 | Y61: ='Weekly Totals'!I20 -> 0 | Z61: ='Weekly Totals'!J20 -> 0 | AA61: ='Weekly Totals'!K20 -> 0 | AB61: ='Weekly Totals'!L20 -> 0 | AC61: ='Weekly Totals'!M20 -> 0 | AD61: ='Weekly Totals'!N20 -> 0 | AE61: ='Weekly Totals'!O20 -> 0 | AJ61: PT Pass | AK61: ='Weekly Totals'!D36 -> 0 | AL61: ='Weekly Totals'!E36 -> 0 | AM61: ='Weekly Totals'!F36 -> 0 | AN61: ='Weekly Totals'!G36 -> 0 | AO61: ='Weekly Totals'!H36 -> 0 | AP61: ='Weekly Totals'!I36 -> 0 | AQ61: ='Weekly Totals'!J36 -> 0 | AR61: ='Weekly Totals'!K36 -> 0 | AS61: ='Weekly Totals'!L36 -> 0 | AT61: ='Weekly Totals'!M36 -> 0 | AU61: ='Weekly Totals'!N36 -> 0 | AV61: ='Weekly Totals'!O36 -> 0 | BA61: PT Pass | BB61: ='Weekly Totals'!D52 -> 0 | BC61: ='Weekly Totals'!E52 -> 0 | BD61: ='Weekly Totals'!F52 -> 0 | BE61: ='Weekly Totals'!G52 -> 0 | BF61: ='Weekly Totals'!H52 -> 0 | BG61: ='Weekly Totals'!I52 -> 0 | BH61: ='Weekly Totals'!J52 -> 0 | BI61: ='Weekly Totals'!K52 -> 0 | BJ61: ='Weekly Totals'!L52 -> 0 | BK61: ='Weekly Totals'!M52 -> 0 | BL61: ='Weekly Totals'!N52 -> 0 | BM61: ='Weekly Totals'!O52 -> 0
S62: PT Hour | T62: ='Weekly Totals'!D14 -> 0 | U62: ='Weekly Totals'!E14 -> 0 | V62: ='Weekly Totals'!F14 -> 0 | W62: ='Weekly Totals'!G14 -> 0 | X62: ='Weekly Totals'!H14 -> 0 | Y62: ='Weekly Totals'!I14 -> 0 | Z62: ='Weekly Totals'!J14 -> 0 | AA62: ='Weekly Totals'!K14 -> 0 | AB62: ='Weekly Totals'!L14 -> 0 | AC62: ='Weekly Totals'!M14 -> 0 | AD62: ='Weekly Totals'!N14 -> 0 | AE62: ='Weekly Totals'!O14 -> 0 | AJ62: PT Hour | AK62: ='Weekly Totals'!D30 -> 0 | AL62: ='Weekly Totals'!E30 -> 0 | AM62: ='Weekly Totals'!F30 -> 0 | AN62: ='Weekly Totals'!G30 -> 0 | AO62: ='Weekly Totals'!H30 -> 0 | AP62: ='Weekly Totals'!I30 -> 0 | AQ62: ='Weekly Totals'!J30 -> 0 | AR62: ='Weekly Totals'!K30 -> 0 | AS62: ='Weekly Totals'!L30 -> 0 | AT62: ='Weekly Totals'!M30 -> 0 | AU62: ='Weekly Totals'!N30 -> 0 | AV62: ='Weekly Totals'!O30 -> 0 | BA62: PT Hour | BB62: ='Weekly Totals'!D46 -> 0 | BC62: ='Weekly Totals'!E46 -> 0 | BD62: ='Weekly Totals'!F46 -> 0 | BE62: ='Weekly Totals'!G46 -> 0 | BF62: ='Weekly Totals'!H46 -> 0 | BG62: ='Weekly Totals'!I46 -> 0 | BH62: ='Weekly Totals'!J46 -> 0 | BI62: ='Weekly Totals'!K46 -> 0 | BJ62: ='Weekly Totals'!L46 -> 0 | BK62: ='Weekly Totals'!M46 -> 0 | BL62: ='Weekly Totals'!N46 -> 0 | BM62: ='Weekly Totals'!O46 -> 0
S63: Pass/PT Hour | T63: =T61/T62 ->  | AJ63: Pass/PT Hour | AK63: =AK61/AK62 ->  | BA63: Pass/PT Hour | BB63: =BB61/BB62 -> 
A74: Passengers per Operating Day
AK78: Transit Passengers Per Operating Day (Sunday)
C79: Transit Passengers Per Operating Day (Weekday) | AK79: Month | AL79: =Sunday!D3 -> July | AM79: =Sunday!E3 -> August | AN79: =Sunday!F3 -> September | AO79: =Sunday!G3 -> October | AP79: =Sunday!H3 -> November | AQ79: =Sunday!I3 -> December | AR79: =Sunday!J3 -> January | AS79: =Sunday!K3 -> February | AT79: =Sunday!L3 -> March | AU79: =Sunday!M3 -> April | AV79: =Sunday!N3 -> May | AW79: =Sunday!O3 -> June
C80: Month | D80: =Weekday!D3 -> July | E80: =Weekday!E3 -> August | F80: =Weekday!F3 -> September | G80: =Weekday!G3 -> October | H80: =Weekday!H3 -> November | I80: =Weekday!I3 -> December | J80: =Weekday!J3 -> January | K80: =Weekday!K3 -> February | L80: =Weekday!L3 -> March | M80: =Weekday!M3 -> April | N80: =Weekday!N3 -> May | O80: =Weekday!O3 -> June | T80: Transit Passengers Per Operating Day (Saturday) | AK80: Tot Pass | AL80: =Sunday!D60 -> 0 | AM80: =Sunday!E60 -> 0 | AN80: =Sunday!F60 -> 0 | AO80: =Sunday!G60 -> 0 | AP80: =Sunday!H60 -> 0 | AQ80: =Sunday!I60 -> 0 | AR80: =Sunday!J60 -> 0 | AS80: =Sunday!K60 -> 0 | AT80: =Sunday!L60 -> 0 | AU80: =Sunday!M60 -> 0 | AV80: =Sunday!N60 -> 0 | AW80: =Sunday!O60 -> 0
C81: Tot Pass | D81: =Weekday!D60 -> 0 | E81: =Weekday!E60 -> 0 | F81: =Weekday!F60 -> 0 | G81: =Weekday!G60 -> 0 | H81: =Weekday!H60 -> 0 | I81: =Weekday!I60 -> 0 | J81: =Weekday!J60 -> 0 | K81: =Weekday!K60 -> 0 | L81: =Weekday!L60 -> 0 | M81: =Weekday!M60 -> 0 | N81: =Weekday!N60 -> 0 | O81: =Weekday!O60 -> 0 | T81: Month | U81: =Saturday!D3 -> July | V81: =Saturday!E3 -> August | W81: =Saturday!F3 -> September | X81: =Saturday!G3 -> October | Y81: =Saturday!H3 -> November | Z81: =Saturday!I3 -> December | AA81: =Saturday!J3 -> January | AB81: =Saturday!K3 -> February | AC81: =Saturday!L3 -> March | AD81: =Saturday!M3 -> April | AE81: =Saturday!N3 -> May | AF81: =Saturday!O3 -> June | AK81: DO Pass | AL81: =Sunday!D12+Sunday!D28+Sunday!D44 -> 0 | AM81: =Sunday!E12+Sunday!E28+Sunday!E44 -> 0 | AN81: =Sunday!F12+Sunday!F28+Sunday!F44 -> 0 | AO81: =Sunday!G12+Sunday!G28+Sunday!G44 -> 0 | AP81: =Sunday!H12+Sunday!H28+Sunday!H44 -> 0 | AQ81: =Sunday!I12+Sunday!I28+Sunday!I44 -> 0 | AR81: =Sunday!J12+Sunday!J28+Sunday!J44 -> 0 | AS81: =Sunday!K12+Sunday!K28+Sunday!K44 -> 0 | AT81: =Sunday!L12+Sunday!L28+Sunday!L44 -> 0 | AU81: =Sunday!M12+Sunday!M28+Sunday!M44 -> 0 | AV81: =Sunday!N12+Sunday!N28+Sunday!N44 -> 0 | AW81: =Sunday!O12+Sunday!O28+Sunday!O44 -> 0
C82: DO Pass | D82: =Weekday!D12+Weekday!D28+Weekday!D44 -> 0 | E82: =Weekday!E12+Weekday!E28+Weekday!E44 -> 0 | F82: =Weekday!F12+Weekday!F28+Weekday!F44 -> 0 | G82: =Weekday!G12+Weekday!G28+Weekday!G44 -> 0 | H82: =Weekday!H12+Weekday!H28+Weekday!H44 -> 0 | I82: =Weekday!I12+Weekday!I28+Weekday!I44 -> 0 | J82: =Weekday!J12+Weekday!J28+Weekday!J44 -> 0 | K82: =Weekday!K12+Weekday!K28+Weekday!K44 -> 0 | L82: =Weekday!L12+Weekday!L28+Weekday!L44 -> 0 | M82: =Weekday!M12+Weekday!M28+Weekday!M44 -> 0 | N82: =Weekday!N12+Weekday!N28+Weekday!N44 -> 0 | O82: =Weekday!O12+Weekday!O28+Weekday!O44 -> 0 | T82: Tot Pass | U82: =Saturday!D60 -> 0 | V82: =Saturday!E60 -> 0 | W82: =Saturday!F60 -> 0 | X82: =Saturday!G60 -> 0 | Y82: =Saturday!H60 -> 0 | Z82: =Saturday!I60 -> 0 | AA82: =Saturday!J60 -> 0 | AB82: =Saturday!K60 -> 0 | AC82: =Saturday!L60 -> 0 | AD82: =Saturday!M60 -> 0 | AE82: =Saturday!N60 -> 0 | AF82: =Saturday!O60 -> 0 | AK82: PT Pass | AL82: =Sunday!D20+Sunday!D36+Sunday!D52 -> 0 | AM82: =Sunday!E20+Sunday!E36+Sunday!E52 -> 0 | AN82: =Sunday!F20+Sunday!F36+Sunday!F52 -> 0 | AO82: =Sunday!G20+Sunday!G36+Sunday!G52 -> 0 | AP82: =Sunday!H20+Sunday!H36+Sunday!H52 -> 0 | AQ82: =Sunday!I20+Sunday!I36+Sunday!I52 -> 0 | AR82: =Sunday!J20+Sunday!J36+Sunday!J52 -> 0 | AS82: =Sunday!K20+Sunday!K36+Sunday!K52 -> 0 | AT82: =Sunday!L20+Sunday!L36+Sunday!L52 -> 0 | AU82: =Sunday!M20+Sunday!M36+Sunday!M52 -> 0 | AV82: =Sunday!N20+Sunday!N36+Sunday!N52 -> 0 | AW82: =Sunday!O20+Sunday!O36+Sunday!O52 -> 0
C83: PT Pass | D83: =Weekday!D20+Weekday!D36+Weekday!D52 -> 0 | E83: =Weekday!E20+Weekday!E36+Weekday!E52 -> 0 | F83: =Weekday!F20+Weekday!F36+Weekday!F52 -> 0 | G83: =Weekday!G20+Weekday!G36+Weekday!G52 -> 0 | H83: =Weekday!H20+Weekday!H36+Weekday!H52 -> 0 | I83: =Weekday!I20+Weekday!I36+Weekday!I52 -> 0 | J83: =Weekday!J20+Weekday!J36+Weekday!J52 -> 0 | K83: =Weekday!K20+Weekday!K36+Weekday!K52 -> 0 | L83: =Weekday!L20+Weekday!L36+Weekday!L52 -> 0 | M83: =Weekday!M20+Weekday!M36+Weekday!M52 -> 0 | N83: =Weekday!N20+Weekday!N36+Weekday!N52 -> 0 | O83: =Weekday!O20+Weekday!O36+Weekday!O52 -> 0 | T83: DO Pass | U83: =Saturday!D12+Saturday!D28+Saturday!D44 -> 0 | V83: =Saturday!E12+Saturday!E28+Saturday!E44 -> 0 | W83: =Saturday!F12+Saturday!F28+Saturday!F44 -> 0 | X83: =Saturday!G12+Saturday!G28+Saturday!G44 -> 0 | Y83: =Saturday!H12+Saturday!H28+Saturday!H44 -> 0 | Z83: =Saturday!I12+Saturday!I28+Saturday!I44 -> 0 | AA83: =Saturday!J12+Saturday!J28+Saturday!J44 -> 0 | AB83: =Saturday!K12+Saturday!K28+Saturday!K44 -> 0 | AC83: =Saturday!L12+Saturday!L28+Saturday!L44 -> 0 | AD83: =Saturday!M12+Saturday!M28+Saturday!M44 -> 0 | AE83: =Saturday!N12+Saturday!N28+Saturday!N44 -> 0 | AF83: =Saturday!O12+Saturday!O28+Saturday!O44 -> 0 | AK83: Sundays | AL83: =Sunday!D4 -> 0 | AM83: =Sunday!E4 -> 0 | AN83: =Sunday!F4 -> 0 | AO83: =Sunday!G4 -> 0 | AP83: =Sunday!H4 -> 0 | AQ83: =Sunday!I4 -> 0 | AR83: =Sunday!J4 -> 0 | AS83: =Sunday!K4 -> 0 | AT83: =Sunday!L4 -> 0 | AU83: =Sunday!M4 -> 0 | AV83: =Sunday!N4 -> 0 | AW83: =Sunday!O4 -> 0
C84: Weekdays | D84: =Weekday!D4 -> 0 | E84: =Weekday!E4 -> 0 | F84: =Weekday!F4 -> 0 | G84: =Weekday!G4 -> 0 | H84: =Weekday!H4 -> 0 | I84: =Weekday!I4 -> 0 | J84: =Weekday!J4 -> 0 | K84: =Weekday!K4 -> 0 | L84: =Weekday!L4 -> 0 | M84: =Weekday!M4 -> 0 | N84: =Weekday!N4 -> 0 | O84: =Weekday!O4 -> 0 | T84: PT Pass | U84: =Saturday!D20+Saturday!D36+Saturday!D52 -> 0 | V84: =Saturday!E20+Saturday!E36+Saturday!E52 -> 0 | W84: =Saturday!F20+Saturday!F36+Saturday!F52 -> 0 | X84: =Saturday!G20+Saturday!G36+Saturday!G52 -> 0 | Y84: =Saturday!H20+Saturday!H36+Saturday!H52 -> 0 | Z84: =Saturday!I20+Saturday!I36+Saturday!I52 -> 0 | AA84: =Saturday!J20+Saturday!J36+Saturday!J52 -> 0 | AB84: =Saturday!K20+Saturday!K36+Saturday!K52 -> 0 | AC84: =Saturday!L20+Saturday!L36+Saturday!L52 -> 0 | AD84: =Saturday!M20+Saturday!M36+Saturday!M52 -> 0 | AE84: =Saturday!N20+Saturday!N36+Saturday!N52 -> 0 | AF84: =Saturday!O20+Saturday!O36+Saturday!O52 -> 0 | AK84: Tot Pass/Day | AL84: =AL80/AL83 ->  | AM84: =AM80/AM83 -> 
C85: Tot Pass/Day | D85: =D81/D84 ->  | T85: Saturday | U85: =Saturday!D4 -> 0 | V85: =Saturday!E4 -> 0 | W85: =Saturday!F4 -> 0 | X85: =Saturday!G4 -> 0 | Y85: =Saturday!H4 -> 0 | Z85: =Saturday!I4 -> 0 | AA85: =Saturday!J4 -> 0 | AB85: =Saturday!K4 -> 0 | AC85: =Saturday!L4 -> 0 | AD85: =Saturday!M4 -> 0 | AE85: =Saturday!N4 -> 0 | AF85: =Saturday!O4 -> 0 | AK85: DO Pass/Day | AL85: =AL81/AL83 ->  | AM85: =AM81/AM83 -> 
C86: DO Pass/Day | D86: =D82/D84 ->  | T86: Tot Pass/Day | U86: =U82/U85 ->  | V86: =V82/V85 ->  | AK86: PT Pass/Day | AL86: =AL82/AL83 ->  | AM86: =AM82/AM83 -> 
C87: PT Pass/Day | D87: =D83/D84 ->  | T87: DO Pass/Day | U87: =U83/U85 ->  | V87: =V83/V85 -> 
T88: PT Pass/Day | U88: =U84/U85 ->  | V88: =V84/V85 -> 
A105: Miles Per Hour | S105: Miles per Hour (Saturday)
T106: =Saturday!D3 -> July | U106: =Saturday!E3 -> August | V106: =Saturday!F3 -> September | W106: =Saturday!G3 -> October | X106: =Saturday!H3 -> November | Y106: =Saturday!I3 -> December | Z106: =Saturday!J3 -> January | AA106: =Saturday!K3 -> February | AB106: =Saturday!L3 -> March | AC106: =Saturday!M3 -> April | AD106: =Saturday!N3 -> May | AE106: =Saturday!O3 -> June | AJ106: Miles per Hour (Sunday)
S107: DR DO | T107: =Saturday!D7/Saturday!D6 ->  | U107: =Saturday!E7/Saturday!E6 ->  | V107: =Saturday!F7/Saturday!F6 ->  | W107: =Saturday!G7/Saturday!G6 ->  | X107: =Saturday!H7/Saturday!H6 ->  | Y107: =Saturday!I7/Saturday!I6 ->  | Z107: =Saturday!J7/Saturday!J6 ->  | AA107: =Saturday!K7/Saturday!K6 ->  | AB107: =Saturday!L7/Saturday!L6 ->  | AC107: =Saturday!M7/Saturday!M6 ->  | AD107: =Saturday!N7/Saturday!N6 ->  | AE107: =Saturday!O7/Saturday!O6 ->  | AK107: =Sunday!D3 -> July | AL107: =Sunday!E3 -> August | AM107: =Sunday!F3 -> September | AN107: =Sunday!G3 -> October | AO107: =Sunday!H3 -> November | AP107: =Sunday!I3 -> December | AQ107: =Sunday!J3 -> January | AR107: =Sunday!K3 -> February | AS107: =Sunday!L3 -> March | AT107: =Sunday!M3 -> April | AU107: =Sunday!N3 -> May | AV107: =Sunday!O3 -> June
C108: Miles per Hour (Weekday) | S108: DR PT | T108: =Saturday!D15/Saturday!D14 ->  | U108: =Saturday!E15/Saturday!E14 ->  | V108: =Saturday!F15/Saturday!F14 ->  | W108: =Saturday!G15/Saturday!G14 ->  | X108: =Saturday!H15/Saturday!H14 ->  | Y108: =Saturday!I15/Saturday!I14 ->  | Z108: =Saturday!J15/Saturday!J14 ->  | AA108: =Saturday!K15/Saturday!K14 ->  | AB108: =Saturday!L15/Saturday!L14 ->  | AC108: =Saturday!M15/Saturday!M14 ->  | AD108: =Saturday!N15/Saturday!N14 ->  | AE108: =Saturday!O15/Saturday!O14 ->  | AJ108: DR DO | AK108: =Sunday!D7/Sunday!D6 ->  | AL108: =Sunday!E7/Sunday!E6 ->  | AM108: =Sunday!F7/Sunday!F6 ->  | AN108: =Sunday!G7/Sunday!G6 ->  | AO108: =Sunday!H7/Sunday!H6 ->  | AP108: =Sunday!I7/Sunday!I6 ->  | AQ108: =Sunday!J7/Sunday!J6 ->  | AR108: =Sunday!K7/Sunday!K6 ->  | AS108: =Sunday!L7/Sunday!L6 ->  | AT108: =Sunday!M7/Sunday!M6 ->  | AU108: =Sunday!N7/Sunday!N6 ->  | AV108: =Sunday!O7/Sunday!O6 -> 
D109: ='Weekly Totals'!D3 -> July | E109: ='Weekly Totals'!E3 -> August | F109: ='Weekly Totals'!F3 -> September | G109: ='Weekly Totals'!G3 -> October | H109: ='Weekly Totals'!H3 -> November | I109: ='Weekly Totals'!I3 -> December | J109: ='Weekly Totals'!J3 -> January | K109: ='Weekly Totals'!K3 -> February | L109: ='Weekly Totals'!L3 -> March | M109: ='Weekly Totals'!M3 -> April | N109: ='Weekly Totals'!N3 -> May | O109: ='Weekly Totals'!O3 -> June | S109: MB DO | T109: =Saturday!D23/Saturday!D22 ->  | U109: =Saturday!E23/Saturday!E22 ->  | V109: =Saturday!F23/Saturday!F22 ->  | W109: =Saturday!G23/Saturday!G22 ->  | X109: =Saturday!H23/Saturday!H22 ->  | Y109: =Saturday!I23/Saturday!I22 ->  | Z109: =Saturday!J23/Saturday!J22 ->  | AA109: =Saturday!K23/Saturday!K22 ->  | AB109: =Saturday!L23/Saturday!L22 ->  | AC109: =Saturday!M23/Saturday!M22 ->  | AD109: =Saturday!N23/Saturday!N22 ->  | AE109: =Saturday!O23/Saturday!O22 ->  | AJ109: DR PT | AK109: =Sunday!D15/Sunday!D14 ->  | AL109: =Sunday!E15/Sunday!E14 ->  | AM109: =Sunday!F15/Sunday!F14 ->  | AN109: =Sunday!G15/Sunday!G14 ->  | AO109: =Sunday!H15/Sunday!H14 ->  | AP109: =Sunday!I15/Sunday!I14 ->  | AQ109: =Sunday!J15/Sunday!J14 ->  | AR109: =Sunday!K15/Sunday!K14 ->  | AS109: =Sunday!L15/Sunday!L14 ->  | AT109: =Sunday!M15/Sunday!M14 ->  | AU109: =Sunday!N15/Sunday!N14 ->  | AV109: =Sunday!O15/Sunday!O14 -> 
C110: DRDO | D110: ='Weekly Totals'!D7/'Weekly Totals'!D6 ->  | E110: ='Weekly Totals'!E7/'Weekly Totals'!E6 ->  | F110: ='Weekly Totals'!F7/'Weekly Totals'!F6 ->  | G110: ='Weekly Totals'!G7/'Weekly Totals'!G6 ->  | H110: ='Weekly Totals'!H7/'Weekly Totals'!H6 ->  | I110: ='Weekly Totals'!I7/'Weekly Totals'!I6 ->  | J110: ='Weekly Totals'!J7/'Weekly Totals'!J6 ->  | K110: ='Weekly Totals'!K7/'Weekly Totals'!K6 ->  | L110: ='Weekly Totals'!L7/'Weekly Totals'!L6 ->  | M110: ='Weekly Totals'!M7/'Weekly Totals'!M6 ->  | N110: ='Weekly Totals'!N7/'Weekly Totals'!N6 ->  | O110: ='Weekly Totals'!O7/'Weekly Totals'!O6 ->  | S110: MB PT | T110: =Saturday!D31/Saturday!D30 ->  | U110: =Saturday!E31/Saturday!E30 ->  | V110: =Saturday!F31/Saturday!F30 ->  | W110: =Saturday!G31/Saturday!G30 ->  | X110: =Saturday!H31/Saturday!H30 ->  | Y110: =Saturday!I31/Saturday!I30 ->  | Z110: =Saturday!J31/Saturday!J30 ->  | AA110: =Saturday!K31/Saturday!K30 ->  | AB110: =Saturday!L31/Saturday!L30 ->  | AC110: =Saturday!M31/Saturday!M30 ->  | AD110: =Saturday!N31/Saturday!N30 ->  | AE110: =Saturday!O31/Saturday!O30 ->  | AJ110: MB DO | AK110: =Sunday!D23/Sunday!D22 ->  | AL110: =Sunday!E23/Sunday!E22 ->  | AM110: =Sunday!F23/Sunday!F22 ->  | AN110: =Sunday!G23/Sunday!G22 ->  | AO110: =Sunday!H23/Sunday!H22 ->  | AP110: =Sunday!I23/Sunday!I22 ->  | AQ110: =Sunday!J23/Sunday!J22 ->  | AR110: =Sunday!K23/Sunday!K22 ->  | AS110: =Sunday!L23/Sunday!L22 ->  | AT110: =Sunday!M23/Sunday!M22 ->  | AU110: =Sunday!N23/Sunday!N22 ->  | AV110: =Sunday!O23/Sunday!O22 -> 
C111: DRPT | D111: ='Weekly Totals'!D15/'Weekly Totals'!D14 ->  | E111: ='Weekly Totals'!E15/'Weekly Totals'!E14 ->  | F111: ='Weekly Totals'!F15/'Weekly Totals'!F14 ->  | G111: ='Weekly Totals'!G15/'Weekly Totals'!G14 ->  | H111: ='Weekly Totals'!H15/'Weekly Totals'!H14 ->  | I111: ='Weekly Totals'!I15/'Weekly Totals'!I14 ->  | J111: ='Weekly Totals'!J15/'Weekly Totals'!J14 ->  | K111: ='Weekly Totals'!K15/'Weekly Totals'!K14 ->  | L111: ='Weekly Totals'!L15/'Weekly Totals'!L14 ->  | M111: ='Weekly Totals'!M15/'Weekly Totals'!M14 ->  | N111: ='Weekly Totals'!N15/'Weekly Totals'!N14 ->  | O111: ='Weekly Totals'!O15/'Weekly Totals'!O14 ->  | S111: MT DO | T111: =Saturday!D39/Saturday!D38 ->  | U111: =Saturday!E39/Saturday!E38 ->  | V111: =Saturday!F39/Saturday!F38 ->  | W111: =Saturday!G39/Saturday!G38 ->  | X111: =Saturday!H39/Saturday!H38 ->  | Y111: =Saturday!I39/Saturday!I38 ->  | Z111: =Saturday!J39/Saturday!J38 ->  | AA111: =Saturday!K39/Saturday!K38 ->  | AB111: =Saturday!L39/Saturday!L38 ->  | AC111: =Saturday!M39/Saturday!M38 ->  | AD111: =Saturday!N39/Saturday!N38 ->  | AE111: =Saturday!O39/Saturday!O38 ->  | AJ111: MB PT | AK111: =Sunday!D31/Sunday!D30 ->  | AL111: =Sunday!E31/Sunday!E30 ->  | AM111: =Sunday!F31/Sunday!F30 ->  | AN111: =Sunday!G31/Sunday!G30 ->  | AO111: =Sunday!H31/Sunday!H30 ->  | AP111: =Sunday!I31/Sunday!I30 ->  | AQ111: =Sunday!J31/Sunday!J30 ->  | AR111: =Sunday!K31/Sunday!K30 ->  | AS111: =Sunday!L31/Sunday!L30 ->  | AT111: =Sunday!M31/Sunday!M30 ->  | AU111: =Sunday!N31/Sunday!N30 ->  | AV111: =Sunday!O31/Sunday!O30 -> 
C112: MBDO | D112: ='Weekly Totals'!D23/'Weekly Totals'!D22 ->  | E112: ='Weekly Totals'!E23/'Weekly Totals'!E22 ->  | F112: ='Weekly Totals'!F23/'Weekly Totals'!F22 ->  | G112: ='Weekly Totals'!G23/'Weekly Totals'!G22 ->  | H112: ='Weekly Totals'!H23/'Weekly Totals'!H22 ->  | I112: ='Weekly Totals'!I23/'Weekly Totals'!I22 ->  | J112: ='Weekly Totals'!J23/'Weekly Totals'!J22 ->  | K112: ='Weekly Totals'!K23/'Weekly Totals'!K22 ->  | L112: ='Weekly Totals'!L23/'Weekly Totals'!L22 ->  | M112: ='Weekly Totals'!M23/'Weekly Totals'!M22 ->  | N112: ='Weekly Totals'!N23/'Weekly Totals'!N22 ->  | O112: ='Weekly Totals'!O23/'Weekly Totals'!O22 ->  | S112: MT PT | T112: =Saturday!D47/Saturday!D46 ->  | U112: =Saturday!E47/Saturday!E46 ->  | V112: =Saturday!F47/Saturday!F46 ->  | W112: =Saturday!G47/Saturday!G46 ->  | X112: =Saturday!H47/Saturday!H46 ->  | Y112: =Saturday!I47/Saturday!I46 ->  | Z112: =Saturday!J47/Saturday!J46 ->  | AA112: =Saturday!K47/Saturday!K46 ->  | AB112: =Saturday!L47/Saturday!L46 ->  | AC112: =Saturday!M47/Saturday!M46 ->  | AD112: =Saturday!N47/Saturday!N46 ->  | AE112: =Saturday!O47/Saturday!O46 ->  | AJ112: MT DO | AK112: =Sunday!D39/Sunday!D38 ->  | AL112: =Sunday!E39/Sunday!E38 ->  | AM112: =Sunday!F39/Sunday!F38 ->  | AN112: =Sunday!G39/Sunday!G38 ->  | AO112: =Sunday!H39/Sunday!H38 ->  | AP112: =Sunday!I39/Sunday!I38 ->  | AQ112: =Sunday!J39/Sunday!J38 ->  | AR112: =Sunday!K39/Sunday!K38 ->  | AS112: =Sunday!L39/Sunday!L38 ->  | AT112: =Sunday!M39/Sunday!M38 ->  | AU112: =Sunday!N39/Sunday!N38 ->  | AV112: =Sunday!O39/Sunday!O38 -> 
C113: MBPT | D113: ='Weekly Totals'!D31/'Weekly Totals'!D30 ->  | E113: ='Weekly Totals'!E31/'Weekly Totals'!E30 ->  | F113: ='Weekly Totals'!F31/'Weekly Totals'!F30 ->  | G113: ='Weekly Totals'!G31/'Weekly Totals'!G30 ->  | H113: ='Weekly Totals'!H31/'Weekly Totals'!H30 ->  | I113: ='Weekly Totals'!I31/'Weekly Totals'!I30 ->  | J113: ='Weekly Totals'!J31/'Weekly Totals'!J30 ->  | K113: ='Weekly Totals'!K31/'Weekly Totals'!K30 ->  | L113: ='Weekly Totals'!L31/'Weekly Totals'!L30 ->  | M113: ='Weekly Totals'!M31/'Weekly Totals'!M30 ->  | N113: ='Weekly Totals'!N31/'Weekly Totals'!N30 ->  | O113: ='Weekly Totals'!O31/'Weekly Totals'!O30 ->  | S113: TOTAL | T113: =Saturday!D55/Saturday!D54 ->  | U113: =Saturday!E55/Saturday!E54 ->  | V113: =Saturday!F55/Saturday!F54 ->  | W113: =Saturday!G55/Saturday!G54 ->  | X113: =Saturday!H55/Saturday!H54 ->  | Y113: =Saturday!I55/Saturday!I54 ->  | Z113: =Saturday!J55/Saturday!J54 ->  | AA113: =Saturday!K55/Saturday!K54 ->  | AB113: =Saturday!L55/Saturday!L54 ->  | AC113: =Saturday!M55/Saturday!M54 ->  | AD113: =Saturday!N55/Saturday!N54 ->  | AE113: =Saturday!O55/Saturday!O54 ->  | AJ113: MT PT | AK113: =Sunday!D47/Sunday!D46 ->  | AL113: =Sunday!E47/Sunday!E46 ->  | AM113: =Sunday!F47/Sunday!F46 ->  | AN113: =Sunday!G47/Sunday!G46 ->  | AO113: =Sunday!H47/Sunday!H46 ->  | AP113: =Sunday!I47/Sunday!I46 ->  | AQ113: =Sunday!J47/Sunday!J46 ->  | AR113: =Sunday!K47/Sunday!K46 ->  | AS113: =Sunday!L47/Sunday!L46 ->  | AT113: =Sunday!M47/Sunday!M46 ->  | AU113: =Sunday!N47/Sunday!N46 ->  | AV113: =Sunday!O47/Sunday!O46 -> 
C114: MTDO | D114: =Weekday!D39/Weekday!D38 ->  | E114: =Weekday!E39/Weekday!E38 ->  | F114: =Weekday!F39/Weekday!F38 ->  | G114: =Weekday!G39/Weekday!G38 ->  | H114: =Weekday!H39/Weekday!H38 ->  | I114: =Weekday!I39/Weekday!I38 ->  | J114: =Weekday!J39/Weekday!J38 ->  | K114: =Weekday!K39/Weekday!K38 ->  | L114: =Weekday!L39/Weekday!L38 ->  | M114: =Weekday!M39/Weekday!M38 ->  | N114: =Weekday!N39/Weekday!N38 ->  | O114: =Weekday!O39/Weekday!O38 ->  | AJ114: TOTAL | AK114: =Sunday!D55/Sunday!D54 ->  | AL114: =Sunday!E55/Sunday!E54 ->  | AM114: =Sunday!F55/Sunday!F54 ->  | AN114: =Sunday!G55/Sunday!G54 ->  | AO114: =Sunday!H55/Sunday!H54 ->  | AP114: =Sunday!I55/Sunday!I54 ->  | AQ114: =Sunday!J55/Sunday!J54 ->  | AR114: =Sunday!K55/Sunday!K54 ->  | AS114: =Sunday!L55/Sunday!L54 ->  | AT114: =Sunday!M55/Sunday!M54 ->  | AU114: =Sunday!N55/Sunday!N54 ->  | AV114: =Sunday!O55/Sunday!O54 -> 
C115: MTPT | D115: =Weekday!D47/Weekday!D46 ->  | E115: =Weekday!E47/Weekday!E46 ->  | F115: =Weekday!F47/Weekday!F46 ->  | G115: =Weekday!G47/Weekday!G46 ->  | H115: =Weekday!H47/Weekday!H46 ->  | I115: =Weekday!I47/Weekday!I46 ->  | J115: =Weekday!J47/Weekday!J46 ->  | K115: =Weekday!K47/Weekday!K46 ->  | L115: =Weekday!L47/Weekday!L46 ->  | M115: =Weekday!M47/Weekday!M46 ->  | N115: =Weekday!N47/Weekday!N46 ->  | O115: =Weekday!O47/Weekday!O46 -> 
A134: Trips by Contract Type
D137: Non-Contract | E137: ='Weekly Totals'!T56 -> 0 | S137: Non-Contract | U137: ='Weekly Totals'!T8+'Weekly Totals'!T16 -> 0 | AK137: Non-Contract | AM137: ='Weekly Totals'!T24+'Weekly Totals'!T32 -> 0 | AZ137: Non-Contract | BB137: ='Weekly Totals'!T40+'Weekly Totals'!T48 -> 0
D138: Medicaid Contract | E138: ='Weekly Totals'!T57 -> 0 | S138: Medicaid Contract | U138: ='Weekly Totals'!T9+'Weekly Totals'!T17 -> 0 | AK138: Medicaid Contract | AM138: ='Weekly Totals'!T25+'Weekly Totals'!T33 -> 0 | AZ138: Medicaid Contract | BB138: ='Weekly Totals'!T41+'Weekly Totals'!T49 -> 0
D139: Non-Medicaid Contract | E139: ='Weekly Totals'!T58 -> 0 | S139: Non-Medicaid Contract | U139: ='Weekly Totals'!T10+'Weekly Totals'!T18 -> 0 | AK139: Non-Medicaid Contract | AM139: ='Weekly Totals'!T26+'Weekly Totals'!T34 -> 0 | AZ139: Non-Medicaid Contract | BB139: ='Weekly Totals'!T42+'Weekly Totals'!T50 -> 0
D140: Brokered Medicaid Contract | E140: ='Weekly Totals'!T59 -> 0 | S140: Brokered Medicaid Contract | U140: ='Weekly Totals'!T11+'Weekly Totals'!T19 -> 0 | AK140: Brokered Medicaid Contract | AM140: ='Weekly Totals'!T27+'Weekly Totals'!T35 -> 0 | AZ140: Brokered Medicaid Contract | BB140: ='Weekly Totals'!T43+'Weekly Totals'!T51 -> 0

Sheet Finance (hidden)
B1: ="5. FINANCIAL DATA: "&Overview!D4 -> 5. FINANCIAL DATA:
B2: =CONCATENATE(Overview!B2) -> FY2024
E3: A | F3: B | G3: C | H3: D | I3: E | J3: F | K3: G | L3: H | M3: I | N3: J | O3: K | P3: L | Q3: M | R3: N | S3: O
C4: Resource | E4: Admin/Operating | L4: Capital | S4: Description
E5: DR DO | F5: DR PT | G5: MB DO | H5: MB PT | I5: MT DO | J5: MT PT | K5: TOTAL | L5: DR DO | M5: DR PT | N5: MB DO | O5: MB PT | P5: MT DO | Q5: MT PT | R5: TOTAL
B6: EXPENSES | C6: ADMINISTRATIVE
A7: =Sunday!A50+1 -> 136 | D7: Personnel Salaries & Fringes - CTP Object Codes G121-189 | K7: =SUM(E7:J7) -> 0 | T7: =A7 -> 136
A8: =A7+1 -> 137 | D8: Advertising and Promotion - CTP Object Codes G371-373 | K8: =SUM(E8:J8) -> 0 | T8: =T7+1 -> 137
A9: =A8+1 -> 138 | D9: Employee Development - CTP Object Code G395 | K9: 0 | T9: =T8+1 -> 138
A10: =A9+1 -> 139 | D10: Vehicle Insurance Premiums - CTP Object Code G452 | K10: 0 | T10: =T9+1 -> 139
A11: =A10+1 -> 140 | D11: Indirect Services - CTP Object Code G481 | K11: 0 | T11: =T10+1 -> 140
A12: =A11+1 -> 141 | D12: CTP Codes G190-359; 380-394; 396-451; 454-480; 482-491 | K12: 0 | T12: =T11+1 -> 141
A13: 142 | D13: Other Admin Expense (describe to the right) | K13: 0 | T13: 142
D14: Total Administrative Expenses | E14: =SUM(E7:E13) -> 0 | F14: =SUM(F7:F13) -> 0 | G14: 0 | H14: 0 | I14: 0 | J14: 0 | K14: =SUM(K7:K13) -> 0
C15: OPERATING
A16: =A13+1 -> 143 | D16: Driver Salaries & Fringes | K16: =SUM(E16:J16) -> 0 | T16: =T13+1 -> 143
A17: =A16+1 -> 144 | D17: Other Operating Staff Salaries & Fringes | K17: =SUM(E17:J17) -> 0 | T17: =T16+1 -> 144
A18: =A17+1 -> 145 | D18: Mechanics Salaries & Fringes | K18: 0 | T18: =T17+1 -> 145
A19: =A18+1 -> 146 | D19: Indirect Services | K19: 0 | T19: =T18+1 -> 146
A20: =A19+1 -> 147 | D20: Fuel | K20: 0 | T20: =T19+1 -> 147
A21: =A20+1 -> 148 | D21: Vehicle Maintenance | K21: 0 | T21: =T20+1 -> 148
A22: 149 | D22: Payment of Insurance Deductible(s) | K22: 0 | T22: 149
A23: 150 | D23: Disposal of Vehicle(s) | K23: 0 | T23: 150
A24: =A23+1 -> 151 | D24: Management/Operation Services | K24: 0 | T24: =T23+1 -> 151
A25: =A24+1 -> 152 | D25: Volunteer Reimbursement | K25: 0 | T25: =T24+1 -> 152
A26: =A25+1 -> 153 | D26: Other Transit Provider Services | K26: 0 | T26: =T25+1 -> 153
A27: =A26+1 -> 154 | D27: Other (describe to the right) | K27: 0 | T27: =T26+1 -> 154
D28: Total Operating Expenses | E28: =SUM(E16:E27) -> 0 | F28: =SUM(F16:F27) -> 0 | G28: 0 | H28: 0 | I28: 0 | J28: 0 | K28: 0
C29: Total Admin/Operating Expenses | E29: =E14+E28 -> 0 | F29: =F14+F28 -> 0 | G29: 0 | H29: 0 | I29: 0 | J29: 0 | K29: =SUM(K14+K28) -> 0
C30: CAPITAL
A31: =A27+1 -> 155 | D31: Capital Purchases | R31: =SUM(L31:Q31) -> 0 | T31: =T27+1 -> 155
A32: =A31+1 -> 156 | D32: Body Work on Wrecked Vehicle | R32: =SUM(L32:Q32) -> 0 | T32: =T31+1 -> 156
A33: =A32+1 -> 157 | D33: Facility Renovation or Construction | R33: 0 | T33: =T32+1 -> 157
A34: =A33+1 -> 158 | D34: Advanced Technology Purchases | R34: 0 | T34: =T33+1 -> 158
A35: =A34+1 -> 159 | D35: Other (describe to the right) | R35: 0 | T35: =T34+1 -> 159
D36: Total Capital Expenses | L36: =SUM(L31:L35) -> 0 | M36: =SUM(M31:M35) -> 0 | N36: 0 | O36: 0 | P36: 0 | Q36: 0 | R36: =SUM(R31:R35) -> 0
B37: REVENUE | C37: FEDERAL
A38: =A35+1 -> 160 | D38: Urbanized Area Fomula Funding-Section 5307 | K38: =SUM(E38:J38) -> 0 | R38: =SUM(L38:Q38) -> 0 | T38: =T35+1 -> 160
A39: =A38+1 -> 161 | D39: CARES Act-Section 5307 | K39: =SUM(E39:J39) -> 0 | R39: =SUM(L39:Q39) -> 0 | T39: =T38+1 -> 161
A40: =A39+1 -> 162 | D40: CRRSA Act-Section 5307 | K40: 0 | R40: 0 | T40: =T39+1 -> 162
A41: =A40+1 -> 163 | D41: ARP Act-Section 5307 | K41: 0 | R41: 0 | T41: 163
A42: =A41+1 -> 164 | D42: FTA Capital Program Funds-Section 5309 | K42: 0 | R42: 0 | T42: 164
A43: 165 | D43: Elderly and Disabled-Section 5310 | K43: 0 | R43: 0 | T43: 165
A44: 166 | D44: Capital Assistance Spent on Operations-Section 5310 | K44: 0 | T44: 166
A45: 167 | D45: CARES Act-Section 5310 | K45: 0 | R45: =SUM(L45:Q45) -> 0 | T45: 167
A46: 168 | D46: CRRSA Act-Section 5310 | K46: 0 | R46: =SUM(L46:Q46) -> 0 | T46: 168
A47: 169 | D47: ARP Act-Section 5310 | K47: 0 | R47: 0 | T47: 169
A48: 170 | D48: CTP Funds - Administrative/Capital-Section 5311 | K48: 0 | R48: 0 | T48: 170
A49: 171 | D49: CTP Funds - Operating-Section 5311 | K49: 0 | T49: 171
A50: 172 | D50: Capital Assistance Spent on Operations-Section 5311 | K50: 0 | T50: 172
A51: 173 | D51: Appalachian-Section 5311 | K51: 0 | R51: =SUM(L51:Q51) -> 0 | T51: 173
A52: 174 | D52: Tribal Federal Assistance-Section 5311 | K52: 0 | R52: =SUM(L52:Q52) -> 0 | T52: 174
A53: 175 | D53: ARRA Assistance-Section 5311 | K53: 0 | R53: 0 | T53: 175
A54: 176 | D54: ARRA Tribal Assistance-Section 5311 | K54: 0 | R54: 0 | T54: 176
A55: 177 | D55: CARES Act-Section 5311 | K55: 0 | R55: 0 | T55: 177
A56: 178 | D56: CRRSA Act-Section 5311 | K56: 0 | R56: 0 | T56: 178
A57: 179 | D57: ARP Act-Section 5311 | K57: 0 | R57: 0 | T57: 179
A58: 180 | D58: JARC Funds-Section 5316 | K58: 0 | R58: 0 | T58: 180
A59: 181 | D59: New Freedom Funds-Section 5317 | K59: 0 | R59: 0 | T59: 181
A60: 182 | D60: Bus and Bus Facilities 5339 | R60: 0 | T60: 182
A61: 183 | D61: Other FTA Revenues (describe to the right) | K61: =SUM(E61:J61) -> 0 | R61: 0 | T61: 183
A62: 184 | D62: Other Federal Non-FTA Revenues (describe to the right) | K62: =SUM(E62:J62) -> 0 | R62: 0 | T62: 184
D63: Federal total | E63: =SUM(E38:E62) -> 0 | F63: 0 | G63: 0 | H63: 0 | I63: 0 | J63: 0 | K63: 0 | L63: 0 | M63: 0 | N63: 0 | O63: 0 | P63: 0 | Q63: 0 | R63: 0
C64: STATE
A65: =A62+1 -> 185 | D65: CTP Funds - Administrative | K65: =SUM(E65:J65) -> 0 | T65: =T62+1 -> 185
A66: =A65+1 -> 186 | D66: ROAP Funds - Suballocated to the Transit System | K66: =SUM(E66:J66) -> 0 | T66: =T65+1 -> 186
A67: =A66+1 -> 187 | D67: Vehicles & Other Capital Revenues | R67: =SUM(L67:Q67) -> 0 | T67: =T66+1 -> 187
A68: =A67+1 -> 188 | D68: Facility | R68: =SUM(L68:Q68) -> 0 | T68: =T67+1 -> 188
A69: =A68+1 -> 189 | D69: Advanced Technology | R69: 0 | T69: =T68+1 -> 189
A70: =A69+1 -> 190 | D70: Other (describe to the right) | K70: =SUM(E70:J70) -> 0 | R70: 0 | T70: =T69+1 -> 190
D71: State total | E71: =SUM(E65:E70) -> 0 | F71: 0 | G71: 0 | H71: 0 | I71: 0 | J71: 0 | K71: =SUM(K65:K70) -> 0 | L71: 0 | M71: 0 | N71: 0 | O71: 0 | P71: 0 | Q71: 0 | R71: 0
C72: LOCAL
A73: =A70+1 -> 191 | D73: Government Funds | K73: =SUM(E73:J73) -> 0 | R73: =SUM(L73:Q73) -> 0 | T73: =T70+1 -> 191
A74: =A73+1 -> 192 | D74: Medicaid Revenue | K74: =SUM(E74:J74) -> 0 | R74: =SUM(L74:Q74) -> 0 | T74: =T73+1 -> 192
A75: =A74+1 -> 193 | D75: Brokered Medicaid Revenue | K75: 0 | R75: 0 | T75: =T74+1 -> 193
A76: 194 | D76: Contract Revenue: Full Cost | K76: 0 | R76: 0 | T76: 194
A77: 195 | D77: Other Directly Generated Revenue | K77: 0 | R77: 0 | T77: 195
A78: 196 | D78: Fares from passengers | K78: 0 | R78: 0 | T78: 196
A79: 197 | D79: Donations | K79: 0 | R79: 0 | T79: 197
A80: 198 | D80: Interest Income | K80: 0 | R80: 0 | T80: 198
A81: 199 | D81: Advertising Revenue | K81: 0 | R81: 0 | T81: 199
A82: 200 | D82: Insurance Proceeds from Accident | K82: 0 | R82: 0 | T82: 200
A83: 201 | D83: Proceeds from Sale of Vehicle (used for capital only) | R83: 0 | T83: 201
A84: 202 | D84: Other Revenue (describe to the right) | K84: =SUM(E84:J84) -> 0 | R84: 0 | T84: 202
D85: Local total | E85: =SUM(E73:E84) -> 0 | F85: =SUM(F73:F84) -> 0 | G85: 0 | H85: 0 | I85: 0 | J85: 0 | K85: 0 | L85: =SUM(L73:L84) -> 0 | M85: =SUM(M73:M84) -> 0 | N85: 0 | O85: =SUM(O73:O84) -> 0 | P85: =SUM(P73:P84) -> 0 | Q85: 0 | R85: =SUM(R73:R84) -> 0
C86: Total Revenue | E86: =SUM(E63+E71+E85) -> 0 | F86: =SUM(F63+F71+F85) -> 0 | G86: 0 | H86: 0 | I86: =SUM(I63+I71+I85) -> 0 | J86: 0 | K86: 0 | L86: =SUM(L63+L71+L85) -> 0 | M86: =SUM(M63+M71+M85) -> 0 | N86: 0 | O86: 0 | P86: =SUM(P63+P71+P85) -> 0 | Q86: 0 | R86: 0
C87: Total Expenses | E87: =E29 -> 0 | F87: =F29 -> 0 | G87: =G29 -> 0 | H87: 0 | I87: =I29 -> 0 | J87: 0 | K87: 0 | L87: =L36 -> 0 | M87: =M36 -> 0 | N87: 0 | O87: 0 | P87: =P36 -> 0 | Q87: 0 | R87: 0
B88: Surplus / Deficit = Total Revenue-Total Expenses | E88: =K86-K29 -> 0 | L88: =R86-R36 -> 0
E89: A | F89: B | G89: C | H89: D | I89: E | J89: F | K89: G | L89: H | M89: I | N89: J | O89: K | P89: L | Q89: M | R89: N | S89: O
CL91: 4

Sheet Annual Statistics (hidden)
B1: ="6. ANNUAL STATS: "&Overview!D4 -> 6. ANNUAL STATS:
B2: =Overview!B2 -> FY2024 | C2: A | D2: B | E2: C | F2: D | G2: E
B3: Volunteer Resources
A4: =Finance!A84+1 -> 203 | B4: Total volunteer drivers | D4: Personal Vehicles Used | H4: =A4 -> 203
B6: Incidental Services (training, maintenance, fuel, other non-passenger services)
A7: =A4+1 -> 204 | B7: Miles | E7: Hours | H7: =H4+1 -> 204
B8: Incidental Services Description:
A9: =A7+1 -> 205 | H9: =H7+1 -> 205
B11: CARES Act Incidental Services (training, maintenance, fuel, other non-passenger services)
A12: =A9+1 -> 206 | B12: Miles | E12: Hours | H12: =H9+1 -> 206
B13: CARES Act Incidental Services Description:
A14: =A12+1 -> 207 | H14: =H12+1 -> 207
B16: Employee Information
C17: Full Time Employee | E17: Part Time Employee | G17: FTE
C18: How Many | D18: Total Pay Hours | E18: How Many | F18: Total Pay Hours
A19: =A14+1 -> 208 | B19: Administrative | G19: =(D19+F19)/2080 -> 0 | H19: =H14+1 -> 208
A20: =A19+1 -> 209 | B20: Maintenance | G20: =(D20+F20)/2080 -> 0 | H20: =H19+1 -> 209
A21: 210 | B21: Driver | G21: 0 | H21: 210
A22: =A21+1 -> 211 | B22: Other Operational | G22: 0 | H22: =H21+1 -> 211
B23: Total | C23: =SUM(C19:C22) -> 0 | D23: =SUM(D19:D22) -> 0 | E23: =SUM(E19:E22) -> 0 | F23: =SUM(F19:F22) -> 0 | G23: =SUM(G19:G22) -> 0
B25: Non-Ambulatory
A26: =A22+1 -> 212 | B26: Non-ambulatory passenger trips | H26: =H22+1 -> 212
B28: Maintenance Information
A29: =A26+1 -> 213 | B29: Select your vehicle maintenance method | H29: =H26+1 -> 213
C30: # Owned | E30: # Leased | G30: Total
A31: =A29+1 -> 214 | B31: Maintenance facilities grantee | G31: =C31+E31 -> 0 | H31: =H29+1 -> 214
B33: Safety Statistics (NTD only)
C34: NTD Events | E34: NTD Fatalities | G34: NTD Injuries
A35: =A31+1 -> 215 | B35: NTD Reportable (see instructions) | H35: =H31+1 -> 215
B37: Human Service Agency / Community Organization Trips Served
C38: Annual Trips | F38: Annual Trips
A39: =A35+1 -> 216 | B39: Vocational Rehabilitation | C39: 0 | E39: DSS Medicaid | F39: 0 | H39: =H35+1 -> 216
A40: =A39+1 -> 217 | B40: Vocational Workshop (or equivalent) | C40: 0 | E40: DSS WorkFirst | F40: 0 | H40: =H39+1 -> 217
A41: 218 | B41: Headstart | C41: 0 | E41: DSS - Other | F41: 0 | H41: 218
A42: =A41+1 -> 219 | B42: Nursing Home/Assisted Living Facility | C42: 0 | E42: Senior Services | F42: 0 | H42: =H41+1 -> 219
A43: 220 | B43: United Way Agency(ies) | C43: 0 | E43: Mental Health | F43: 0 | H43: 220
A44: 221 | B44: Parks and Recreation | C44: 0 | E44: OTHER | F44: 0 | H44: 221
A45: 222 | B45: Local Employer(s) | C45: 0 | H45: 222
B47: How has your administration and/or operations changed since last year (be detailed)?
A48: =A45+1 -> 223 | H48: =H45+1 -> 223
C49: A | D49: B | E49: C | F49: D | G49: E

Sheet Physical Assaults (hidden)
A1: Please provide the number of each occurance in the corresponding BLUE cells below
A2: Physical Assaults | B2: In Transit Vehicle | C2: In Revenue Facility | D2: In Non-Revenue Facility | E2: In Other Location
A3: Total Event Counts
A4: Major Safety and Security Events
A5: Non-Major Events (non-injury)
A6: Injuries Counts
A7: Operator Injuries
A8: Other Transit Worker Injuries
A9: Other Injuries
A10: Fatalities Counts
A11: Operator Fatalities
A12: Other-Transit Worker Fatalities
A13: Other Fatalities

Sheet Non-Physical Assaults (hidden)
A1: Please provide the number of each occurance in the corresponding BLUE cells below
A2: Non-Physical Assaults | B2: In Transit Vehicle | C2: In Revenue Facility | D2: In Non-Revenue Facility | E2: In Other Location
A3: Total Event Counts
A4: Major Safety and Security Events
A5: Non-Major Events (non-injury)
A6: Injuries Counts
A7: Operator Injuries
A8: Other Transit Worker Injuries
A9: Other Injuries
A10: Fatalities Counts
A11: Operator Fatalities
A12: Other-Transit Worker Fatalities
A13: Other Fatalities

Sheet Other Safety & Security Data (hidden)
A1: Please provide the number of each occurance in the corresponding BLUE cells below
A2: Event Type | B2: Major Events | C2: Fatalities | D2: Injuries
A3: Collisions with Pedestrian(s)
A4: Collisions with Vehicle(s)
A5: Collisions with Other (e.g. animal, manhole, shopping cart, etc.)
A6: Other Major Events
A7: Total Reportable injuries from non-major events

Sheet Completion (hidden)
B1: ="7. COMPLETION: "&Overview!D4 -> 7. COMPLETION:
B2: =Overview!B2 -> FY2024
B3: Summary | C3: DO | D3: PT | E3: Total
B4: Administrative Expenses | C4: =Finance!E14+Finance!G14+Finance!I14 -> 0 | D4: =Finance!F14+Finance!H14+Finance!J14 -> 0 | E4: =C4+D4 -> 0
B5: Operating Expenses | C5: =Finance!E28+Finance!G28+Finance!I28 -> 0 | D5: =Finance!F28+Finance!H28+Finance!J28 -> 0 | E5: =C5+D5 -> 0
B6: Capital Expenses | C6: =Finance!L36+Finance!N36+Finance!P36 -> 0 | D6: =Finance!M36+Finance!O36+Finance!Q36 -> 0 | E6: =C6+D6 -> 0
B7: Miles | C7: ='Weekly Totals'!T7+'Weekly Totals'!T23+'Weekly Totals'!T39 -> 0 | D7: ='Weekly Totals'!T15+'Weekly Totals'!T31+'Weekly Totals'!T47 -> 0 | E7: ='Weekly Totals'!T55 -> 0
B8: Hours | C8: ='Weekly Totals'!T6+'Weekly Totals'!T22+'Weekly Totals'!T38 -> 0 | D8: ='Weekly Totals'!T14+'Weekly Totals'!T30+'Weekly Totals'!T46 -> 0 | E8: ='Weekly Totals'!T54 -> 0
B9: Passenger Trips | C9: ='Weekly Totals'!T12+'Weekly Totals'!T28+'Weekly Totals'!T44 -> 0 | D9: ='Weekly Totals'!T20+'Weekly Totals'!T36+'Weekly Totals'!T52 -> 0 | E9: ='Weekly Totals'!T60 -> 0
B11: =Overview!B25&" Vital Signs" -> Vital Signs | C11: DO | D11: PT | E11: Total
B12: Fixed Route Weekly Passenger Trips/Hour | C12: =IFERROR('Weekly Totals'!T28/'Weekly Totals'!T22, 0) -> 0 | D12: =IFERROR('Weekly Totals'!T36/'Weekly Totals'!T30, 0) -> 0 | E12: =IFERROR(('Weekly Totals'!T28+'Weekly Totals'!T36)/('Weekly Totals'!T22+'Weekly Totals'!T30), 0) -> 0
B13: Demand Response/Sub Weekly Passenger Trips/Hour | C13: =IFERROR('Weekly Totals'!T12/'Weekly Totals'!T6, 0) -> 0 | D13: =IFERROR('Weekly Totals'!T20/'Weekly Totals'!T14, 0) -> 0 | E13: =IFERROR(('Weekly Totals'!T12+'Weekly Totals'!T20)/('Weekly Totals'!T6+'Weekly Totals'!T14), 0) -> 0
B14: Microtransit Weekday Passenger Trips/Hour | C14: =IFERROR('Weekly Totals'!T44/'Weekly Totals'!T38,0) -> 0 | D14: =IFERROR('Weekly Totals'!T52/'Weekly Totals'!T46,0) -> 0 | E14: =IFERROR(('Weekly Totals'!T44+'Weekly Totals'!T52)/('Weekly Totals'!T38+'Weekly Totals'!T46),0) -> 0
B15: Fixed Route Weekly Passenger Trips/Mile | C15: =IFERROR('Weekly Totals'!T28/'Weekly Totals'!T23, 0) -> 0 | D15: =IFERROR('Weekly Totals'!T36/'Weekly Totals'!T31, 0) -> 0 | E15: =IFERROR(('Weekly Totals'!T28+'Weekly Totals'!T36)/('Weekly Totals'!T23+'Weekly Totals'!T31), 0) -> 0
B16: Demand Response/Sub Weekly Passenger Trips/Mile | C16: =IFERROR('Weekly Totals'!T12/'Weekly Totals'!T7, 0) -> 0 | D16: =IFERROR('Weekly Totals'!T20/'Weekly Totals'!T15, 0) -> 0 | E16: =IFERROR(('Weekly Totals'!T12+'Weekly Totals'!T20)/('Weekly Totals'!T7+'Weekly Totals'!T15), 0) -> 0
B17: Microtransit Weekly Passenger Trips/Mile | C17: =IFERROR('Weekly Totals'!T44/'Weekly Totals'!T39,0) -> 0 | D17: =IFERROR('Weekly Totals'!T52/'Weekly Totals'!T47,0) -> 0 | E17: =IFERROR(('Weekly Totals'!T44+'Weekly Totals'!T52)/('Weekly Totals'!T39+'Weekly Totals'!T47),0) -> 0
B18: Operating Cost per Passenger Trips | C18: =IFERROR(($C$4+$C$5)/C9,0) -> 0 | D18: =IFERROR(($D$4+$D$5)/D9,0) -> 0 | E18: =IFERROR(($E$4+$E$5)/E9,0) -> 0
B19: Operating Cost per Hour | C19: =IFERROR(($C$4+$C$5)/C8,0) -> 0 | D19: =IFERROR(($D$4+$D$5)/D8,0) -> 0 | E19: =IFERROR(($E$4+$E$5)/E8,0) -> 0
B20: Operating Cost per Mile | C20: =IFERROR(($C$4+$C$5)/C7,0) -> 0 | D20: =IFERROR(($D$4+$D$5)/D7,0) -> 0 | E20: =IFERROR(($E$4+$E$5)/E7,0) -> 0
B21: Transit Trips per Driver FTE | C21: =IFERROR(('Weekly Totals'!T12+'Weekly Totals'!T28+'Weekly Totals'!T44)/'Annual Statistics'!G21, 0) -> 0 | E21: =C21 -> 0
A24: ='Annual Statistics'!A48+1 -> 224 | B24: How much money was in the Operating Reserve at the end of the year? | F24: ='Annual Statistics'!H48+1 -> 224
A25: =A24+1 -> 225 | B25: After reviewing the system's vital signs, what has the system been doing well? | F25: =F24+1 -> 225
A27: =A25+1 -> 226 | B27: After reviewing the system's vital signs, what should the system do to improve it's performance? | F27: =F25+1 -> 226
B29: I hereby certify that, to the best of my knowledge, the information in this report is accurate and complete.
B31: Signature of Authorized Official | E31: Date
B33: Signature of TAB Chairperson | E33: Date
B35: Signature of Financial Manager | E35: Date
B36: ITRE Comments about the data
B39: Upload the original excel file and scanned version of the signed completion tab to partner connect

Sheet Definitions (hidden)
A1: Worksheet | B1: Line Number(s) | C1: Description | D1: Instruction/Definition
A2: OVERVIEW | B2: 1 | C2: Grantee's Legal Name | D2: Select the legal name of the community transit system from drop down list.
B3: =B2+1 -> 2 | C3: Transit's Contact Person | D3: Enter the name of the contact person.
B4: =B3+1 -> 3 | C4: Contact Email | D4: Enter the email of the contact person.
B5: 4 | C5: Transit's Website Address | D5: Enter the URL of the transit system's Website.
B6: 5 | C6: Transit's Telephone Number | D6: Enter the system's phone number, including area code.
B7: 6 | C7: Select Service Area | D7: Click on the cell, then select from the drop down box the category that best fits your service area.
B8: 7 | C8: List Counties in Multi-County System (if applicable) | D8: If applicable, list the counties in your multi-county system.
B9: 8 | C9: Demand Response Directly Operated (DR DO) | D9: Select relevant operating modes for your transit system. Demand Response Directly Operated (DR DO) transit service is provided directly by a transit agency. This shared use system operates in response to calls from passengers or their agents to the transit operator, who schedules a vehicle to pick up the passengers to transport them to their destinations. Transportation agencies use their employees to supply the necessary labor to operate the revenue vehicles. This includes instances where an agency's employees provide purchased transportation (PT) services to the agency through a contractual agreement.
B10: 9 | C10: Demand Response Purchased (DR PT) | D10: Select relevant operating modes for your transit system. Demand Response Purchased (DR PT) transit service is provided to a public transit agency or governmental unit from a public or private transportation provider based on a written contract. The provider operates this shared use system in response to calls from passengers or their agents to the transit operator, who schedules a vehicle to pick up the passengers to transport them to their destinations.
B11: 10 | C11: Fixed Route Directly Operated (MB DO) | D11: Select relevant operating modes for your transit system. Fixed Route Directly Operated (MB DO) transit service is provided directly by a transit agency. MB DO systems operate on a repetitive, fixed schedule basis along a specific route with vehicles stopping to pickup and deliver passengers to specific locations; each fixed route trip serves the same origins and destinations. This designated mode includes deviated route and deviated point services.
B12: 10C, 11C | C12: MB DO/MB PT Description | D12: Using drop-down menu, select fixed route, deviated fixed route, or both.
B13: =B11+1 -> 11 | C13: Fixed Route Purchased (MB PT) | D13: Select relevant operating modes for your transit system. Fixed Route Purchased (MB PT) transit service is provided to a public transit agency or governmental unit from a public or private transportation provider based on a written contract. MB PT systems operate on a repetitive, fixed schedule basis along a specific route with vehicles stopping to pickup and deliver passengers to specific locations; each fixed route trip serves the same origins and destinations. This designated mode includes deviated route and deviated point services.
B14: 12 | C14: Microtransit Directly Operated (MT DO) | D14: Select the relevant operating modes for your transit system. Microtransit Directly Operated (MT DO) service is provided directly by a transit agency. This shared use system operates in an on-demand environment and trips are generally booked through a mobile application. Transportation agencies use their employees to supply the necessary labor to operate the revenue vehicles. This includes instances where an agency's employees provide purchased transportation (PT) services to another agency through a contractual agreement.
B15: 13 | C15: Microtransit Purchased (MT PT) | D15: Select the relevant operating modes for your transit system. Microtransit Purchased (MT PT) service is provided to a public transit agency or governmental unit from a public or private transportation provider base on a written contract. Microtransit systems operate on an on-demand schedule where trips are usually booked through a mobile application.
B16: 14 | C16: Weekday Operating Hours | D16: Enter the begin time and end time of your publicly available weekday service.
B17: 15 | C17: Saturday Operating Hours | D17: Enter the begin time and end time of your publicly available Saturday service (if applicable).
B18: 16 | C18: Sunday Operating Hours | D18: Enter the begin time and end time of your publicly available Sunday service (if applicable).
B19: 17 | C19: Contractor Name (For PT Mode Only) | D19: Enter the name of your management/operations contractor, if applicable.
B20: 18 | C20: Contract Start / End Date (For PT Mode Only) | D20: Enter the dates your management/operations contract is in effect.
B21: 19 | C21: Do You Provide Trips to Out-of-Service Area Destinations? | D21: Click on the checkbox if applicable.
B22: 20 | C22: List Out-of-Service Area Destinations | D22: If applicable, list the cities to which you provide out-of-service area trips.
B23: 21 | C23: Do You Coordinate with Other Transportation Systems | D23: Click on the checkbox if applicable.
B24: 22 | C24: List the Community Transportation Systems (if applicable) | D24: If applicable, list the Transportation Systems with which you coordinate service.
B25: 23 | C25: Demand Response Fares | D25: The minimum base fare charged for your demand response service.
B26: 24 | C26: Fixed Route Fares | D26: The minimum base fare charged for your frixed route service.
B27: 25 | C27: Microtransit Fares | D27: The minimum base fare charged for your microtransit service.
B28: 26 | C28: Minimum Advanced Reservation Time (Hours) | D28: The minimum advanced reservation time required to book a trip in hours.
B29: 27 | C29: Minimum Advanced Reservation Time Explanation | D29: Explanation for your minimum advanced reservation time.
A31: WEEKDAY | B31: =B29+1 -> 28 | C31: Operating Days | D31: Enter the number of weekdays that your system provided service in the month indicated.
B32: =B31+1 -> 29 | C32: Hours | D32: The hours calculation differs by mode. For demand response mode (DR), hours are accounted from pull out to pull in. For fixed-route mode (MB), hours are the total time in hours for the reporting period from first scheduled stop to the last scheduled stop. For microtransit mode (MT), hours are the total time in hours for the reporting period from pull out to pull in. All three hour definitions exclude operator training, and vehicle maintenance testing, as well as school bus and charter services. Do not include hours spent providing incidental services such as meal or service delivery.
B33: =B32+1 -> 30 | C33: Miles | D33: The miles calculation differs by mode. For demand response mode (DR), miles are accounted from pull out to pull in. For fixed-route mode (MB), miles are the total distance driven for the reporting period from the first scheduled stop to the last scheduled stop. For microtransit mode (MT), miles are the total distance in miles for the reporting period from pull out to pull in. All three mile definitions exclude operator training, and vehicle maintenance testing, as well as school bus and charter services. Do not include miles spent providing incidental services such as meal or service delivery.
B34: =B33+1 -> 31 | C34: Passenger Trips: Non-Contract | D34: Enter the number of non-contract unlinked passenger trips (HYPERLINK within Doc - 341). The cost of non-contract trips are not billed to outside organizations or agencies, rather are typically drawn down from funds controlled by the Transit System or its
B35: 32 | C35: Passenger Trips: Medicaid Contract | D35: Enter the number of unlinked passenger trips carried for DSS that are sponsored by Medicaid.
B36: 33 | C36: Passenger Trips: Non-Medicaid Contract | D36: Enter the number of non-Medicaid unlinked passenger trips carried for human service agencies or others with whom the system has a contractual relationship.
B37: 34 | C37: Passenger Trips: Brokered Medicaid Contract | D37: Enter the number of unlinked passenger trips carried for Medicaid Brokers.
B38: 35 | C38: Hours | D38: The hours calculation differs by mode. For fixed-route mode (MB), hours are the total time in hours for the reporting period from first scheduled stop to the last scheduled stop. For demand response mode (DR), hours are accounted from pull out to pull in. For microtransit (M), hours are the total time in hours for the reporting period from pull out to pull in. All three hour definitions exclude operator training, and vehicle maintenance testing, as well as school bus and charter services. Do not include hours spent providing incidental services such as meal or service delivery.
B39: =B38+1 -> 36 | C39: Miles | D39: The miles calculation differs by mode. For fixed-route mode (MB), miles are the total distance driven for the reporting period from the first scheduled stop to the last scheduled stop. For demand response mode (DR), miles are accounted from pull out to pull in. For microtransit (M), miles are the total distance in miles for the reporting period from pull out to pull in. All three mile definitions exclude operator training, and vehicle maintenance testing, as well as school bus and charter services. Do not include miles spent providing incidental services such as meal or service delivery.
B40: =B39+1 -> 37 | C40: Passenger Trips: Non-Contract | D40: Enter the number of non-contract unlinked passenger trips (HYPERLINK within Doc - 341). The cost of non-contract trips are not billed to outside organizations or agencies, rather are typically drawn down from funds controlled by the Transit System or its parent organization.
B41: =B40+1 -> 38 | C41: Passenger Trips: Medicaid Contract | D41: Enter the number of unlinked passenger trips carried for DSS that are sponsored by Medicaid.
B42: =B41+1 -> 39 | C42: Passenger Trips: Non-Medicaid Contract | D42: Enter the number of non-Medicaid unlinked passenger trips carried for human service agencies or others with whom the system has a contractual relationship.
B43: =B42+1 -> 40 | C43: Hours | D43: The hours calculation differs by mode. For fixed-route mode (MB), hours are the total time in hours for the reporting period from first scheduled stop to the last scheduled stop. For demand response mode (DR), hours are accounted from pull out to pull in. For microtransit (M), hours are the total time in hours for the reporting period from pull out to pull in. All three hour definitions exclude operator training, and vehicle maintenance testing, as well as school bus and charter services. Do not include hours spent providing incidental services such as meal or service delivery.
B44: 41 | C44: Miles | D44: The miles calculation differs by mode. For fixed-route mode (MB), miles are the total distance driven for the reporting period from the first scheduled stop to the last scheduled stop. For demand response mode (DR), miles are accounted from pull out to pull in. For microtransit (M), miles are the total distance in miles for the reporting period from pull out to pull in. All three mile definitions exclude operator training, and vehicle maintenance testing, as well as school bus and charter services. Do not include miles spent providing incidental services such as meal or service delivery.
B45: =B44+1 -> 42 | C45: Passenger Trips: Non-Contract | D45: Enter the number of non-contract unlinked passenger trips (HYPERLINK within Doc - 341). The cost of non-contract trips are not billed to outside organizations or agencies, rather are typically drawn down from funds controlled by the Transit System or its parent organization.
B46: =B45+1 -> 43 | C46: Passenger Trips: Medicaid Contract | D46: Enter the number of unlinked passenger trips carried for DSS that are sponsored by Medicaid.
B47: =B46+1 -> 44 | C47: Passenger Trips: Non-Medicaid Contract | D47: Enter the number of non-Medicaid unlinked passenger trips carried for human service agencies or others with whom the system has a contractual relationship.
B48: 45 | C48: Hours | D48: The hours calculation differs by mode. For fixed-route mode (MB), hours are the total time in hours for the reporting period from first scheduled stop to the last scheduled stop. For demand response mode (DR), hours are accounted from pull out to pull in. For microtransit (M), hours are the total time in hours for the reporting period from pull out to pull in. All three hour definitions exclude operator training, and vehicle maintenance testing, as well as school bus and charter services. Do not include hours spent providing incidental services such as meal or service delivery.
B49: 46 | C49: Miles | D49: The miles calculation differs by mode. For fixed-route mode (MB), miles are the total distance driven for the reporting period from the first scheduled stop to the last scheduled stop. For demand response mode (DR), miles are accounted from pull out to pull in. For microtransit (M), miles are the total distance in miles for the reporting period from pull out to pull in. All three mile definitions exclude operator training, and vehicle maintenance testing, as well as school bus and charter services. Do not include miles spent providing incidental services such as meal or service delivery.
B50: =B49+1 -> 47 | C50: Passenger Trips: Non-Contract | D50: Enter the number of non-contract unlinked passenger trips (HYPERLINK within Doc - 341). The cost of non-contract trips are not billed to outside organizations or agencies, rather are typically drawn down from funds controlled by the Transit System or its parent organization.
B51: =B50+1 -> 48 | C51: Passenger Trips: Medicaid Contract | D51: Enter the number of unlinked passenger trips carried for DSS that are sponsored by Medicaid.
B52: =B51+1 -> 49 | C52: Passenger Trips: Non-Medicaid Contract | D52: Enter the number of non-Medicaid unlinked passenger trips carried for human service agencies or others with whom the system has a contractual relationship.
B53: =B52+1 -> 50 | C53: Passenger Trips: Brokered Medicaid Contract | D53: Enter the number of unlinked passenger trips carried for Medicaid Brokers.
B54: 51 | C54: Hours | D54: The hours calculation differs by mode. For fixed-route mode (MB), hours are the total time in hours for the reporting period from first scheduled stop to the last scheduled stop. For demand response mode (DR), hours are accounted from pull out to pull in. For microtransit (M), hours are the total time in hours for the reporting period from pull out to pull in. All three hour definitions exclude operator training, and vehicle maintenance testing, as well as school bus and charter services. Do not include hours spent providing incidental services such as meal or service delivery.
B55: =B54+1 -> 52 | C55: Miles | D55: The miles calculation differs by mode. For fixed-route mode (MB), miles are the total distance driven for the reporting period from the first scheduled stop to the last scheduled stop. For demand response mode (DR), miles are accounted from pull out to pull in. For microtransit (M), miles are the total distance in miles for the reporting period from pull out to pull in. All three mile definitions exclude operator training, and vehicle maintenance testing, as well as school bus and charter services. Do not include miles spent providing incidental services such as meal or service delivery.
B56: =B55+1 -> 53 | C56: Passenger Trips: Non-Contract | D56: Enter the number of non-contract unlinked passenger trips (HYPERLINK within Doc - 341). The cost of non-contract trips are not billed to outside organizations or agencies, rather are typically drawn down from funds controlled by the Transit System or its parent organization.
B57: =B56+1 -> 54 | C57: Passenger Trips: Medicaid Contract | D57: Enter the number of unlinked passenger trips carried for DSS that are sponsored by Medicaid.
B58: =B57+1 -> 55 | C58: Passenger Trips: Non-Medicaid Contract | D58: Enter the number of non-Medicaid unlinked passenger trips carried for human service agencies or others with whom the system has a contractual relationship.
B59: =B58+1 -> 56 | C59: Passenger Trips: Brokered Medicaid Contract | D59: Enter the number of unlinked passenger trips carried for Medicaid Brokers.
A61: SATURDAY | B61: 65 | C61: Operating Days | D61: Enter the number of Saturdays that your system provided service in the month indicated.
B62: =B61+1 -> 66 | C62: Hours | D62: The hours calculation differs by mode. For fixed-route mode (MB), hours are the total time in hours for the reporting period from first scheduled stop to the last scheduled stop. For demand response mode (DR), hours are accounted from pull out to pull in. Both hour definitions exclude operator training, and vehicle maintenance testing, as well as school bus and charter services. Do not include hours spent providing incidental services such as meal or service delivery.
B63: =B62+1 -> 67 | C63: Miles | D63: The miles calculation differs by mode. For fixed-route mode (MB), miles are the total distance driven for the reporting period from the first scheduled stop to the last scheduled stop. For demand response mode (DR), miles are accounted from pull out to pull in. Both mile definitions exclude operator training, and vehicle maintenance testing, as well as school bus and charter services. Do not include miles spent providing incidental services such as meal or service delivery.
B64: =B63+1 -> 68 | C64: Passenger Trips: Non-Contract | D64: Enter the number of non-contract unlinked passenger trips (HYPERLINK within Doc - 341). The cost of non-contract trips are not billed to outside organizations or agencies, rather are typically drawn down from funds controlled by the Transit System or its
B65: 69 | C65: Passenger Trips: Medicaid Contract | D65: Enter the number of unlinked passenger trips carried for DSS that are sponsored by Medicaid.
B66: 70 | C66: Passenger Trips: Non-Medicaid Contract | D66: Enter the number of non-Medicaid unlinked passenger trips carried for human service agencies or others with whom the system has a contractual relationship.
B67: 71 | C67: Passenger Trips: Brokered Medicaid Contract | D67: Enter the number of unlinked passenger trips carried for Medicaid Brokers.
B68: 72 | C68: Hours | D68: The hours calculation differs by mode. For fixed-route mode (MB), hours are the total time in hours for the reporting period from first scheduled stop to the last scheduled stop. For demand response mode (DR), hours are accounted from pull out to pull in. Both hour definitions exclude operator training, and vehicle maintenance testing, as well as school bus and charter services. Do not include hours spent providing incidental services such as meal or service delivery.
B69: =B68+1 -> 73 | C69: Miles | D69: The miles calculation differs by mode. For fixed-route mode (MB), miles are the total distance driven for the reporting period from the first scheduled stop to the last scheduled stop. For demand response mode (DR), miles are accounted from pull out to pull in. Both mile definitions exclude operator training, and vehicle maintenance testing, as well as school bus and charter services. Do not include miles spent providing incidental services such as meal or service delivery.
B70: =B69+1 -> 74 | C70: Passenger Trips: Non-Contract | D70: Enter the number of non-contract unlinked passenger trips (HYPERLINK within Doc - 341). The cost of non-contract trips are not billed to outside organizations or agencies, rather are typically drawn down from funds controlled by the Transit System or its parent organization.
B71: =B70+1 -> 75 | C71: Passenger Trips: Medicaid Contract | D71: Enter the number of unlinked passenger trips carried for DSS that are sponsored by Medicaid.
B72: =B71+1 -> 76 | C72: Passenger Trips: Non-Medicaid Contract | D72: Enter the number of non-Medicaid unlinked passenger trips carried for human service agencies or others with whom the system has a contractual relationship.
B73: =B72+1 -> 77 | C73: Hours | D73: The hours calculation differs by mode. For fixed-route mode (MB), hours are the total time in hours for the reporting period from first scheduled stop to the last scheduled stop. For demand response mode (DR), hours are accounted from pull out to pull in. Both hour definitions exclude operator training, and vehicle maintenance testing, as well as school bus and charter services. Do not include hours spent providing incidental services such as meal or service delivery.
B74: 78 | C74: Miles | D74: The miles calculation differs by mode. For fixed-route mode (MB), miles are the total distance driven for the reporting period from the first scheduled stop to the last scheduled stop. For demand response mode (DR), miles are accounted from pull out to pull in. Both mile definitions exclude operator training, and vehicle maintenance testing, as well as school bus and charter services. Do not include miles spent providing incidental services such as meal or service delivery.
B75: =B74+1 -> 79 | C75: Passenger Trips: Non-Contract | D75: Enter the number of non-contract unlinked passenger trips (HYPERLINK within Doc - 341). The cost of non-contract trips are not billed to outside organizations or agencies, rather are typically drawn down from funds controlled by the Transit System or its parent organization.
B76: =B75+1 -> 80 | C76: Passenger Trips: Medicaid Contract | D76: Enter the number of unlinked passenger trips carried for DSS that are sponsored by Medicaid.
B77: =B76+1 -> 81 | C77: Passenger Trips: Non-Medicaid Contract | D77: Enter the number of non-Medicaid unlinked passenger trips carried for human service agencies or others with whom the system has a contractual relationship.
B78: 82 | C78: Hours | D78: The hours calculation differs by mode. For fixed-route mode (MB), hours are the total time in hours for the reporting period from first scheduled stop to the last scheduled stop. For demand response mode (DR), hours are accounted from pull out to pull in. Both hour definitions exclude operator training, and vehicle maintenance testing, as well as school bus and charter services. Do not include hours spent providing incidental services such as meal or service delivery.
B79: 83 | C79: Miles | D79: The miles calculation differs by mode. For fixed-route mode (MB), miles are the total distance driven for the reporting period from the first scheduled stop to the last scheduled stop. For demand response mode (DR), miles are accounted from pull out to pull in. Both mile definitions exclude operator training, and vehicle maintenance testing, as well as school bus and charter services. Do not include miles spent providing incidental services such as meal or service delivery.
B80: =B79+1 -> 84 | C80: Passenger Trips: Non-Contract | D80: Enter the number of non-contract unlinked passenger trips (HYPERLINK within Doc - 341). The cost of non-contract trips are not billed to outside organizations or agencies, rather are typically drawn down from funds controlled by the Transit System or its parent organization.
B81: =B80+1 -> 85 | C81: Passenger Trips: Medicaid Contract | D81: Enter the number of unlinked passenger trips carried for DSS that are sponsored by Medicaid.
B82: =B81+1 -> 86 | C82: Passenger Trips: Non-Medicaid Contract | D82: Enter the number of non-Medicaid unlinked passenger trips carried for human service agencies or others with whom the system has a contractual relationship.
A84: SUNDAY | B84: 102 | C84: Operating Days | D84: Enter the number of Sundays that your system provided service in the month indicated.
B85: =B84+1 -> 103 | C85: Hours | D85: The hours calculation differs by mode. For fixed-route mode (MB), hours are the total time in hours for the reporting period from first scheduled stop to the last scheduled stop. For demand response mode (DR), hours are accounted from pull out to pull in. Both hour definitions exclude operator training, and vehicle maintenance testing, as well as school bus and charter services. Do not include hours spent providing incidental services such as meal or service delivery.
B86: =B85+1 -> 104 | C86: Miles | D86: The miles calculation differs by mode. For fixed-route mode (MB), miles are the total distance driven for the reporting period from the first scheduled stop to the last scheduled stop. For demand response mode (DR), miles are accounted from pull out to pull in. Both mile definitions exclude operator training, and vehicle maintenance testing, as well as school bus and charter services. Do not include miles spent providing incidental services such as meal or service delivery.
B87: =B86+1 -> 105 | C87: Passenger Trips: Non-Contract | D87: Enter the number of non-contract unlinked passenger trips (HYPERLINK within Doc - 341). The cost of non-contract trips are not billed to outside organizations or agencies, rather are typically drawn down from funds controlled by the Transit System or its
B88: 106 | C88: Passenger Trips: Medicaid Contract | D88: Enter the number of unlinked passenger trips carried for DSS that are sponsored by Medicaid.
B89: 107 | C89: Passenger Trips: Non-Medicaid Contract | D89: Enter the number of non-Medicaid unlinked passenger trips carried for human service agencies or others with whom the system has a contractual relationship.
B90: 108 | C90: Passenger Trips: Brokered Medicaid Contract | D90: Enter the number of unlinked passenger trips carried for Medicaid Brokers.
B91: =B89+1 -> 108 | C91: Hours | D91: The hours calculation differs by mode. For fixed-route mode (MB), hours are the total time in hours for the reporting period from first scheduled stop to the last scheduled stop. For demand response mode (DR), hours are accounted from pull out to pull in. Both hour definitions exclude operator training, and vehicle maintenance testing, as well as school bus and charter services. Do not include hours spent providing incidental services such as meal or service delivery.
B92: =B91+1 -> 109 | C92: Miles | D92: The miles calculation differs by mode. For fixed-route mode (MB), miles are the total distance driven for the reporting period from the first scheduled stop to the last scheduled stop. For demand response mode (DR), miles are accounted from pull out to pull in. Both mile definitions exclude operator training, and vehicle maintenance testing, as well as school bus and charter services. Do not include miles spent providing incidental services such as meal or service delivery.
B93: =B92+1 -> 110 | C93: Passenger Trips: Non-Contract | D93: Enter the number of non-contract unlinked passenger trips (HYPERLINK within Doc - 341). The cost of non-contract trips are not billed to outside organizations or agencies, rather are typically drawn down from funds controlled by the Transit System or its parent organization.
B94: =B93+1 -> 111 | C94: Passenger Trips: Medicaid Contract | D94: Enter the number of unlinked passenger trips carried for DSS that are sponsored by Medicaid.
B95: =B94+1 -> 112 | C95: Passenger Trips: Non-Medicaid Contract | D95: Enter the number of non-Medicaid unlinked passenger trips carried for human service agencies or others with whom the system has a contractual relationship.
B96: =B95+1 -> 113 | C96: Hours | D96: The hours calculation differs by mode. For fixed-route mode (MB), hours are the total time in hours for the reporting period from first scheduled stop to the last scheduled stop. For demand response mode (DR), hours are accounted from pull out to pull in. Both hour definitions exclude operator training, and vehicle maintenance testing, as well as school bus and charter services. Do not include hours spent providing incidental services such as meal or service delivery.
B97: 114 | C97: Miles | D97: The miles calculation differs by mode. For fixed-route mode (MB), miles are the total distance driven for the reporting period from the first scheduled stop to the last scheduled stop. For demand response mode (DR), miles are accounted from pull out to pull in. Both mile definitions exclude operator training, and vehicle maintenance testing, as well as school bus and charter services. Do not include miles spent providing incidental services such as meal or service delivery.
B98: =B97+1 -> 115 | C98: Passenger Trips: Non-Contract | D98: Enter the number of non-contract unlinked passenger trips (HYPERLINK within Doc - 341). The cost of non-contract trips are not billed to outside organizations or agencies, rather are typically drawn down from funds controlled by the Transit System or its parent organization.
B99: =B98+1 -> 116 | C99: Passenger Trips: Medicaid Contract | D99: Enter the number of unlinked passenger trips carried for DSS that are sponsored by Medicaid.
B100: =B99+1 -> 117 | C100: Passenger Trips: Non-Medicaid Contract | D100: Enter the number of non-Medicaid unlinked passenger trips carried for human service agencies or others with whom the system has a contractual relationship.
B101: 118 | C101: Hours | D101: The hours calculation differs by mode. For fixed-route mode (MB), hours are the total time in hours for the reporting period from first scheduled stop to the last scheduled stop. For demand response mode (DR), hours are accounted from pull out to pull in. Both hour definitions exclude operator training, and vehicle maintenance testing, as well as school bus and charter services. Do not include hours spent providing incidental services such as meal or service delivery.
B102: 119 | C102: Miles | D102: The miles calculation differs by mode. For fixed-route mode (MB), miles are the total distance driven for the reporting period from the first scheduled stop to the last scheduled stop. For demand response mode (DR), miles are accounted from pull out to pull in. Both mile definitions exclude operator training, and vehicle maintenance testing, as well as school bus and charter services. Do not include miles spent providing incidental services such as meal or service delivery.
B103: =B102+1 -> 120 | C103: Passenger Trips: Non-Contract | D103: Enter the number of non-contract unlinked passenger trips (HYPERLINK within Doc - 341). The cost of non-contract trips are not billed to outside organizations or agencies, rather are typically drawn down from funds controlled by the Transit System or its parent organization.
B104: =B103+1 -> 121 | C104: Passenger Trips: Medicaid Contract | D104: Enter the number of unlinked passenger trips carried for DSS that are sponsored by Medicaid.
B105: =B104+1 -> 122 | C105: Passenger Trips: Non-Medicaid Contract | D105: Enter the number of non-Medicaid unlinked passenger trips carried for human service agencies or others with whom the system has a contractual relationship.
A107: Finance | B107: 136 | C107: Personnel Salaries & Fringes--CTP Object Codes G121-189 | D107: Enter the total expense for salaries and fringe benefits of Administrative Personnel only; for example, Director, Administrative Assistant, Secretary. No operational employees’ salaries or fringe are included in this line item.
B108: =B107+1 -> 137 | C108: Advertising and Promotion--CTP Object Codes G371-373 | D108: Enter the amount the system expended on advertising and promotion activities, products and services.
B109: =B108+1 -> 138 | C109: Employee Development--CTP Object Code G395 | D109: Enter the total expenses for all training-related expenses, including travel expenditures to training sessions.
B110: 139 | C110: Vehicle Insurance Premiums--CTP Object Code G452 | D110: Enter the total expense for transit system vehicle insurance premiums. These costs should be broken out if the county charges a flat rate that includes multiple vehicle expenses.
B111: 140 | C111: Indirect Services--CTP Object Code 481 | D111: Enter the amount of indirect costs reimbursed to the county general fund or sponsoring agency for administrative indirect services.
B112: =B111+1 -> 141 | C112: CTP Object Codes G190-359; 380-394; 396-451; 454-480; 482-491 | D112: Enter other administrative expenses from CTP object codes G190 to G359, G380 to G394, G396 to G451, G454 to G480 and G482 to G491.
B113: =B112+1 -> 142 | C113: Other Administrative Expenses | D113: Enter any other funds the system may have expended for administrative support that have not been reported above. An explanation is required in Column S if an amount is entered here.
B114: =B113+1 -> 143 | C114: Driver Salaries & Fringes | D114: Enter the total expenses for driver salaries & fringes for directly operated (DO) service. No other personnel are to be considered here.
B115: 144 | C115: Other Operating Staff Salaries & Fringes | D115: Enter the total expenses for all non-driver and non-administrative transit system personnel, which includes Dispatcher, Trainer, Mechanic, Scheduler, Operations Manager, Road Supervisor, etc. If a dispatcher or other operations person is a part time driver, then that portion of the salary dedicated to driving should be included with the Driver Salaries & Fringes line item above.
B116: 145 | C116: Mechanics Salaries & Fringes | D116: Enter the total expenses for mechanic salaries and fringes associated with the transit system.
B117: =B116+1 -> 146 | C117: Indirect Services | D117: Enter the amount of indirect costs reimbursed to the county general fund or sponsoring agency for operating indirect services.
B118: =B117+1 -> 147 | C118: Fuel | D118: Enter the total expenses to purchase fuel for transit system operations. These costs should be broken out if the county charges a flat rate that includes multiple vehicle expenses.
B119: =B118+1 -> 148 | C119: Vehicle Maintenance | D119: Enter the total expenses for vehicle maintenance items such as preventative maintenance, tires, oil changes, towing, repairs, etc. associated with maintaining vehicles. These costs should be broken out if your county charges a flat rate that includes multiple vehicle expenses.
B120: 149 | C120: Payment of Insurance Deductible(s) | D120: Enter the amount the transit system expended on insurance deductibles.
B121: 150 | C121: Disposal of Vehicle(s) | D121: Enter any expense the system incurred as a result of efforts to dispose of any vehicles in their fleet. (E.g.: sale registration fees, transport of vehicle to disposal location, etc.)
B122: =B121+1 -> 151 | C122: Management/Operation Services (Applicable only for PT Modes) | D122: Enter all expenses incurred for the management or operational services of a private operator. Examples of such operators are Apple Bus, First Transit, Laidlaw Transit Services, or MV Transit.
B123: 152 | C123: Volunteer Reimbursement | D123: Enter all expenses incurred by the transit system to support volunteer drivers who use their own vehicles. Examples include mileage reimbursements or meal stipends.
B124: =B123+1 -> 153 | C124: Other Transit Provider Services (Applicable only for PT Modes) | D124: Enter all expenses incurred for the services of other providers performing some service but not full-time service for the transit system. Examples include payments to taxicab companies or other private providers, or payments to other CT systems providing coordinated out-of-county medical/employment trips.
B125: =B124+1 -> 154 | C125: Other Operating Expenses | D125: Enter all other operating expenses incurred that have not specifically been reported elsewhere. If a number is entered on this line, provide an explanation in Column S.
B126: 155 | C126: Capital Purchases | D126: Enter the total expenses incurred related to the purchase of vehicles and other capital equipment during the reporting period.
B127: 156 | C127: Body Work on Wrecked Vehicle | D127: Enter the total expense incurred for body and/or repair work required on any wrecked vehicles during the report period. These expenses should be covered by proceeds from the insurance carrier minus any deductible expense.
B128: =B127+1 -> 157 | C128: Facility Renovation or Construction | D128: Enter the total expenses incurred for the purchase of land for facility construction, facility construction activities or facility renovation during the reporting period.
B129: =B128+1 -> 158 | C129: Advanced Technology Purchases | D129: Enter the total expenses related to the purchase of technology-related items such as hardware, software or telephone systems during the reporting period.
B130: 159 | C130: Other Capital Expense | D130: Enter any other expense related to capital purchases. Provide a description of this expense in Column K.
B131: =B130+1 -> 160 | C131: Urbanized Area Formula Funding-Section 5307 | D131: Enter the amount of Section 5307 federal funds expended to assist in paying for capital and operating costs. The Urbanized Area Formula Funding program makes Federal resources available to urbanized areas and to Governors for transit capital and operating assistance in urbanized areas and for transportation related planning. These funds may originate from either the local MPO or the State DOT.
B132: =B131+1 -> 161 | C132: CARES Act-Section 5307 | D132: Enter the amount of CARES Act-Section 5307 federal funds expended to assist in paying for capital and operating costs associated with the response to COVID-19. These funds may originate from either the local MPO or the State DOT.
B133: =B132+1 -> 162 | C133: CRRSA Act-Section 5307 | D133: Enter the amount of CRRSA Act-Section 5307 federal funds expended to assist in paying for capital and operating costs associated with the response to COVID-19. These funds may originate from either the local MPO or the State DOT.
B134: 163 | C134: ARP Act-Section 5307 | D134: Enter the amount of ARP Act-Section 5307 federal funds expended to assist in paying for capital and operating costs associated with the response to COVID-19. These funds may originate from either the local MPO or the State DOT.
B135: 164 | C135: FTA Capital Program Funds-Section 5309 | D135: Enter the amount of Section 5309 federal funds expended to assist in paying for the establishment of new rail or busway projects (new starts), the improvement and maintenance of existing rail and other fixed guideway systems, and the upgrading of bus systems. These funds may originate from either the local MPO or the State DOT.
B136: =B135+1 -> 165 | C136: Section 5310--Elderly and Disabled | D136: Enter the amount of Section 5310 federal funds expended. These funds may originate from either the local MPO or the State DOT.
B137: 166 | C137: Capital Assistance Spent on Operations-Section 5310 | D137: Enter the amount of Section 5310 federal capital funds expended to assist in paying for the operating costs of providing transit service.
B138: 167 | C138: CARES Act-Section 5310 | D138: Enter the amount of CARES Act-Section 5310 federal funds expended to assist in paying for capital and operating costs associated with the response to COVID-19.
B139: 168 | C139: CRRSA Act-Section 5310 | D139: Enter the amount of CRRSA Act-Section 5310 federal funds expended to assist in paying for capital and operating costs associated with the response to COVID-19.
B140: 169 | C140: ARP Act-Section 5310 | D140: Enter the amount of ARP Act-Section 5310 federal funds expended to assist in paying for capital and operating costs associated with the response to COVID-19.
B141: 170 | C141: Section 5311--CTP Funds--Administrative/Capital | D141: Enter the amount of Section 5311 Community Transportation Program federal funds expended on administrative costs or capital costs.
B142: =B141+1 -> 171 | C142: Section 5311--CTP Funds--Operating | D142: Enter the amount of Section 5311 Community Transportation Program federal funds expended on operating costs.
B143: 172 | C143: Capital Assistance Spent on Operations-Section 5311 | D143: Enter the amount of Section 5311 federal capital funds expended to assist in paying for the operating costs of providing transit service.
B144: 173 | C144: Appalachian-Section 5311 | D144: Enter the amount of Section 5311 Appalachian federal funds expended.
B145: 174 | C145: Tribal Federal Assistance--Section 5311 | D145: Enter the amount of Section 5311 Tribal federal funds expended.
B146: =B145+1 -> 175 | C146: ARRA Assistance--Section 5311 | D146: Enter the amount of Section 5311 ARRA federal funds expended.
B147: 176 | C147: ARRA Tribal Assistance--Section 5311 | D147: Enter the amount of Section 5311 ARRA Tribal federal funds expended.
B148: 177 | C148: CARES Act-Section 5311 | D148: Enter the amount of CARES Act-Section 5311 federal funds expended to assist in paying for capital and operating costs associated with the response to COVID-19.
B149: 178 | C149: CRRSA Act-Section 5310 | D149: Enter the amount of CRRSA Act-Section 5311 federal funds expended to assist in paying for capital and operating costs associated with the response to COVID-19.
B150: 179 | C150: ARP Act-Section 5310 | D150: Enter the amount of ARP Act-Section 5311 federal funds expended to assist in paying for capital and operating costs associated with the response to COVID-19.
B151: 180 | C151: Section 5316--JARC Funds | D151: Enter the federal financial assistance the system received from the Job Access and Reverse Commute Section 5316 Program.
B152: 181 | C152: Section 5317--New Freedom Funds | D152: Enter the federal financial assistance the system received from New Freedom Section 5317 Program.
B153: 182 | C153: Section 5339--Bus and Bus Facilities | D153: Enter the federal financial assistance the system received from Bus and Bus Facilities Section 5339 Program.
B154: 183 | C154: Other FTA Revenues | D154: Enter other federal financial assistance the system expended. Provide a description in Column S.
B155: 184 | C155: Other Federal Non-FTA Revenues | D155: Enter other federal financial assistance the system expended. Provide a description in Column S.
B156: 185 | C156: CTP Funds--Administrative | D156: Enter the State financial assistance the system expended from the Community Transportation Program (CTP) to assist in paying the administrative costs of providing transit service.
B157: 186 | C157: ROAP Funds--Suballocated to the Transit System | D157: Enter the ROAP funds that are managed by and drawn down by transit systems (funds received pre-trip). ROAP funds that are held by counties for reimbursement to transit systems (funds received post-trip) are entered separately on line 111.
B158: 187 | C158: Vehicles and Other Capital Revenues | D158: Enter all state funds expended through NCDOT for capital purchases (vehicles and other capital expenses only).
B159: 188 | C159: Facility | D159: Enter all state funds expended through NCDOT for new construction or renovation of a facility.
B160: 189 | C160: Advanced Technology | D160: Enter all state funds expended through NCDOT for advanced technology.
B161: 190 | C161: Other State Funds | D161: Enter other state financial assistance expended by the transit system. Provide a description in Column S.
B162: 191 | C162: Government Funds | D162: Enter the total amount of financial assistance from local entities to assist in paying costs of the transit provider. Include: Tax Levies - a specified amount from local tax levies dedicated to supporting the capital costs of the public transit system. General Funds – Transfers from the general fund of local governments. Specified Contributions - Contributions from the local government.
B163: 192 | C163: Medicaid Revenue | D163: Enter total funds paid to the transit system directly by Medicaid for service provision to Medicaid trip passengers.
B164: 193 | C164: Brokered Medicaid Revenue | D164: Enter total funds paid to the transit system by Medicaid brokers (i.e.ModivCare & MTM) for service provision to Medicaid trip passengers.
B165: 194 | C165: Contract Revenue | D165: Enter reimbursement by any organization, government, agency, or company, as a result of a formal contractual agreement with the transit service operator, for trips provided to a specific passenger or group of passengers. This contract revenue is only for unsubsidized trips.
B166: 195 | C166: Other Directly Generated Revenue | D166: Enter payments received from any organization, government, agency, or company, as a result of a formal contractual agreement with the transit system for trips provided to a specific passenger or group of passengers. If the system did not receive EDTAP or Work First funds directly and billed agencies for the trips, that revenue is entered here.
B167: 196 | C167: Fares from Passengers | D167: Enter the total income received directly from passengers, either paid in cash or through pre-paid tickets, passes, etc., spent on transit operations for the reporting period. Include the reduced fares paid by passengers in a user-side subsidy arrangement.
B168: 197 | C168: Donations | D168: Donations from individuals or organizations to help cover the transit system costs.
B169: 198 | C169: Interest Income | D169: Enter any funds that were earned from the investment of system reserve funds during the reporting period and transferred to current funds for administrative and operating expenses only.
B170: 199 | C170: Advertising Revenue | D170: Enter any funds paid to the transit system for advertising on the vehicles.
B171: 200 | C171: Insurance Proceeds from Accident | D171: Enter any proceeds received from insurance due to vehicle or property damages or losses during the reporting period.
B172: 201 | C172: Proceeds from Vehicle Sales (used for Capital Only) | D172: Enter any proceeds the system received from the sale of a vehicle(s). Any amount reported here must have been restricted to capital expenses only.
B173: 202 | C173: Other Revenue | D173: Enter any other local funds the system may have received that have not been reported above which were dedicated to administrative or operating support. An explanation is required in Column K if an amount is entered on this line.
A175: ANNUAL STATS | B175: =CONCATENATE(B173+1,"A") -> 203A | C175: Total Volunteer Drivers | D175: Enter the number of volunteer drivers at the end of the reporting period. Volunteer drivers are individuals who drive their personal vehicles or transit vehicles in revenue service to transport passengers for the transit system, but are not employees of the transit system and are not compensated for their labor, but may be compensated for their mileage.
B176: =CONCATENATE(B173+1,"D") -> 203D | C176: Personal Vehicles Used | D176: Enter the number of personal vehicles used in revenue service at the end of the reporting period.
B177: =CONCATENATE(B173+2,"A") -> 204A | C177: Miles (Incidental Services) | D177: Incidental service trips involve the movement of materials and goods rather than people. Examples include meal and mail delivery. If the system provides Incidental Services, enter the number of dedicated miles provided as part of this service.
B178: =CONCATENATE(B173+2,"D") -> 204D | C178: Hours (Incidental Services) | D178: Incidental service trips involve the movement of materials and goods rather than people. Examples include meal and mail delivery. If the system provides Incidental Services, enter the number of dedicated hours provided as part of this service.
B179: =B173+3 -> 205 | C179: Incidental Services Description | D179: Incidental service trips involve the movement of materials and goods rather than people. Examples include meal and mail delivery. Please describe the types of incidental service provided during the reporting period.
B180: 147A | C180: CARES Act Miles (Incidental Services) | D180: Incidental service trips involve the movement of materials and goods rather than people. Examples may include meal and pharmaceutical deliveries. If the system provides Incidental Services to support the response to COVID-19, enter the number of dedicated miles provided as part of this service.
B181: 147D | C181: CARES Act Hours (Incidental Services) | D181: Incidental service trips involve the movement of materials and goods rather than people. Examples may include meal and pharmaceutical deliveries. If the system provides Incidental Services to support the response to COVID-19, enter the number of dedicated hours provided as part of this service.
B182: 148 | C182: CARES Act Incidental Services Description | D182: Incidental service trips involve the movement of materials and goods rather than people. Examples may include meal and pharmaceutical deliveries. Please describe the types of incidental service provided in response to COVID-19 during the reporting period.
B183: =CONCATENATE(B173+6,"-",B173+9) -> 208-211 | C183: Employee Information | D183: Enter the number of full-time and part-time employees employed by the transit system in each category at the end of the FY in the “How Many” column. The "Total Pay Hours" is the amount expended for the entire FY.
B184: =B173+10 -> 212 | C184: Non-Ambulatory Passenger Trips | D184: Total number of passenger trips that required the use of a lift or ramp.
B185: =B184+1 -> 213 | C185: Vehicle Maintenance Method | D185: Click on the cell and using the drop down box, select the appropriate category.
B186: =CONCATENATE(B185+1,"A") -> 214A | C186: Maintenance Facilites Owned | D186: Enter the number of maintenance facilities owned by the grantee.
B187: =CONCATENATE(B185+1,"C") -> 214C | C187: Maintenance Facilites Leased | D187: Enter the number of maintenance facilities leased by the grantee.
B188: =CONCATENATE(B185+2,"A") -> 215A | C188: NTD Reportable Events | D188: Any event involving the operation of a transit system if, as a result, one or more of the following occurs: 1) An individual dies either at the time of the event or within 30 days of the event; 2) One or more individuals suffer bodily damage or harm as a result of the event requiring immediate medical attention away from the scene. Immediate attention includes, but is not limited to, transport to the hospital by ambulance or other vehicle. The medical attention received must be at a location other than the location at which the incident occurred; 3) A collision, personal casualty, or fire causes property damage in excess of $25,000; and/or, 4) An evacuation due to life safety reasons.
B189: =CONCATENATE(B185+2,"C") -> 215C | C189: NTD Reportable Fatalities | D189: A transit-caused fatality confirmed within 30 days of a transit event.
B190: =CONCATENATE(B185+2,"E") -> 215E | C190: NTD Reportable Injuries | D190: Any damage or harm to persons as a result of an event that requires immediate medical attention away from the scene
B191: =CONCATENATE(B185+3,"-",B185+9) -> 216-222 | C191: Human Service Agency/Community Organization Trips Served | D191: Check the appropriate box if the service is provided to the agency or program listed.
B192: =B185+10 -> 223 | C192: Changes Since Last Year | D192: Provide a detailed description of how your transit system’s administration and/or operation has changed over the past year.
A194: COMPLETION | B194: =B192+1 -> 224 | C194: Operating Reserve | D194: Enter the total amount of money available from the end of the year.
B195: =B194+1 -> 225 | C195: Doing Well | D195: Describe what your system has been doing well.
B196: =B195+1 -> 226 | C196: Needs Improvement | D196: Describe what can be done to improve your system's performance.
A198: MISCELLANEOUS | C198: Unlinked Passenger Trips (UPT) | D198: The number of passengers who board public transportation vehicles. Passengers are counted each time they board vehicles no matter how many vehicles they use to travel from their origin to their destination.

Sheet Safety & Security Definitions (hidden)
A1: Description | B1: Definition
A2: Physical Assault | B2: An assault in which the attack involved physical contact with the transit worker. This could include any physical contact with the victim from the attacker's body, a weapon, a projectile or other item (i.e., spitting).
A3: Non-Physical Assault | B3: An assault in which the attack involves no physical contact with the transit worker. This could include threats or intimidation that did not result in any physical cntact with the transit worker.
A4: In Transit Vehicle | B4: In or on a transit vehicle
A5: In Revenue Facility | B5: A facility or an area that a passenger uses to board/deboard from a transit vehicle using a platform, which may include stairs, elevators, escalators, passenger controls, canopies, wind shelters, ticket office or machines, retrooms, or concessions. This includes the following: 1. All fixed guideway passenger facilities (except for on-street cable car and light rail stops) 2. Busway passenger facilities 3. Underground, at-grade, and elevated rail stations 4. Ferryboat terminals 5. Transportation, transit, transfer centers, park-and-ride facilities, and transit malls with the above components, including those only used by buses 6. Parking facilities and garages (parking facilities ar those immediately adjacent to a transit station or center) 7. Other locations within the facility such as a control room, equipment room or turnstile area
A6: In Non-Revenue Facility | B6: A facility or an area that is not used to enable individuals to board or alight from transit vehicles, and that is primarily staffed by transit employees
A7: Other Location | B7: A location that is not in a revenue or non-revenue facility and is not a transit vehicle. This selection is used to capture events that did not occur in listed locations. For example, a person is pushed into a stationary transit vehicle on the roadway.
A8: Major Safety & Security Event | B8: A reportable event that meets any of the NTD reporting thresholds (detailed below) and 1. Occurs at a transit revenue facility, maintenance facility, or rail yard; 2. Occurs on transit right-of-way or infrastructure (the underlying framework or structures that support a public transportation system); 3. Occurs during a transit-related maintenance activity; or 4. Involves a transit revenue vehicle.
A9: Non-Major Safety & Security Event | B9: A reportable event that DOES NOT meet any of the NTD reporting thresholds as described above in the Major Safety & Security Event description and DOES NOT meet any of the NTD reporting thresholds (detailed below).
A10: Major Safety & Security Event Thresholds | B10: The thresholds to determine if an event should be reported as a major event and the above criteria are also met: 1. Fatality confirmed within 30 days of the event, including suicide; 2. Injuries: Immediate transport away from the scene for medical attention for 1 or more persons (unless the event is an Other Safety Event which requires the transport of 2+ individuals away from the scene); 3. Property Damage: Equal to or exceeding $25,000; 4. Collisions that a. Meet an injury, fatality, property damage, or evacuation threshold; b. Involves a transit revenue vehicle and the towing away of any vehicles (transit or non-transit from the scene; c. Include suicides, attempted suicides, assaults, or homicides resulting in an injury or fatality that involve contact with a transit vehicle; or d. Includes collisions that do not involve a transit revenue vehicle but meet a threshold. 5. Evacuations include a. Evacuation of a transit facility or vehicle for life-safety reasons.
A11: Other Safety Event | B11: A safety event not specifically listed as a reportable event but which meet a reportable threhold. Other safety events include: slips, trips, falls, smoke, power failure, maintenance-related issues, electric shock, or runaway train events.
A12: Operator | B12: An individual who is compensated by the transit agency and whose function is to operate the transit vehicle.
A13: Other Transit Worker | B13: An individual who is compensated by the transit agency or who is otherwise providing specific services on behalf of a transit agency.
A14: Other Individual | B14: An individual who is not compensated by the transit agency or who is not otherwise providing specific services on behalf of a transit agency.
A15: Number of Major Safety and Secruity Events | B15: The number of events that meet the required threshold to be reported as a major safety or security event as defined above.
A16: Number of Operator Injuries | B16: The number of Operator injuries to be reported that meet the required threshold defined above.
A17: Number of Other Transit worker Injuries | B17: The number of Other Transit Worker injuries to be reported that meet the required threshold defined above.
A18: Number of Other Injuries | B18: The number of Other injuries to be reported that meet the required threshold defined above.
A19: Number of Operator Fatalities | B19: The number of Operator fatalities to be reported that meet the required threshold defined above.
A20: Number of Other Transit Worker Fatalities | B20: The number of Other Transit Worker fatalities to be reported that meet the required threshold defined above.
A21: Number of Other Fatalities | B21: The number of Other fatalities to be reported that meet the required threshold defined above.
A22: Fatalities | B22: Confirmed within 30 days of the event, including suicide
A23: Injuries | B23: Immediate transport away from the scene for medical attention for 2 or more persons.
A24: Total reportable injuries from non-major events | B24: Events that DO NOT meet the thresholds to be considered as a Major Event (detailed above) AND only one person was immediately transported away from the scene for medical attention.

Sheet Warning
I16: You must enable macros in order to use Op Stats FY24.
I17: Please re-open this workbook and enable macros.
